Workbook

Sheet Main
B10: 2020-12-31
B12: Sheet No. | C12: Template Name | D12: Summary
B13: 1 | C13: Future Intra | D13: For Intraday trading in F&O segment
B14: 2 | C14: Cash Intra | D14: For Intraday trading in cash market segment
B15: 3 | C15: Mid-cap Intra | D15: For Intraday trading in Mid-cap stocks
B16: 4 | C16: Bulk Deals | D16: Reveals Bulk Deals carried on NSE & BSE
B17: 5 | C17: Call Tracker
K27: `

Sheet Future Intra
M5: Back to Main Page
A6: FOR INTRA DAY TRADING | L6: =Main!B10 -> 2020-12-31
A9: Sr.no | B9: Sector | C9: Scrip | D9: CLOSE RATE | E9: Pivot Point | F9: Supports | I9: Resistances
B10: Sector | D10: Point | E10: Point | F10: S1 | G10: S2 | H10: S3 | I10: R1 | J10: R2 | K10: R3 | L10: HIGH | M10: LOW | N10: OI | O10: % Change in OI
A11: 1 | B11: Index | C11: BANKNIFTY | D11: 31338.25 | E11: 31305.90 | F11: 31062.35 | G11: 30786.45 | H11: 30542.90 | I11: 31581.80 | J11: 31825.35 | K11: 32101.25 | L11: 31549.45 | M11: 31030 | N11: 1865575 | O11: -2.33%
A12: 2 | B12: Index | C12: NIFTY | D12: 13977.45 | E12: 13944.48 | F12: 13903.92 | G12: 13830.38 | H12: 13789.82 | I12: 14018.02 | J12: 14058.58 | K12: 14132.12 | L12: 13985.05 | M12: 13870.95 | N12: 16206675 | O12: 12.43%
A13: 3 | B13: Cement | C13: ACC | D13: 1652.45 | E13: 1637.00 | F13: 1618.05 | G13: 1583.65 | H13: 1564.70 | I13: 1671.40 | J13: 1690.35 | K13: 1724.75 | L13: 1655.95 | M13: 1602.6 | N13: 3293000 | O13: 2.91%
A14: 4 | B14: Others | C14: ADANIENT | D14: 484.05 | E14: 486.62 | F14: 476.43 | G14: 468.82 | H14: 458.63 | I14: 494.23 | J14: 504.42 | K14: 512.03 | L14: 496.8 | M14: 479 | N14: 18414000 | O14: -3.03%
A15: 5 | B15: Others | C15: ADANIPORTS | D15: 486.45 | E15: 484.42 | F15: 481.28 | G15: 476.12 | H15: 472.98 | I15: 489.58 | J15: 492.72 | K15: 497.88 | L15: 487.55 | M15: 479.25 | N15: 51500000 | O15: -1.77%
A16: 6 | B16: Automobile | C16: AMARAJABAT | D16: 936.35 | E16: 936.97 | F16: 929.93 | G16: 923.52 | H16: 916.48 | I16: 943.38 | J16: 950.42 | K16: 956.83 | L16: 944 | M16: 930.55 | N16: 1580000 | O16: -2.29%
A17: 7 | B17: Cement | C17: AMBUJACEM | D17: 252.65 | E17: 249.28 | F17: 245.52 | G17: 238.38 | H17: 234.62 | I17: 256.42 | J17: 260.18 | K17: 267.32 | L17: 253.05 | M17: 242.15 | N17: 20028000 | O17: -3.60%
A18: 8 | B18: Others | C18: APOLLOHOSP | D18: 2398.95 | E18: 2386.82 | F18: 2366.78 | G18: 2334.62 | H18: 2314.58 | I18: 2418.98 | J18: 2439.02 | K18: 2471.18 | L18: 2406.85 | M18: 2354.65 | N18: 2099000 | O18: -0.12%
A19: 9 | B19: Automobile | C19: APOLLOTYRE | D19: 180.25 | E19: 180.25 | F19: 178.35 | G19: 176.45 | H19: 174.55 | I19: 182.15 | J19: 184.05 | K19: 185.95 | L19: 182.15 | M19: 178.35 | N19: 11370000 | O19: -3.52%
A20: 10 | B20: Automobile | C20: ASHOKLEY | D20: 95.00 | E20: 94.68 | F20: 94.17 | G20: 93.33 | H20: 92.82 | I20: 95.52 | J20: 96.03 | K20: 96.87 | L20: 95.2 | M20: 93.85 | N20: 44559000 | O20: -1.04%
A21: 11 | B21: FMCG | C21: ASIANPAINT | D21: 2735.70 | E21: 2720.88 | F21: 2701.02 | G21: 2666.33 | H21: 2646.47 | I21: 2755.57 | J21: 2775.43 | K21: 2810.12 | L21: 2740.75 | M21: 2686.2 | N21: 5260500 | O21: 1.09%
A22: 12 | B22: Pharma | C22: AUROPHARMA | D22: 906.30 | E22: 902.67 | F22: 895.63 | G22: 884.97 | H22: 877.93 | I22: 913.33 | J22: 920.37 | K22: 931.03 | L22: 909.7 | M22: 892 | N22: 9744800 | O22: -2.93%
A23: 13 | B23: Banking | C23: AXISBANK | D23: 625.60 | E23: 626.42 | F23: 617.98 | G23: 610.37 | H23: 601.93 | I23: 634.03 | J23: 642.47 | K23: 650.08 | L23: 634.85 | M23: 618.8 | N23: 49815600 | O23: -2.38%
A24: 14 | B24: Automobile | C24: BAJAJ-AUTO | D24: 3455.30 | E24: 3444.95 | F24: 3417.35 | G24: 3379.40 | H24: 3351.80 | I24: 3482.90 | J24: 3510.50 | K24: 3548.45 | L24: 3472.55 | M24: 3407 | N24: 1656250 | O24: -2.29%
A25: 15 | B25: Finance | C25: BAJAJFINSV | D25: 8985.80 | E25: 8985.85 | F25: 8934.80 | G25: 8883.80 | H25: 8832.75 | I25: 9036.85 | J25: 9087.90 | K25: 9138.90 | L25: 9036.9 | M25: 8934.85 | N25: 974000 | O25: 2.00%
A26: 16 | B26: Finance | C26: BAJFINANCE | D26: 5341.15 | E26: 5291.22 | F26: 5227.53 | G26: 5113.92 | H26: 5050.23 | I26: 5404.83 | J26: 5468.52 | K26: 5582.13 | L26: 5354.9 | M26: 5177.6 | N26: 6372750 | O26: -3.98%
A27: 17 | B27: Automobile | C27: BALKRISIND | D27: 1616.95 | E27: 1604.17 | F27: 1584.28 | G27: 1551.62 | H27: 1531.73 | I27: 1636.83 | J27: 1656.72 | K27: 1689.38 | L27: 1624.05 | M27: 1571.5 | N27: 2018800 | O27: 3.66%
A28: 18 | B28: Banking | C28: BANDHANBNK | D28: 406.75 | E28: 408.47 | F28: 400.93 | G28: 395.12 | H28: 387.58 | I28: 414.28 | J28: 421.82 | K28: 427.63 | L28: 416 | M28: 402.65 | N28: 10681200 | O28: -0.95%
A29: 19 | B29: Banking | C29: BANKBARODA | D29: 62.20 | E29: 61.97 | F29: 60.93 | G29: 59.67 | H29: 58.63 | I29: 63.23 | J29: 64.27 | K29: 65.53 | L29: 63 | M29: 60.7 | N29: 59310500 | O29: -9.59%
A30: 20 | B30: FMCG | C30: BATAINDIA | D30: 1582.20 | E30: 1580.93 | F30: 1571.87 | G30: 1561.53 | H30: 1552.47 | I30: 1591.27 | J30: 1600.33 | K30: 1610.67 | L30: 1590 | M30: 1570.6 | N30: 1114300 | O30: -3.52%
A31: 21 | B31: Capital_Goods | C31: BEL | D31: 114.50 | E31: 114.38 | F31: 113.52 | G31: 112.53 | H31: 111.67 | I31: 115.37 | J31: 116.23 | K31: 117.22 | L31: 115.25 | M31: 113.4 | N31: 32702800 | O31: -1.08%
A32: 22 | B32: FMCG | C32: BERGEPAINT | D32: 753.20 | E32: 748.77 | F32: 742.43 | G32: 731.67 | H32: 725.33 | I32: 759.53 | J32: 765.87 | K32: 776.63 | L32: 755.1 | M32: 738 | N32: 2365000 | O32: -4.19%
A33: 23 | B33: Automobile | C33: BHARATFORG | D33: 519.05 | E33: 520.22 | F33: 512.98 | G33: 506.92 | H33: 499.68 | I33: 526.28 | J33: 533.52 | K33: 539.58 | L33: 527.45 | M33: 514.15 | N33: 6148500 | O33: -0.65%
A34: 24 | B34: Telecom | C34: BHARTIARTL | D34: 516.95 | E34: 517.80 | F34: 513.50 | G34: 510.05 | H34: 505.75 | I34: 521.25 | J34: 525.55 | K34: 529.00 | L34: 522.1 | M34: 514.35 | N34: 98384352 | O34: 1.30%
A35: 25 | B35: Capital_Goods | C35: BHEL | D35: 35.40 | E35: 35.55 | F35: 34.75 | G35: 34.10 | H35: 33.30 | I35: 36.20 | J35: 37.00 | K35: 37.65 | L35: 36.35 | M35: 34.9 | N35: 109116000 | O35: 1.86%
A36: 26 | B36: Pharma | C36: BIOCON | D36: 458.55 | E36: 458.67 | F36: 453.83 | G36: 449.12 | H36: 444.28 | I36: 463.38 | J36: 468.22 | K36: 472.93 | L36: 463.5 | M36: 453.95 | N36: 11336700 | O36: -7.71%
A37: 27 | B37: Automobile | C37: BOSCHLTD | D37: 12821.90 | E37: 12795.20 | F37: 12692.45 | G37: 12563.00 | H37: 12460.25 | I37: 12924.65 | J37: 13027.40 | K37: 13156.85 | L37: 12897.95 | M37: 12665.75 | N37: 155800 | O37: -6.40%
A38: 28 | B38: Oil_Gas | C38: BPCL | D38: 382.60 | E38: 381.73 | F38: 379.57 | G38: 376.53 | H38: 374.37 | I38: 384.77 | J38: 386.93 | K38: 389.97 | L38: 383.9 | M38: 378.7 | N38: 27687600 | O38: -3.28%
A39: 29 | B39: FMCG | C39: BRITANNIA | D39: 3590.45 | E39: 3590.77 | F39: 3571.63 | G39: 3552.82 | H39: 3533.68 | I39: 3609.58 | J39: 3628.72 | K39: 3647.53 | L39: 3609.9 | M39: 3571.95 | N39: 2301600 | O39: 0.47%
A40: 30 | B40: Pharma | C40: CADILAHC | D40: 479.95 | E40: 479.27 | F40: 476.78 | G40: 473.62 | H40: 471.13 | I40: 482.43 | J40: 484.92 | K40: 488.08 | L40: 481.75 | M40: 476.1 | N40: 9735000 | O40: -1.47%
A41: 31 | B41: Banking | C41: CANBK | D41: 129.40 | E41: 127.90 | F41: 125.30 | G41: 121.20 | H41: 118.60 | I41: 132.00 | J41: 134.60 | K41: 138.70 | L41: 130.5 | M41: 123.8 | N41: 48907200 | O41: 49.45%
A42: 32 | B42: Finance | C42: CHOLAFIN | D42: 384.45 | E42: 382.30 | F42: 378.60 | G42: 372.75 | H42: 369.05 | I42: 388.15 | J42: 391.85 | K42: 397.70 | L42: 386 | M42: 376.45 | N42: 5190000 | O42: -7.36%
A43: 33 | B43: Pharma | C43: CIPLA | D43: 822.80 | E43: 822.42 | F43: 816.78 | G43: 810.77 | H43: 805.13 | I43: 828.43 | J43: 834.07 | K43: 840.08 | L43: 828.05 | M43: 816.4 | N43: 15870400 | O43: -2.10%
A44: 34 | B44: Others | C44: COALINDIA | D44: 135.75 | E44: 135.52 | F44: 134.53 | G44: 133.32 | H44: 132.33 | I44: 136.73 | J44: 137.72 | K44: 138.93 | L44: 136.5 | M44: 134.3 | N44: 35894200 | O44: -0.36%
A45: 35 | B45: Technology | C45: COFORGE | D45: 2698.15 | E45: 2689.03 | F45: 2669.32 | G45: 2640.48 | H45: 2620.77 | I45: 2717.87 | J45: 2737.58 | K45: 2766.42 | L45: 2708.75 | M45: 2660.2 | N45: 380625 | O45: -5.05%
A46: 36 | B46: FMCG | C46: COLPAL | D46: 1580.70 | E46: 1575.88 | F46: 1568.17 | G46: 1555.63 | H46: 1547.92 | I46: 1588.42 | J46: 1596.13 | K46: 1608.67 | L46: 1583.6 | M46: 1563.35 | N46: 2708300 | O46: -0.95%
A47: 37 | B47: Others | C47: CONCOR | D47: 398.65 | E47: 397.52 | F47: 393.53 | G47: 388.42 | H47: 384.43 | I47: 402.63 | J47: 406.62 | K47: 411.73 | L47: 401.5 | M47: 392.4 | N47: 11783457 | O47: -1.46%
A48: 38 | B48: Capital_Goods | C48: CUMMINSIND | D48: 572.25 | E48: 575.63 | F48: 564.62 | G48: 556.98 | H48: 545.97 | I48: 583.27 | J48: 594.28 | K48: 601.92 | L48: 586.65 | M48: 568 | N48: 2011200 | O48: -9.11%
A49: 39 | B49: FMCG | C49: DABUR | D49: 538.95 | E49: 534.77 | F49: 529.03 | G49: 519.12 | H49: 513.38 | I49: 544.68 | J49: 550.42 | K49: 560.33 | L49: 540.5 | M49: 524.85 | N49: 15563750 | O49: -0.61%
A50: 40 | B50: Pharma | C50: DIVISLAB | D50: 3804.50 | E50: 3795.02 | F50: 3771.03 | G50: 3737.57 | H50: 3713.58 | I50: 3828.48 | J50: 3852.47 | K50: 3885.93 | L50: 3819 | M50: 3761.55 | N50: 2814800 | O50: -1.95%
A51: 41 | B51: Realty | C51: DLF | D51: 236.20 | E51: 233.98 | F51: 230.62 | G51: 225.03 | H51: 221.67 | I51: 239.57 | J51: 242.93 | K51: 248.52 | L51: 237.35 | M51: 228.4 | N51: 30699900 | O51: 2.17%
A52: 42 | B52: Pharma | C52: DRREDDY | D52: 5173.65 | E52: 5171.00 | F52: 5148.90 | G52: 5124.15 | H52: 5102.05 | I52: 5195.75 | J52: 5217.85 | K52: 5242.60 | L52: 5193.1 | M52: 5146.25 | N52: 2732375 | O52: -2.14%
A53: 43 | B53: Automobile | C53: EICHERMOT | D53: 2518.45 | E53: 2501.38 | F53: 2473.42 | G53: 2428.38 | H53: 2400.42 | I53: 2546.42 | J53: 2574.38 | K53: 2619.42 | L53: 2529.35 | M53: 2456.35 | N53: 2485350 | O53: -5.75%
A54: 44 | B54: Automobile | C54: ESCORTS | D54: 1267.05 | E54: 1267.38 | F54: 1252.87 | G54: 1238.68 | H54: 1224.17 | I54: 1281.57 | J54: 1296.08 | K54: 1310.27 | L54: 1281.9 | M54: 1253.2 | N54: 3511750 | O54: -0.95%
A55: 45 | B55: Automobile | C55: EXIDEIND | D55: 192.10 | E55: 191.20 | F55: 188.70 | G55: 185.30 | H55: 182.80 | I55: 194.60 | J55: 197.10 | K55: 200.50 | L55: 193.7 | M55: 187.8 | N55: 13730400 | O55: 3.87%
A56: 46 | B56: Banking | C56: FEDERALBNK | D56: 67.20 | E56: 67.12 | F56: 66.28 | G56: 65.37 | H56: 64.53 | I56: 68.03 | J56: 68.87 | K56: 69.78 | L56: 67.95 | M56: 66.2 | N56: 90835500 | O56: -0.81%
A57: 47 | B57: Oil_Gas | C57: GAIL | D57: 123.15 | E57: 123.13 | F57: 121.72 | G57: 120.28 | H57: 118.87 | I57: 124.57 | J57: 125.98 | K57: 127.42 | L57: 124.55 | M57: 121.7 | N57: 31012400 | O57: 3.31%
A58: 48 | B58: Pharma | C58: GLENMARK | D58: 498.80 | E58: 497.22 | F58: 494.78 | G58: 490.77 | H58: 488.33 | I58: 501.23 | J58: 503.67 | K58: 507.68 | L58: 499.65 | M58: 493.2 | N58: 5727000 | O58: -8.76%
A59: 49 | B59: Infrastructure | C59: GMRINFRA | D59: 27.35 | E59: 27.25 | F59: 26.40 | G59: 25.45 | H59: 24.60 | I59: 28.20 | J59: 29.05 | K59: 30.00 | L59: 28.1 | M59: 26.3 | N59: 138060000 | O59: 70.78%
A60: 50 | B60: FMCG | C60: GODREJCP | D60: 750.00 | E60: 748.72 | F60: 739.43 | G60: 728.87 | H60: 719.58 | I60: 759.28 | J60: 768.57 | K60: 779.13 | L60: 758 | M60: 738.15 | N60: 5649000 | O60: 1.29%
A61: 51 | B61: Others | C61: GODREJPROP | D61: 1396.85 | E61: 1396.13 | F61: 1376.42 | G61: 1355.98 | H61: 1336.27 | I61: 1416.57 | J61: 1436.28 | K61: 1456.72 | L61: 1415.85 | M61: 1375.7 | N61: 1383850 | O61: -9.29%
A62: 52 | B62: Cement | C62: GRASIM | D62: 936.20 | E62: 924.78 | F62: 910.57 | G62: 884.93 | H62: 870.72 | I62: 950.42 | J62: 964.63 | K62: 990.27 | L62: 939 | M62: 899.15 | N62: 18529750 | O62: -0.58%
A63: 53 | B63: Others | C63: HAVELLS | D63: 905.05 | E63: 904.63 | F63: 898.42 | G63: 891.78 | H63: 885.57 | I63: 911.27 | J63: 917.48 | K63: 924.12 | L63: 910.85 | M63: 898 | N63: 3803000 | O63: -6.74%
A64: 54 | B64: Technology | C64: HCLTECH | D64: 940.65 | E64: 940.55 | F64: 931.40 | G64: 922.15 | H64: 913.00 | I64: 949.80 | J64: 958.95 | K64: 968.20 | L64: 949.7 | M64: 931.3 | N64: 19739300 | O64: -3.52%
A65: 55 | B65: Finance | C65: HDFC | D65: 2519.10 | E65: 2509.55 | F65: 2495.95 | G65: 2472.80 | H65: 2459.20 | I65: 2532.70 | J65: 2546.30 | K65: 2569.45 | L65: 2523.15 | M65: 2486.4 | N65: 21033300 | O65: 0.30%
A66: 56 | B66: Banking | C66: HDFCBANK | D66: 1435.75 | E66: 1430.45 | F66: 1420.55 | G66: 1405.35 | H66: 1395.45 | I66: 1445.65 | J66: 1455.55 | K66: 1470.75 | L66: 1440.35 | M66: 1415.25 | N66: 30250550 | O66: -0.66%
A67: 57 | B67: Finance | C67: HDFCLIFE | D67: 675.35 | E67: 673.37 | F67: 668.43 | G67: 661.52 | H67: 656.58 | I67: 680.28 | J67: 685.22 | K67: 692.13 | L67: 678.3 | M67: 666.45 | N67: 12631300 | O67: -3.17%
A68: 58 | B68: Automobile | C68: HEROMOTOCO | D68: 3104.95 | E68: 3093.75 | F68: 3076.50 | G68: 3048.05 | H68: 3030.80 | I68: 3122.20 | J68: 3139.45 | K68: 3167.90 | L68: 3111 | M68: 3065.3 | N68: 3702600 | O68: -6.65%
A69: 59 | B69: Metals | C69: HINDALCO | D69: 237.60 | E69: 236.70 | F69: 233.90 | G69: 230.20 | H69: 227.40 | I69: 240.40 | J69: 243.20 | K69: 246.90 | L69: 239.5 | M69: 233 | N69: 30388100 | O69: -0.97%
A70: 60 | B70: Oil_Gas | C70: HINDPETRO | D70: 216.45 | E70: 215.75 | F70: 214.55 | G70: 212.65 | H70: 211.45 | I70: 217.65 | J70: 218.85 | K70: 220.75 | L70: 216.95 | M70: 213.85 | N70: 28406700 | O70: -1.70%
A71: 61 | B71: FMCG | C71: HINDUNILVR | D71: 2405.45 | E71: 2399.28 | F71: 2384.12 | G71: 2362.78 | H71: 2347.62 | I71: 2420.62 | J71: 2435.78 | K71: 2457.12 | L71: 2414.45 | M71: 2377.95 | N71: 5777400 | O71: -0.78%
A72: 62 | B72: Finance | C72: IBULHSGFIN | D72: 215.20 | E72: 214.88 | F72: 211.87 | G72: 208.53 | H72: 205.52 | I72: 218.22 | J72: 221.23 | K72: 224.57 | L72: 217.9 | M72: 211.55 | N72: 30209500 | O72: -3.03%
A73: 63 | B73: Banking | C73: ICICIBANK | D73: 528.60 | E73: 528.62 | F73: 524.33 | G73: 520.07 | H73: 515.78 | I73: 532.88 | J73: 537.17 | K73: 541.43 | L73: 532.9 | M73: 524.35 | N73: 86131375 | O73: -0.61%
A74: 64 | B74: Finance | C74: ICICIGI | D74: 1511.05 | E74: 1515.35 | F74: 1490.75 | G74: 1470.45 | H74: 1445.85 | I74: 1535.65 | J74: 1560.25 | K74: 1580.55 | L74: 1539.95 | M74: 1495.05 | N74: 613700 | O74: -7.44%
A75: 65 | B75: Finance | C75: ICICIPRULI | D75: 499.30 | E75: 497.60 | F75: 494.55 | G75: 489.80 | H75: 486.75 | I75: 502.35 | J75: 505.40 | K75: 510.15 | L75: 500.65 | M75: 492.85 | N75: 4447500 | O75: -8.26%
A76: 66 | B76: Telecom | C76: IDEA | D76: 10.25 | E76: 10.22 | F76: 10.13 | G76: 10.02 | H76: 9.93 | I76: 10.33 | J76: 10.42 | K76: 10.53 | L76: 10.3 | M76: 10.1 | N76: 986230000 | O76: -4.22%
A77: 67 | B77: Banking | C77: IDFCFIRSTB | D77: 36.85 | E77: 36.52 | F77: 36.18 | G77: 35.52 | H77: 35.18 | I77: 37.18 | J77: 37.52 | K77: 38.18 | L77: 36.85 | M77: 35.85 | N77: 143222000 | O77: -12.70%
A78: 68 | B78: Oil_Gas | C78: IGL | D78: 506.05 | E78: 509.35 | F78: 499.40 | G78: 492.75 | H78: 482.80 | I78: 516.00 | J78: 525.95 | K78: 532.60 | L78: 519.3 | M78: 502.7 | N78: 7621625 | O78: -1.93%
A79: 69 | B79: Others | C79: INDIGO | D79: 1686.80 | E79: 1687.22 | F79: 1674.78 | G79: 1662.77 | H79: 1650.33 | I79: 1699.23 | J79: 1711.67 | K79: 1723.68 | L79: 1699.65 | M79: 1675.2 | N79: 3231000 | O79: -6.62%
A80: 70 | B80: Banking | C80: INDUSINDBK | D80: 899.50 | E80: 903.37 | F80: 884.28 | G80: 869.07 | H80: 849.98 | I80: 918.58 | J80: 937.67 | K80: 952.88 | L80: 922.45 | M80: 888.15 | N80: 16857900 | O80: -6.89%
A81: 71 | B81: Telecom | C81: INDUSTOWER | D81: 231.95 | E81: 233.05 | F81: 228.50 | G81: 225.05 | H81: 220.50 | I81: 236.50 | J81: 241.05 | K81: 244.50 | L81: 237.6 | M81: 229.6 | N81: 11748800 | O81: 3.99%
A82: 72 | B82: Technology | C82: INFY | D82: 1246.65 | E82: 1246.37 | F82: 1238.78 | G82: 1230.92 | H82: 1223.33 | I82: 1254.23 | J82: 1261.82 | K82: 1269.68 | L82: 1253.95 | M82: 1238.5 | N82: 34488000 | O82: 0.81%
A83: 73 | B83: Oil_Gas | C83: IOC | D83: 91.00 | E83: 90.82 | F83: 90.13 | G83: 89.27 | H83: 88.58 | I83: 91.68 | J83: 92.37 | K83: 93.23 | L83: 91.5 | M83: 89.95 | N83: 51876900 | O83: -5.90%
A84: 74 | B84: FMCG | C84: ITC | D84: 211.35 | E84: 211.53 | F84: 209.62 | G84: 207.88 | H84: 205.97 | I84: 213.27 | J84: 215.18 | K84: 216.92 | L84: 213.45 | M84: 209.8 | N84: 87555200 | O84: 1.22%
A85: 75 | B85: Metals | C85: JINDALSTEL | D85: 266.25 | E85: 265.25 | F85: 261.30 | G85: 256.35 | H85: 252.40 | I85: 270.20 | J85: 274.15 | K85: 279.10 | L85: 269.2 | M85: 260.3 | N85: 25410000 | O85: -5.15%
A86: 76 | B86: Metals | C86: JSWSTEEL | D86: 386.15 | E86: 384.28 | F86: 381.02 | G86: 375.88 | H86: 372.62 | I86: 389.42 | J86: 392.68 | K86: 397.82 | L86: 387.55 | M86: 379.15 | N86: 34859700 | O86: -0.34%
A87: 77 | B87: Others | C87: JUBLFOOD | D87: 2681.25 | E87: 2690.08 | F87: 2656.17 | G87: 2631.08 | H87: 2597.17 | I87: 2715.17 | J87: 2749.08 | K87: 2774.17 | L87: 2724 | M87: 2665 | N87: 1507750 | O87: -2.77%
A88: 78 | B88: Banking | C88: KOTAKBANK | D88: 2019.85 | E88: 2015.60 | F88: 2002.55 | G88: 1985.25 | H88: 1972.20 | I88: 2032.90 | J88: 2045.95 | K88: 2063.25 | L88: 2028.65 | M88: 1998.3 | N88: 19522800 | O88: -0.83%
A89: 79 | B89: Finance | C89: L&TFH | D89: 93.25 | E89: 93.28 | F89: 92.17 | G89: 91.08 | H89: 89.97 | I89: 94.37 | J89: 95.48 | K89: 96.57 | L89: 94.4 | M89: 92.2 | N89: 22950700 | O89: -2.43%
A90: 80 | B90: Finance | C90: LICHSGFIN | D90: 361.05 | E90: 360.55 | F90: 356.70 | G90: 352.35 | H90: 348.50 | I90: 364.90 | J90: 368.75 | K90: 373.10 | L90: 364.4 | M90: 356.2 | N90: 7320000 | O90: -1.11%
A91: 81 | B91: Capital_Goods | C91: LT | D91: 1292.80 | E91: 1286.97 | F91: 1276.83 | G91: 1260.87 | H91: 1250.73 | I91: 1302.93 | J91: 1313.07 | K91: 1329.03 | L91: 1297.1 | M91: 1271 | N91: 15080075 | O91: -2.73%
A92: 82 | B92: Pharma | C92: LUPIN | D92: 976.70 | E92: 973.43 | F92: 967.77 | G92: 958.83 | H92: 953.17 | I92: 982.37 | J92: 988.03 | K92: 996.97 | L92: 979.1 | M92: 964.5 | N92: 7942400 | O92: -6.20%
A93: 83 | B93: Automobile | C93: M&M | D93: 720.75 | E93: 716.92 | F93: 709.83 | G93: 698.92 | H93: 691.83 | I93: 727.83 | J93: 734.92 | K93: 745.83 | L93: 724 | M93: 706 | N93: 12896800 | O93: -4.50%
A94: 84 | B94: Finance | C94: M&MFIN | D94: 174.35 | E94: 174.33 | F94: 172.32 | G94: 170.28 | H94: 168.27 | I94: 176.37 | J94: 178.38 | K94: 180.42 | L94: 176.35 | M94: 172.3 | N94: 13937888 | O94: 0.31%
A95: 85 | B95: Finance | C95: MANAPPURAM | D95: 165.65 | E95: 165.38 | F95: 164.02 | G95: 162.38 | H95: 161.02 | I95: 167.02 | J95: 168.38 | K95: 170.02 | L95: 166.75 | M95: 163.75 | N95: 18648000 | O95: -1.05%
A96: 86 | B96: FMCG | C96: MARICO | D96: 403.50 | E96: 404.90 | F96: 399.55 | G96: 395.60 | H96: 390.25 | I96: 408.85 | J96: 414.20 | K96: 418.15 | L96: 410.25 | M96: 400.95 | N96: 9726000 | O96: 1.55%
A97: 87 | B97: Automobile | C97: MARUTI | D97: 7609.65 | E97: 7554.40 | F97: 7486.40 | G97: 7363.15 | H97: 7295.15 | I97: 7677.65 | J97: 7745.65 | K97: 7868.90 | L97: 7622.4 | M97: 7431.15 | N97: 2521300 | O97: -5.96%
A98: 88 | B98: FMCG | C98: MCDOWELL-N | D98: 577.20 | E98: 576.48 | F98: 572.57 | G98: 567.93 | H98: 564.02 | I98: 581.12 | J98: 585.03 | K98: 589.67 | L98: 580.4 | M98: 571.85 | N98: 11550000 | O98: -3.86%
A99: 89 | B99: Finance | C99: MFSL | D99: 683.75 | E99: 682.35 | F99: 674.65 | G99: 665.55 | H99: 657.85 | I99: 691.45 | J99: 699.15 | K99: 708.25 | L99: 690.05 | M99: 673.25 | N99: 7686900 | O99: 2.73%
A100: 90 | B100: Oil_Gas | C100: MGL | D100: 1070.40 | E100: 1076.33 | F100: 1058.67 | G100: 1046.93 | H100: 1029.27 | I100: 1088.07 | J100: 1105.73 | K100: 1117.47 | L100: 1094 | M100: 1064.6 | N100: 1405800 | O100: -2.66%
A101: 91 | B101: Technology | C101: MINDTREE | D101: 1631.45 | E101: 1626.40 | F101: 1616.05 | G101: 1600.65 | H101: 1590.30 | I101: 1641.80 | J101: 1652.15 | K101: 1667.55 | L101: 1636.75 | M101: 1611 | N101: 1589600 | O101: -5.87%
A102: 92 | B102: Automobile | C102: MOTHERSUMI | D102: 160.40 | E102: 159.12 | F102: 157.08 | G102: 153.77 | H102: 151.73 | I102: 162.43 | J102: 164.47 | K102: 167.78 | L102: 161.15 | M102: 155.8 | N102: 22043000 | O102: -2.69%
A103: 93 | B103: Automobile | C103: MRF | D103: 77096.10 | E103: 76699.87 | F103: 75771.38 | G103: 74446.67 | H103: 73518.18 | I103: 78024.58 | J103: 78953.07 | K103: 80277.78 | L103: 77628.35 | M103: 75375.15 | N103: 47620 | O103: -5.44%
A104: 94 | B104: Finance | C104: MUTHOOTFIN | D104: 1211.30 | E104: 1210.57 | F104: 1202.38 | G104: 1193.47 | H104: 1185.28 | I104: 1219.48 | J104: 1227.67 | K104: 1236.58 | L104: 1218.75 | M104: 1201.65 | N104: 4475250 | O104: -5.42%
A105: 95 | B105: Metals | C105: NATIONALUM | D105: 41.60 | E105: 41.63 | F105: 41.02 | G105: 40.43 | H105: 39.82 | I105: 42.22 | J105: 42.83 | K105: 43.42 | L105: 42.25 | M105: 41.05 | N105: 61302000 | O105: -2.72%
A106: 96 | B106: Others | C106: NAUKRI | D106: 4776.65 | E106: 4749.13 | F106: 4704.27 | G106: 4631.88 | H106: 4587.02 | I106: 4821.52 | J106: 4866.38 | K106: 4938.77 | L106: 4794 | M106: 4676.75 | N106: 805500 | O106: -1.47%
A107: 97 | B107: FMCG | C107: NESTLEIND | D107: 18416.35 | E107: 18393.73 | F107: 18302.62 | G107: 18188.88 | H107: 18097.77 | I107: 18507.47 | J107: 18598.58 | K107: 18712.32 | L107: 18484.85 | M107: 18280 | N107: 292500 | O107: -6.46%
A108: 98 | B108: Metals | C108: NMDC | D108: 116.20 | E108: 115.32 | F108: 113.63 | G108: 111.07 | H108: 109.38 | I108: 117.88 | J108: 119.57 | K108: 122.13 | L108: 117 | M108: 112.75 | N108: 36615500 | O108: 1.30%
A109: 99 | B109: Power | C109: NTPC | D109: 99.25 | E109: 99.13 | F109: 98.47 | G109: 97.68 | H109: 97.02 | I109: 99.92 | J109: 100.58 | K109: 101.37 | L109: 99.8 | M109: 98.35 | N109: 63201600 | O109: -9.15%
A110: 100 | B110: Oil_Gas | C110: ONGC | D110: 93.35 | E110: 93.52 | F110: 92.53 | G110: 91.72 | H110: 90.73 | I110: 94.33 | J110: 95.32 | K110: 96.13 | L110: 94.5 | M110: 92.7 | N110: 49156800 | O110: -5.87%
A111: 101 | B111: Textile | C111: PAGEIND | D111: 27303.70 | E111: 27235.02 | F111: 26736.98 | G111: 26170.27 | H111: 25672.23 | I111: 27801.73 | J111: 28299.77 | K111: 28866.48 | L111: 27733.05 | M111: 26668.3 | N111: 71640 | O111: -1.85%
A112: 102 | B112: Pharma | C112: PEL | D112: 1438.05 | E112: 1427.95 | F112: 1413.30 | G112: 1388.55 | H112: 1373.90 | I112: 1452.70 | J112: 1467.35 | K112: 1492.10 | L112: 1442.6 | M112: 1403.2 | N112: 4462700 | O112: 1.93%
A113: 103 | B113: Oil_Gas | C113: PETRONET | D113: 246.85 | E113: 247.73 | F113: 244.27 | G113: 241.68 | H113: 238.22 | I113: 250.32 | J113: 253.78 | K113: 256.37 | L113: 251.2 | M113: 245.15 | N113: 16005000 | O113: 1.25%
A114: 104 | B114: Finance | C114: PFC | D114: 114.55 | E114: 114.60 | F114: 113.40 | G114: 112.25 | H114: 111.05 | I114: 115.75 | J114: 116.95 | K114: 118.10 | L114: 115.8 | M114: 113.45 | N114: 29115200 | O114: 8.83%
A115: 105 | B115: FMCG | C115: PIDILITIND | D115: 1752.55 | E115: 1753.78 | F115: 1740.57 | G115: 1728.58 | H115: 1715.37 | I115: 1765.77 | J115: 1778.98 | K115: 1790.97 | L115: 1767 | M115: 1741.8 | N115: 3088500 | O115: -0.42%
A116: 106 | B116: Banking | C116: PNB | D116: 32.75 | E116: 32.78 | F116: 32.22 | G116: 31.68 | H116: 31.12 | I116: 33.32 | J116: 33.88 | K116: 34.42 | L116: 33.35 | M116: 32.25 | N116: 126104000 | O116: -5.62%
A117: 107 | B117: Power | C117: POWERGRID | D117: 190.15 | E117: 189.30 | F117: 188.15 | G117: 186.15 | H117: 185.00 | I117: 191.30 | J117: 192.45 | K117: 194.45 | L117: 190.45 | M117: 187.3 | N117: 19072000 | O117: -2.13%
A118: 108 | B118: Media | C118: PVR | D118: 1288.60 | E118: 1286.77 | F118: 1272.93 | G118: 1257.27 | H118: 1243.43 | I118: 1302.43 | J118: 1316.27 | K118: 1331.93 | L118: 1300.6 | M118: 1271.1 | N118: 1757426 | O118: -9.40%
A119: 109 | B119: Cement | C119: RAMCOCEM | D119: 814.70 | E119: 802.30 | F119: 787.40 | G119: 760.10 | H119: 745.20 | I119: 829.60 | J119: 844.50 | K119: 871.80 | L119: 817.2 | M119: 775 | N119: 1697450 | O119: -4.17%
A120: 110 | B120: Banking | C120: RBLBANK | D120: 232.10 | E120: 231.22 | F120: 228.73 | G120: 225.37 | H120: 222.88 | I120: 234.58 | J120: 237.07 | K120: 240.43 | L120: 233.7 | M120: 227.85 | N120: 17729600 | O120: -14.28%
A121: 111 | B121: Power | C121: RECLTD | D121: 132.80 | E121: 133.32 | F121: 131.13 | G121: 129.47 | H121: 127.28 | I121: 134.98 | J121: 137.17 | K121: 138.83 | L121: 135.5 | M121: 131.65 | N121: 15930000 | O121: 3.27%
A122: 112 | B122: Oil_Gas | C122: RELIANCE | D122: 1995.70 | E122: 1993.68 | F122: 1977.57 | G122: 1959.43 | H122: 1943.32 | I122: 2011.82 | J122: 2027.93 | K122: 2046.07 | L122: 2009.8 | M122: 1975.55 | N122: 33174100 | O122: -0.06%
A123: 113 | B123: Metals | C123: SAIL | D123: 69.50 | E123: 67.92 | F123: 65.33 | G123: 61.17 | H123: 58.58 | I123: 72.08 | J123: 74.67 | K123: 78.83 | L123: 70.5 | M123: 63.75 | N123: 97926000 | O123: -10.37%
A124: 114 | B124: Finance | C124: SBILIFE | D124: 903.90 | E124: 901.68 | F124: 892.82 | G124: 881.73 | H124: 872.87 | I124: 912.77 | J124: 921.63 | K124: 932.72 | L124: 910.55 | M124: 890.6 | N124: 6396000 | O124: 0.41%
A125: 115 | B125: Banking | C125: SBIN | D125: 276.90 | E125: 276.23 | F125: 273.57 | G125: 270.23 | H125: 267.57 | I125: 279.57 | J125: 282.23 | K125: 285.57 | L125: 278.9 | M125: 272.9 | N125: 74685000 | O125: -2.04%
A126: 116 | B126: Cement | C126: SHREECEM | D126: 24617.75 | E126: 24373.63 | F126: 24057.12 | G126: 23496.48 | H126: 23179.97 | I126: 24934.27 | J126: 25250.78 | K126: 25811.42 | L126: 24690.15 | M126: 23813 | N126: 155800 | O126: -6.57%
A127: 117 | B127: Capital_Goods | C127: SIEMENS | D127: 1573.20 | E127: 1570.23 | F127: 1555.17 | G127: 1537.13 | H127: 1522.07 | I127: 1588.27 | J127: 1603.33 | K127: 1621.37 | L127: 1585.3 | M127: 1552.2 | N127: 1465200 | O127: -1.08%
A128: 118 | B128: Textile | C128: SRF | D128: 5514.35 | E128: 5524.70 | F128: 5466.45 | G128: 5418.55 | H128: 5360.30 | I128: 5572.60 | J128: 5630.85 | K128: 5678.75 | L128: 5582.95 | M128: 5476.8 | N128: 345500 | O128: -6.72%
A129: 119 | B129: Finance | C129: SRTRANSFIN | D129: 1039.55 | E129: 1043.32 | F129: 1028.48 | G129: 1017.42 | H129: 1002.58 | I129: 1054.38 | J129: 1069.22 | K129: 1080.28 | L129: 1058.15 | M129: 1032.25 | N129: 4534386 | O129: -3.80%
A130: 120 | B130: Pharma | C130: SUNPHARMA | D130: 583.75 | E130: 586.23 | F130: 578.67 | G130: 573.58 | H130: 566.02 | I130: 591.32 | J130: 598.88 | K130: 603.97 | L130: 593.8 | M130: 581.15 | N130: 42221200 | O130: 9.69%
A131: 121 | B131: Media | C131: SUNTV | D131: 479.65 | E131: 480.15 | F131: 473.50 | G131: 467.35 | H131: 460.70 | I131: 486.30 | J131: 492.95 | K131: 499.10 | L131: 486.8 | M131: 474 | N131: 10980000 | O131: -5.18%
A132: 122 | B132: Fertilisers | C132: TATACHEM | D132: 480.30 | E132: 479.78 | F132: 474.27 | G132: 468.23 | H132: 462.72 | I132: 485.82 | J132: 491.33 | K132: 497.37 | L132: 485.3 | M132: 473.75 | N132: 8058000 | O132: -1.27%
A133: 123 | B133: Others | C133: TATACONSUM | D133: 595.15 | E133: 596.65 | F133: 589.50 | G133: 583.85 | H133: 576.70 | I133: 602.30 | J133: 609.45 | K133: 615.10 | L133: 603.8 | M133: 591 | N133: 12506400 | O133: -0.77%
A134: 124 | B134: Automobile | C134: TATAMOTORS | D134: 184.55 | E134: 183.57 | F134: 181.48 | G134: 178.42 | H134: 176.33 | I134: 186.63 | J134: 188.72 | K134: 191.78 | L134: 185.65 | M134: 180.5 | N134: 72669300 | O134: 0.52%
A135: 125 | B135: Power | C135: TATAPOWER | D135: 76.00 | E135: 76.10 | F135: 75.10 | G135: 74.20 | H135: 73.20 | I135: 77.00 | J135: 78.00 | K135: 78.90 | L135: 77.1 | M135: 75.2 | N135: 96241500 | O135: -8.47%
A136: 126 | B136: Metals | C136: TATASTEEL | D136: 641.25 | E136: 636.92 | F136: 629.83 | G136: 618.42 | H136: 611.33 | I136: 648.33 | J136: 655.42 | K136: 666.83 | L136: 644 | M136: 625.5 | N136: 40385200 | O136: 0.30%
A137: 127 | B137: Technology | C137: TCS | D137: 2911.85 | E137: 2921.78 | F137: 2896.12 | G137: 2880.38 | H137: 2854.72 | I137: 2937.52 | J137: 2963.18 | K137: 2978.92 | L137: 2947.45 | M137: 2906.05 | N137: 5447700 | O137: -2.92%
A138: 128 | B138: Technology | C138: TECHM | D138: 982.30 | E138: 978.57 | F138: 972.43 | G138: 962.57 | H138: 956.43 | I138: 988.43 | J138: 994.57 | K138: 1004.43 | L138: 984.7 | M138: 968.7 | N138: 11200800 | O138: -2.18%
A139: 129 | B139: FMCG | C139: TITAN | D139: 1552.20 | E139: 1547.72 | F139: 1539.98 | G139: 1527.77 | H139: 1520.03 | I139: 1559.93 | J139: 1567.67 | K139: 1579.88 | L139: 1555.45 | M139: 1535.5 | N139: 5991750 | O139: -1.10%
A140: 130 | B140: Pharma | C140: TORNTPHARM | D140: 2784.50 | E140: 2772.75 | F140: 2746.75 | G140: 2709.00 | H140: 2683.00 | I140: 2810.50 | J140: 2836.50 | K140: 2874.25 | L140: 2798.75 | M140: 2735 | N140: 769000 | O140: -6.99%
A141: 131 | B141: Power | C141: TORNTPOWER | D141: 319.05 | E141: 318.00 | F141: 316.25 | G141: 313.45 | H141: 311.70 | I141: 320.80 | J141: 322.55 | K141: 325.35 | L141: 319.75 | M141: 315.2 | N141: 3612000 | O141: -3.68%
A142: 132 | B142: Automobile | C142: TVSMOTOR | D142: 487.00 | E142: 485.20 | F142: 481.05 | G142: 475.10 | H142: 470.95 | I142: 491.15 | J142: 495.30 | K142: 501.25 | L142: 489.35 | M142: 479.25 | N142: 4330200 | O142: -5.33%
A143: 133 | B143: FMCG | C143: UBL | D143: 1160.75 | E143: 1156.90 | F143: 1144.80 | G143: 1128.85 | H143: 1116.75 | I143: 1172.85 | J143: 1184.95 | K143: 1200.90 | L143: 1169 | M143: 1140.95 | N143: 1435700 | O143: -12.50%
A144: 134 | B144: Cement | C144: ULTRACEMCO | D144: 5357.25 | E144: 5287.65 | F144: 5188.10 | G144: 5018.95 | H144: 4919.40 | I144: 5456.80 | J144: 5556.35 | K144: 5725.50 | L144: 5387.2 | M144: 5118.5 | N144: 1321600 | O144: -4.92%
A145: 135 | B145: Fertilisers | C145: UPL | D145: 467.80 | E145: 467.75 | F145: 461.95 | G145: 456.10 | H145: 450.30 | I145: 473.60 | J145: 479.40 | K145: 485.25 | L145: 473.55 | M145: 461.9 | N145: 20776600 | O145: 0.88%
A146: 136 | B146: Metals | C146: VEDL | D146: 162.15 | E146: 160.32 | F146: 157.93 | G146: 153.72 | H146: 151.33 | I146: 164.53 | J146: 166.92 | K146: 171.13 | L146: 162.7 | M146: 156.1 | N146: 83067600 | O146: 0.37%
A147: 137 | B147: Capital_Goods | C147: VOLTAS | D147: 820.85 | E147: 818.02 | F147: 814.13 | G147: 807.42 | H147: 803.53 | I147: 824.73 | J147: 828.62 | K147: 835.33 | L147: 821.9 | M147: 811.3 | N147: 2217000 | O147: -15.32%
A148: 138 | B148: Technology | C148: WIPRO | D148: 384.55 | E148: 384.65 | F148: 382.60 | G148: 380.65 | H148: 378.60 | I148: 386.60 | J148: 388.65 | K148: 390.60 | L148: 386.7 | M148: 382.7 | N148: 29708800 | O148: -5.56%
A149: 139 | B149: Media | C149: ZEEL | D149: 219.00 | E149: 217.83 | F149: 215.57 | G149: 212.13 | H149: 209.87 | I149: 221.27 | J149: 223.53 | K149: 226.97 | L149: 220.1 | M149: 214.4 | N149: 30699000 | O149: -0.60%
A150: 140
A151: 141
A152: 142
A153: 143
A154: 144
A155: 145
A156: 146
A157: 147
A175: Pivot Point: This is trigger point for intra day buy/sell based on the price range of the previous day
A176: As per the tool,the trader should take BUY position just above Pivot and keep the stop loss of pivot point and the first target would be Resistance 1(R1)
A177: If R1 is crossed then R2 becomes the next target with stop loss of at R1
A178: Similarly if price goes below pivot point then the trader should sell and keep a stop loss of pivot point and the first target would be S1
A179: If S1 is crossed then S2 becomes the next target with stop loss of at S1
A181: Disclaimer:
A182: This document has been prepared by the Retail Research Desk of Asit C Mehta
A183: Investment Intermediates Ltd. and is meant for use of the recipient only
A184: and is not for circulation. This document is not to be reported or
A185: copied or made available to others. It should not be considered to be
A186: taken as an offer to sell or a solicitation to buy any security. The
A187: information contained herein is from sources believed reliable. We do
A188: not represent that it is accurate or complete and it should not be
A189: relied upon as such. We may from time to time have positions in and buy
A190: and sell securities referred to herein

Sheet Cash Intra
M5: Back to Main Page
A6: FOR INTRA DAY TRADING | K6: =Main!B10 -> 2020-12-31
A8: Sr.no | B8: Scrip | C8: CLOSE RATE | D8: Pivot Point | E8: Supports | H8: Resistances
C9: Point | E9: S1 | F9: S2 | G9: S3 | H9: R1 | I9: R2 | J9: R3 | K9: HIGH | L9: LOW | M9: Total Trade Quanity in Lakhs
A10: 1 | B10: Nifty 50 | C10: 13981.95 | D10: 13947.97 | E10: 13898.93 | F10: 13815.92 | G10: 13766.88 | H10: 14030.98 | I10: 14080.02 | J10: 14163.03 | K10: 13997 | L10: 13864.95
A11: 2 | B11: Nifty Bank | C11: 31303.05 | D11: 31273.48 | E11: 31036.72 | F11: 30770.38 | G11: 30533.62 | H11: 31539.82 | I11: 31776.58 | J11: 32042.92 | K11: 31510.25 | L11: 31007.15
A12: 3 | B12: Nifty CPSE | C12: 1627.5 | D12: 1624.03 | E12: 1617.02 | F12: 1606.53 | G12: 1599.52 | H12: 1634.52 | I12: 1641.53 | J12: 1652.02 | K12: 1631.05 | L12: 1613.55
A13: 4 | B13: Nifty Infra | C13: 3669.25 | D13: 3657.12 | E13: 3639.03 | F13: 3608.82 | G13: 3590.73 | H13: 3687.33 | I13: 3705.42 | J13: 3735.63 | K13: 3675.2 | L13: 3626.9
A14: 5 | B14: Nifty IT | C14: 24330.05 | D14: 24300.35 | E14: 24205.95 | F14: 24081.85 | G14: 23987.45 | H14: 24424.45 | I14: 24518.85 | J14: 24642.95 | K14: 24394.75 | L14: 24176.25
A15: 6 | B15: Nifty PSE | C15: 2789.25 | D15: 2782.63 | E15: 2770.07 | F15: 2750.88 | G15: 2738.32 | H15: 2801.82 | I15: 2814.38 | J15: 2833.57 | K15: 2795.2 | L15: 2763.45
A16: 7 | B16: Nifty Midcap 50 | C16: 5830.55 | D16: 5816.68 | E16: 5789.17 | F16: 5747.78 | G16: 5720.27 | H16: 5858.07 | I16: 5885.58 | J16: 5926.97 | K16: 5844.2 | L16: 5775.3
A17: 8 | B17: AARTIIND | C17: 1219.4 | D17: 1221.25 | E17: 1205.45 | F17: 1191.50 | G17: 1175.70 | H17: 1235.20 | I17: 1251.00 | J17: 1264.95 | K17: 1237.05 | L17: 1207.3 | M17: 1.9418
A18: 9 | B18: ABBOTINDIA | C18: 15628.4 | D18: 15689.48 | E18: 15538.92 | F18: 15449.43 | G18: 15298.87 | H18: 15778.97 | I18: 15929.53 | J18: 16019.02 | K18: 15840.05 | L18: 15600 | M18: 0.11997
A19: 10 | B19: ABCAPITAL | C19: 85.7 | D19: 84.98 | E19: 83.97 | F19: 82.23 | G19: 81.22 | H19: 86.72 | I19: 87.73 | J19: 89.47 | K19: 86 | L19: 83.25 | M19: 22.60956
A20: 11 | B20: ABFRL | C20: 165.3 | D20: 164.97 | E20: 163.28 | F20: 161.27 | G20: 159.58 | H20: 166.98 | I20: 168.67 | J20: 170.68 | K20: 166.65 | L20: 162.95 | M20: 7.341
A21: 12 | B21: ACC | C21: 1648.25 | D21: 1633.60 | E21: 1614.65 | F21: 1581.05 | G21: 1562.10 | H21: 1667.20 | I21: 1686.15 | J21: 1719.75 | K21: 1652.55 | L21: 1600 | M21: 17.18433
A22: 13 | B22: ADANIGAS | C22: 380.4 | D22: 379.85 | E22: 370.05 | F22: 359.70 | G22: 349.90 | H22: 390.20 | I22: 400.00 | J22: 410.35 | K22: 389.65 | L22: 369.5 | M22: 36.41617
A23: 14 | B23: ADANIPORTS | C23: 485.4 | D23: 483.72 | E23: 479.83 | F23: 474.27 | G23: 470.38 | H23: 489.28 | I23: 493.17 | J23: 498.73 | K23: 487.6 | L23: 478.15 | M23: 37.36356
A24: 15 | B24: ADANIPOWER | C24: 50.05 | D24: 50.13 | E24: 49.17 | F24: 48.28 | G24: 47.32 | H24: 51.02 | I24: 51.98 | J24: 52.87 | K24: 51.1 | L24: 49.25 | M24: 61.46258
A25: 16 | B25: ADANITRANS | C25: 436.2 | D25: 436.20 | E25: 425.00 | F25: 413.80 | G25: 402.60 | H25: 447.40 | I25: 458.60 | J25: 469.80 | K25: 447.4 | L25: 425 | M25: 13.24653
A26: 17 | B26: AJANTPHARM | C26: 1669.35 | D26: 1673.12 | E26: 1661.23 | F26: 1653.12 | G26: 1641.23 | H26: 1681.23 | I26: 1693.12 | J26: 1701.23 | K26: 1685 | L26: 1665 | M26: 0.43738
A27: 18 | B27: ALKEM | C27: 2928.45 | D27: 2930.50 | E27: 2903.00 | F27: 2877.55 | G27: 2850.05 | H27: 2955.95 | I27: 2983.45 | J27: 3008.90 | K27: 2958 | L27: 2905.05 | M27: 0.42969
A28: 19 | B28: AMARAJABAT | C28: 935.95 | D28: 937.25 | E28: 928.70 | F28: 921.45 | G28: 912.90 | H28: 944.50 | I28: 953.05 | J28: 960.30 | K28: 945.8 | L28: 930 | M28: 7.01642
A29: 20 | B29: AMBUJACEM | C29: 252.4 | D29: 249.03 | E29: 245.07 | F29: 237.73 | G29: 233.77 | H29: 256.37 | I29: 260.33 | J29: 267.67 | K29: 253 | L29: 241.7 | M29: 104.81131
A30: 21 | B30: APOLLOHOSP | C30: 2396.35 | D30: 2383.85 | E30: 2363.70 | F30: 2331.05 | G30: 2310.90 | H30: 2416.50 | I30: 2436.65 | J30: 2469.30 | K30: 2404 | L30: 2351.2 | M30: 5.69168
A31: 22 | B31: APOLLOTYRE | C31: 179.9 | D31: 180.25 | E31: 178.15 | F31: 176.40 | G31: 174.30 | H31: 182.00 | I31: 184.10 | J31: 185.85 | K31: 182.35 | L31: 178.5 | M31: 57.49554
A32: 23 | B32: ASHOKLEY | C32: 94.8 | D32: 94.52 | E32: 94.03 | F32: 93.27 | G32: 92.78 | H32: 95.28 | I32: 95.77 | J32: 96.53 | K32: 95 | L32: 93.75 | M32: 132.73848
A33: 24 | B33: ASIANPAINT | C33: 2734.4 | D33: 2719.20 | E33: 2695.55 | F33: 2656.70 | G33: 2633.05 | H33: 2758.05 | I33: 2781.70 | J33: 2820.55 | K33: 2742.85 | L33: 2680.35 | M33: 16.14643
A34: 25 | B34: AUBANK | C34: 852.45 | D34: 851.37 | E34: 842.73 | F34: 833.02 | G34: 824.38 | H34: 861.08 | I34: 869.72 | J34: 879.43 | K34: 860 | L34: 841.65 | M34: 5.91396
A35: 26 | B35: AUROPHARMA | C35: 906.75 | D35: 902.63 | E35: 896.27 | F35: 885.78 | G35: 879.42 | H35: 913.12 | I35: 919.48 | J35: 929.97 | K35: 909 | L35: 892.15 | M35: 16.6705
A36: 27 | B36: AXISBANK | C36: 625.1 | D36: 625.77 | E36: 617.53 | F36: 609.97 | G36: 601.73 | H36: 633.33 | I36: 641.57 | J36: 649.13 | K36: 634 | L36: 618.2 | M36: 102.62221
A37: 28 | B37: BAJAJ-AUTO | C37: 3448.15 | D37: 3442.08 | E37: 3411.32 | F37: 3374.48 | G37: 3343.72 | H37: 3478.92 | I37: 3509.68 | J37: 3546.52 | K37: 3472.85 | L37: 3405.25 | M37: 6.3918
A38: 29 | B38: BAJAJFINSV | C38: 8961.7 | D38: 8967.88 | E38: 8914.82 | F38: 8867.93 | G38: 8814.87 | H38: 9014.77 | I38: 9067.83 | J38: 9114.72 | K38: 9020.95 | L38: 8921 | M38: 4.91074
A39: 30 | B39: BAJAJHLDNG | C39: 3105 | D39: 3092.60 | E39: 3060.20 | F39: 3015.40 | G39: 2983.00 | H39: 3137.40 | I39: 3169.80 | J39: 3214.60 | K39: 3125 | L39: 3047.8 | M39: 0.24651
A40: 31 | B40: BAJFINANCE | C40: 5334.15 | D40: 5285.38 | E40: 5222.77 | F40: 5111.38 | G40: 5048.77 | H40: 5396.77 | I40: 5459.38 | J40: 5570.77 | K40: 5348 | L40: 5174 | M40: 38.647
A41: 32 | B41: BALKRISIND | C41: 1615.05 | D41: 1603.00 | E41: 1582.05 | F41: 1549.05 | G41: 1528.10 | H41: 1636.00 | I41: 1656.95 | J41: 1689.95 | K41: 1623.95 | L41: 1570 | M41: 21.06717
A42: 33 | B42: BANDHANBNK | C42: 406.1 | D42: 408.37 | E42: 400.23 | F42: 394.37 | G42: 386.23 | H42: 414.23 | I42: 422.37 | J42: 428.23 | K42: 416.5 | L42: 402.5 | M42: 64.15631
A43: 34 | B43: BANKBARODA | C43: 62.1 | D43: 62.03 | E43: 60.82 | F43: 59.53 | G43: 58.32 | H43: 63.32 | I43: 64.53 | J43: 65.82 | K43: 63.25 | L43: 60.75 | M43: 331.0856
A44: 35 | B44: BANKINDIA | C44: 49.2 | D44: 49.30 | E44: 48.70 | F44: 48.20 | G44: 47.60 | H44: 49.80 | I44: 50.40 | J44: 50.90 | K44: 49.9 | L44: 48.8 | M44: 31.55428
A45: 36 | B45: BATAINDIA | C45: 1581.1 | D45: 1579.88 | E45: 1571.22 | F45: 1561.33 | G45: 1552.67 | H45: 1589.77 | I45: 1598.43 | J45: 1608.32 | K45: 1588.55 | L45: 1570 | M45: 3.20841
A46: 37 | B46: BBTC | C46: 1294.45 | D46: 1290.47 | E46: 1278.93 | F46: 1263.42 | G46: 1251.88 | H46: 1305.98 | I46: 1317.52 | J46: 1333.03 | K46: 1302 | L46: 1274.95 | M46: 0.3365
A47: 38 | B47: BEL | C47: 114.4 | D47: 114.37 | E47: 113.43 | F47: 112.47 | G47: 111.53 | H47: 115.33 | I47: 116.27 | J47: 117.23 | K47: 115.3 | L47: 113.4 | M47: 63.3221
A48: 39 | B48: BERGEPAINT | C48: 753.45 | D48: 749.17 | E48: 742.78 | F48: 732.12 | G48: 725.73 | H48: 759.83 | I48: 766.22 | J48: 776.88 | K48: 755.55 | L48: 738.5 | M48: 8.438
A49: 40 | B49: BHARATFORG | C49: 517.6 | D49: 518.98 | E49: 511.97 | F49: 506.33 | G49: 499.32 | H49: 524.62 | I49: 531.63 | J49: 537.27 | K49: 526 | L49: 513.35 | M49: 15.8326
A50: 41 | B50: BHARTIARTL | C50: 516.15 | D50: 517.62 | E50: 511.83 | F50: 507.52 | G50: 501.73 | H50: 521.93 | I50: 527.72 | J50: 532.03 | K50: 523.4 | L50: 513.3 | M50: 104.94434
A51: 42 | B51: BHEL | C51: 35.4 | D51: 35.58 | E51: 34.77 | F51: 34.13 | G51: 33.32 | H51: 36.22 | I51: 37.03 | J51: 37.67 | K51: 36.4 | L51: 34.95 | M51: 552.67922
A52: 43 | B52: BIOCON | C52: 458.7 | D52: 458.53 | E52: 453.42 | F52: 448.13 | G52: 443.02 | H52: 463.82 | I52: 468.93 | J52: 474.22 | K52: 463.65 | L52: 453.25 | M52: 35.11633
A53: 44 | B53: BOSCHLTD | C53: 12818.55 | D53: 12811.85 | E53: 12673.70 | F53: 12528.85 | G53: 12390.70 | H53: 12956.70 | I53: 13094.85 | J53: 13239.70 | K53: 12950 | L53: 12667 | M53: 0.50895
A54: 45 | B54: BPCL | C54: 382.85 | D54: 381.95 | E54: 379.70 | F54: 376.55 | G54: 374.30 | H54: 385.10 | I54: 387.35 | J54: 390.50 | K54: 384.2 | L54: 378.8 | M54: 30.91717
A55: 46 | B55: BRITANNIA | C55: 3583.9 | D55: 3584.58 | E55: 3563.32 | F55: 3542.73 | G55: 3521.47 | H55: 3605.17 | I55: 3626.43 | J55: 3647.02 | K55: 3605.85 | L55: 3564 | M55: 4.07808
A56: 47 | B56: CADILAHC | C56: 479.35 | D56: 479.35 | E56: 475.80 | F56: 472.25 | G56: 468.70 | H56: 482.90 | I56: 486.45 | J56: 490.00 | K56: 482.9 | L56: 475.8 | M56: 18.39434
A57: 48 | B57: CANBK | C57: 129.35 | D57: 127.88 | E57: 125.07 | F57: 120.78 | G57: 117.97 | H57: 132.17 | I57: 134.98 | J57: 139.27 | K57: 130.7 | L57: 123.6 | M57: 456.99701
A58: 49 | B58: CASTROLIND | C58: 123.55 | D58: 123.57 | E58: 121.38 | F58: 119.22 | G58: 117.03 | H58: 125.73 | I58: 127.92 | J58: 130.08 | K58: 125.75 | L58: 121.4 | M58: 31.67185
A59: 50 | B59: CESC | C59: 609.5 | D59: 609.28 | E59: 605.42 | F59: 601.33 | G59: 597.47 | H59: 613.37 | I59: 617.23 | J59: 621.32 | K59: 613.15 | L59: 605.2 | M59: 2.77179
A60: 51 | B60: CHOLAFIN | C60: 384.9 | D60: 382.43 | E60: 378.82 | F60: 372.73 | G60: 369.12 | H60: 388.52 | I60: 392.13 | J60: 398.22 | K60: 386.05 | L60: 376.35 | M60: 22.18568
A61: 52 | B61: CIPLA | C61: 823.8 | D61: 823.28 | E61: 816.57 | F61: 809.33 | G61: 802.62 | H61: 830.52 | I61: 837.23 | J61: 844.47 | K61: 830 | L61: 816.05 | M61: 27.15404
A62: 53 | B62: COALINDIA | C62: 135.6 | D62: 135.52 | E62: 134.28 | F62: 132.97 | G62: 131.73 | H62: 136.83 | I62: 138.07 | J62: 139.38 | K62: 136.75 | L62: 134.2 | M62: 141.80071
A63: 54 | B63: COFORGE | C63: 2694.6 | D63: 2686.55 | E63: 2665.10 | F63: 2635.60 | G63: 2614.15 | H63: 2716.05 | I63: 2737.50 | J63: 2767.00 | K63: 2708 | L63: 2657.05 | M63: 2.40135
A64: 55 | B64: COLPAL | C64: 1579 | D64: 1574.70 | E64: 1567.40 | F64: 1555.80 | G64: 1548.50 | H64: 1586.30 | I64: 1593.60 | J64: 1605.20 | K64: 1582 | L64: 1563.1 | M64: 2.7149
A65: 56 | B65: CONCOR | C65: 398.85 | D65: 397.50 | E65: 393.50 | F65: 388.15 | G65: 384.15 | H65: 402.85 | I65: 406.85 | J65: 412.20 | K65: 401.5 | L65: 392.15 | M65: 15.96712
A66: 57 | B66: COROMANDEL | C66: 803.25 | D66: 803.92 | E66: 792.58 | F66: 781.92 | G66: 770.58 | H66: 814.58 | I66: 825.92 | J66: 836.58 | K66: 815.25 | L66: 793.25 | M66: 71.49481
A67: 58 | B67: CROMPTON | C67: 368.35 | D67: 365.78 | E67: 359.57 | F67: 350.78 | G67: 344.57 | H67: 374.57 | I67: 380.78 | J67: 389.57 | K67: 372 | L67: 357 | M67: 28.38088
A68: 59 | B68: CUB | C68: 178.1 | D68: 178.37 | E68: 176.73 | F68: 175.37 | G68: 173.73 | H68: 179.73 | I68: 181.37 | J68: 182.73 | K68: 180 | L68: 177 | M68: 10.59595
A69: 60 | B69: CUMMINSIND | C69: 571.65 | D69: 574.93 | E69: 563.87 | F69: 556.08 | G69: 545.02 | H69: 582.72 | I69: 593.78 | J69: 601.57 | K69: 586 | L69: 567.15 | M69: 22.12476
A70: 61 | B70: DABUR | C70: 539.55 | D70: 534.80 | E70: 529.10 | F70: 518.65 | G70: 512.95 | H70: 545.25 | I70: 550.95 | J70: 561.40 | K70: 540.5 | L70: 524.35 | M70: 66.6677
A71: 62 | B71: DALBHARAT | C71: 1077.75 | D71: 1067.62 | E71: 1045.23 | F71: 1012.72 | G71: 990.33 | H71: 1100.13 | I71: 1122.52 | J71: 1155.03 | K71: 1090 | L71: 1035.1 | M71: 2.10404
A72: 63 | B72: DIVISLAB | C72: 3799.7 | D72: 3793.52 | E72: 3767.03 | F72: 3734.37 | G72: 3707.88 | H72: 3826.18 | I72: 3852.67 | J72: 3885.33 | K72: 3820 | L72: 3760.85 | M72: 4.0794
A73: 64 | B73: DLF | C73: 235.95 | D73: 233.82 | E73: 230.63 | F73: 225.32 | G73: 222.13 | H73: 239.13 | I73: 242.32 | J73: 247.63 | K73: 237 | L73: 228.5 | M73: 90.7315
A74: 65 | B74: DMART | C74: 2680.3 | D74: 2682.55 | E74: 2640.10 | F74: 2599.90 | G74: 2557.45 | H74: 2722.75 | I74: 2765.20 | J74: 2805.40 | K74: 2725 | L74: 2642.35 | M74: 4.79318
A75: 66 | B75: DRREDDY | C75: 5170.95 | D75: 5168.30 | E75: 5145.15 | F75: 5119.35 | G75: 5096.20 | H75: 5194.10 | I75: 5217.25 | J75: 5243.05 | K75: 5191.45 | L75: 5142.5 | M75: 4.75269
A76: 67 | B76: EDELWEISS | C76: 70.3 | D76: 70.27 | E76: 69.23 | F76: 68.17 | G76: 67.13 | H76: 71.33 | I76: 72.37 | J76: 73.43 | K76: 71.3 | L76: 69.2 | M76: 4.99616
A77: 68 | B77: EICHERMOT | C77: 2517.35 | D77: 2498.90 | E77: 2472.80 | F77: 2428.25 | G77: 2402.15 | H77: 2543.45 | I77: 2569.55 | J77: 2614.10 | K77: 2525 | L77: 2454.35 | M77: 24.29452
A78: 69 | B78: EMAMILTD | C78: 423.45 | D78: 423.95 | E78: 421.00 | F78: 418.55 | G78: 415.60 | H78: 426.40 | I78: 429.35 | J78: 431.80 | K78: 426.9 | L78: 421.5 | M78: 8.96597
A79: 70 | B79: ENDURANCE | C79: 1344.7 | D79: 1325.97 | E79: 1301.93 | F79: 1259.17 | G79: 1235.13 | H79: 1368.73 | I79: 1392.77 | J79: 1435.53 | K79: 1350 | L79: 1283.2 | M79: 2.56951
A80: 71 | B80: ESCORTS | C80: 1265.15 | D80: 1267.80 | E80: 1251.95 | F80: 1238.75 | G80: 1222.90 | H80: 1281.00 | I80: 1296.85 | J80: 1310.05 | K80: 1283.65 | L80: 1254.6 | M80: 18.53063
A81: 72 | B81: EXIDEIND | C81: 191.35 | D81: 190.87 | E81: 188.23 | F81: 185.12 | G81: 182.48 | H81: 193.98 | I81: 196.62 | J81: 199.73 | K81: 193.5 | L81: 187.75 | M81: 54.51885
A82: 73 | B82: FEDERALBNK | C82: 67.25 | D82: 67.18 | E82: 66.37 | F82: 65.48 | G82: 64.67 | H82: 68.07 | I82: 68.88 | J82: 69.77 | K82: 68 | L82: 66.3 | M82: 194.96396
A83: 74 | B83: FORTIS | C83: 154.3 | D83: 153.97 | E83: 151.73 | F83: 149.17 | G83: 146.93 | H83: 156.53 | I83: 158.77 | J83: 161.33 | K83: 156.2 | L83: 151.4 | M83: 13.09215
A84: 75 | B84: FRETAIL | C84: 77.25 | D84: 77.13 | E84: 76.72 | F84: 76.18 | G84: 75.77 | H84: 77.67 | I84: 78.08 | J84: 78.62 | K84: 77.55 | L84: 76.6 | M84: 13.70522
A85: 76 | B85: GAIL | C85: 123.1 | D85: 122.97 | E85: 121.73 | F85: 120.37 | G85: 119.13 | H85: 124.33 | I85: 125.57 | J85: 126.93 | K85: 124.2 | L85: 121.6 | M85: 115.47865
A86: 77 | B86: GICRE | C86: 139.45 | D86: 139.83 | E86: 138.32 | F86: 137.18 | G86: 135.67 | H86: 140.97 | I86: 142.48 | J86: 143.62 | K86: 141.35 | L86: 138.7 | M86: 1.87391
A87: 78 | B87: GLENMARK | C87: 499.25 | D87: 497.45 | E87: 494.55 | F87: 489.85 | G87: 486.95 | H87: 502.15 | I87: 505.05 | J87: 509.75 | K87: 500.35 | L87: 492.75 | M87: 14.90678
A88: 79 | B88: GMRINFRA | C88: 27.4 | D88: 27.27 | E88: 26.43 | F88: 25.47 | G88: 24.63 | H88: 28.23 | I88: 29.07 | J88: 30.03 | K88: 28.1 | L88: 26.3 | M88: 1461.11191
A89: 80 | B89: GODREJAGRO | C89: 535.7 | D89: 536.13 | E89: 532.57 | F89: 529.43 | G89: 525.87 | H89: 539.27 | I89: 542.83 | J89: 545.97 | K89: 539.7 | L89: 533 | M89: 0.97701
A90: 81 | B90: GODREJCP | C90: 749.15 | D90: 748.12 | E90: 739.33 | F90: 729.52 | G90: 720.73 | H90: 757.93 | I90: 766.72 | J90: 776.53 | K90: 756.9 | L90: 738.3 | M90: 21.88175
A91: 82 | B91: GODREJIND | C91: 423.75 | D91: 428.32 | E91: 415.63 | F91: 407.52 | G91: 394.83 | H91: 436.43 | I91: 449.12 | J91: 457.23 | K91: 441 | L91: 420.2 | M91: 2.56257
A92: 83 | B92: GODREJPROP | C92: 1393.75 | D92: 1395.53 | E92: 1373.22 | F92: 1352.68 | G92: 1330.37 | H92: 1416.07 | I92: 1438.38 | J92: 1458.92 | K92: 1417.85 | L92: 1375 | M92: 10.84354
A93: 84 | B93: GRASIM | C93: 934.4 | D93: 923.55 | E93: 908.15 | F93: 881.90 | G93: 866.50 | H93: 949.80 | I93: 965.20 | J93: 991.45 | K93: 938.95 | L93: 897.3 | M93: 22.80218
A94: 85 | B94: GSPL | C94: 223.65 | D94: 221.13 | E94: 217.77 | F94: 211.88 | G94: 208.52 | H94: 227.02 | I94: 230.38 | J94: 236.27 | K94: 224.5 | L94: 215.25 | M94: 9.65352
A95: 86 | B95: GUJGASLTD | C95: 382.2 | D95: 380.38 | E95: 376.12 | F95: 370.03 | G95: 365.77 | H95: 386.47 | I95: 390.73 | J95: 396.82 | K95: 384.65 | L95: 374.3 | M95: 5.44797
A96: 87 | B96: HAVELLS | C96: 904.65 | D96: 904.08 | E96: 897.87 | F96: 891.08 | G96: 884.87 | H96: 910.87 | I96: 917.08 | J96: 923.87 | K96: 910.3 | L96: 897.3 | M96: 8.86047
A97: 88 | B97: HCLTECH | C97: 940.7 | D97: 940.57 | E97: 931.13 | F97: 921.57 | G97: 912.13 | H97: 950.13 | I97: 959.57 | J97: 969.13 | K97: 950 | L97: 931 | M97: 63.82809
A98: 89 | B98: HDFC | C98: 2518.05 | D98: 2508.68 | E98: 2492.37 | F98: 2466.68 | G98: 2450.37 | H98: 2534.37 | I98: 2550.68 | J98: 2576.37 | K98: 2525 | L98: 2483 | M98: 29.02423
A99: 90 | B99: HDFCAMC | C99: 2908.7 | D99: 2903.93 | E99: 2880.87 | F99: 2853.03 | G99: 2829.97 | H99: 2931.77 | I99: 2954.83 | J99: 2982.67 | K99: 2927 | L99: 2876.1 | M99: 2.37351
A100: 91 | B100: HDFCBANK | C100: 1432.5 | D100: 1428.47 | E100: 1417.03 | F100: 1401.57 | G100: 1390.13 | H100: 1443.93 | I100: 1455.37 | J100: 1470.83 | K100: 1439.9 | L100: 1413 | M100: 81.08363
A101: 92 | B101: HDFCLIFE | C101: 675.7 | D101: 673.90 | E101: 668.80 | F101: 661.90 | G101: 656.80 | H101: 680.80 | I101: 685.90 | J101: 692.80 | K101: 679 | L101: 667 | M101: 28.86107
A102: 93 | B102: HEROMOTOCO | C102: 3101.4 | D102: 3091.65 | E102: 3075.35 | F102: 3049.30 | G102: 3033.00 | H102: 3117.70 | I102: 3134.00 | J102: 3160.05 | K102: 3107.95 | L102: 3065.6 | M102: 5.05754
A103: 94 | B103: HINDALCO | C103: 237.4 | D103: 236.40 | E103: 233.65 | F103: 229.90 | G103: 227.15 | H103: 240.15 | I103: 242.90 | J103: 246.65 | K103: 239.15 | L103: 232.65 | M103: 84.80116
A104: 95 | B104: HINDPETRO | C104: 216.45 | D104: 215.80 | E104: 214.70 | F104: 212.95 | G104: 211.85 | H104: 217.55 | I104: 218.65 | J104: 220.40 | K104: 216.9 | L104: 214.05 | M104: 39.45034
A105: 96 | B105: HINDUNILVR | C105: 2406.6 | D105: 2399.08 | E105: 2383.52 | F105: 2360.43 | G105: 2344.87 | H105: 2422.17 | I105: 2437.73 | J105: 2460.82 | K105: 2414.65 | L105: 2376 | M105: 19.24886
A106: 97 | B106: HINDZINC | C106: 239.2 | D106: 239.20 | E106: 238.00 | F106: 236.80 | G106: 235.60 | H106: 240.40 | I106: 241.60 | J106: 242.80 | K106: 240.4 | L106: 238 | M106: 4.39356
A107: 98 | B107: HUDCO | C107: 39.95 | D107: 39.97 | E107: 39.58 | F107: 39.22 | G107: 38.83 | H107: 40.33 | I107: 40.72 | J107: 41.08 | K107: 40.35 | L107: 39.6 | M107: 12.96112
A108: 99 | B108: IBULHSGFIN | C108: 214.85 | D108: 214.50 | E108: 211.70 | F108: 208.55 | G108: 205.75 | H108: 217.65 | I108: 220.45 | J108: 223.60 | K108: 217.3 | L108: 211.35 | M108: 156.52743
A109: 100 | B109: ICICIBANK | C109: 528.75 | D109: 528.77 | E109: 524.53 | F109: 520.32 | G109: 516.08 | H109: 532.98 | I109: 537.22 | J109: 541.43 | K109: 533 | L109: 524.55 | M109: 213.65141
A110: 101 | B110: ICICIGI | C110: 1510.1 | D110: 1515.55 | E110: 1490.80 | F110: 1471.50 | G110: 1446.75 | H110: 1534.85 | I110: 1559.60 | J110: 1578.90 | K110: 1540.3 | L110: 1496.25 | M110: 7.21897
A111: 102 | B111: ICICIPRULI | C111: 498.75 | D111: 497.52 | E111: 492.63 | F111: 486.52 | G111: 481.63 | H111: 503.63 | I111: 508.52 | J111: 514.63 | K111: 502.4 | L111: 491.4 | M111: 7.63177
A112: 103 | B112: IDBI | C112: 30.85 | D112: 31.17 | E112: 30.48 | F112: 30.12 | G112: 29.43 | H112: 31.53 | I112: 32.22 | J112: 32.58 | K112: 31.85 | L112: 30.8 | M112: 84.57561
A113: 104 | B113: IDEA | C113: 10.2 | D113: 10.20 | E113: 10.05 | F113: 9.90 | G113: 9.75 | H113: 10.35 | I113: 10.50 | J113: 10.65 | K113: 10.35 | L113: 10.05 | M113: 1961.81871
A114: 105 | B114: IDFCFIRSTB | C114: 36.65 | D114: 36.50 | E114: 36.05 | F114: 35.45 | G114: 35.00 | H114: 37.10 | I114: 37.55 | J114: 38.15 | K114: 36.95 | L114: 35.9 | M114: 196.33682
A115: 106 | B115: IGL | C115: 505.55 | D115: 509.15 | E115: 498.80 | F115: 492.05 | G115: 481.70 | H115: 515.90 | I115: 526.25 | J115: 533.00 | K115: 519.5 | L115: 502.4 | M115: 64.2405
A116: 107 | B116: INDHOTEL | C116: 121.85 | D116: 121.85 | E116: 120.35 | F116: 118.85 | G116: 117.35 | H116: 123.35 | I116: 124.85 | J116: 126.35 | K116: 123.35 | L116: 120.35 | M116: 9.03525
A117: 108 | B117: INDIGO | C117: 1689.7 | D117: 1689.13 | E117: 1677.82 | F117: 1665.93 | G117: 1654.62 | H117: 1701.02 | I117: 1712.33 | J117: 1724.22 | K117: 1700.45 | L117: 1677.25 | M117: 10.65369
A118: 109 | B118: INDUSINDBK | C118: 899.05 | D118: 903.25 | E118: 883.80 | F118: 868.55 | G118: 849.10 | H118: 918.50 | I118: 937.95 | J118: 953.20 | K118: 922.7 | L118: 888 | M118: 114.62263
A119: 110 | B119: INDUSTOWER | C119: 231.45 | D119: 232.63 | E119: 227.87 | F119: 224.28 | G119: 219.52 | H119: 236.22 | I119: 240.98 | J119: 244.57 | K119: 237.4 | L119: 229.05 | M119: 47.14009
A120: 111 | B120: INFY | C120: 1246.8 | D120: 1246.08 | E120: 1238.87 | F120: 1230.93 | G120: 1223.72 | H120: 1254.02 | I120: 1261.23 | J120: 1269.17 | K120: 1253.3 | L120: 1238.15 | M120: 51.9469
A121: 112 | B121: IOC | C121: 90.9 | D121: 90.87 | E121: 90.03 | F121: 89.17 | G121: 88.33 | H121: 91.73 | I121: 92.57 | J121: 93.43 | K121: 91.7 | L121: 90 | M121: 134.21049
A122: 113 | B122: IPCALAB | C122: 2175.5 | D122: 2172.20 | E122: 2150.40 | F122: 2125.30 | G122: 2103.50 | H122: 2197.30 | I122: 2219.10 | J122: 2244.20 | K122: 2194 | L122: 2147.1 | M122: 1.98361
A123: 114 | B123: IRCTC | C123: 1434.95 | D123: 1428.65 | E123: 1414.30 | F123: 1393.65 | G123: 1379.30 | H123: 1449.30 | I123: 1463.65 | J123: 1484.30 | K123: 1443 | L123: 1408 | M123: 16.37204
A124: 115 | B124: ITC | C124: 211.15 | D124: 211.40 | E124: 209.30 | F124: 207.45 | G124: 205.35 | H124: 213.25 | I124: 215.35 | J124: 217.20 | K124: 213.5 | L124: 209.55 | M124: 189.25262
A125: 116 | B125: JINDALSTEL | C125: 265.95 | D125: 265.02 | E125: 261.13 | F125: 256.32 | G125: 252.43 | H125: 269.83 | I125: 273.72 | J125: 278.53 | K125: 268.9 | L125: 260.2 | M125: 94.4917
A126: 117 | B126: JSWENERGY | C126: 68.7 | D126: 68.53 | E126: 67.97 | F126: 67.23 | G126: 66.67 | H126: 69.27 | I126: 69.83 | J126: 70.57 | K126: 69.1 | L126: 67.8 | M126: 9.82505
A127: 118 | B127: JSWSTEEL | C127: 386.1 | D127: 384.22 | E127: 380.53 | F127: 374.97 | G127: 371.28 | H127: 389.78 | I127: 393.47 | J127: 399.03 | K127: 387.9 | L127: 378.65 | M127: 46.37174
A128: 119 | B128: JUBILANT | C128: 848 | D128: 857.33 | E128: 835.67 | F128: 823.33 | G128: 801.67 | H128: 869.67 | I128: 891.33 | J128: 903.67 | K128: 879 | L128: 845 | M128: 7.90745
A129: 120 | B129: JUBLFOOD | C129: 2682.15 | D129: 2691.38 | E129: 2657.22 | F129: 2632.28 | G129: 2598.12 | H129: 2716.32 | I129: 2750.48 | J129: 2775.42 | K129: 2725.55 | L129: 2666.45 | M129: 7.00963
A130: 121 | B130: KOTAKBANK | C130: 2017.95 | D130: 2014.65 | E130: 2002.30 | F130: 1986.65 | G130: 1974.30 | H130: 2030.30 | I130: 2042.65 | J130: 2058.30 | K130: 2027 | L130: 1999 | M130: 26.57431
A131: 122 | B131: L&TFH | C131: 93.1 | D131: 93.23 | E131: 92.02 | F131: 90.93 | G131: 89.72 | H131: 94.32 | I131: 95.53 | J131: 96.62 | K131: 94.45 | L131: 92.15 | M131: 89.11296
A132: 123 | B132: LALPATHLAB | C132: 2318.7 | D132: 2312.93 | E132: 2293.97 | F132: 2269.23 | G132: 2250.27 | H132: 2337.67 | I132: 2356.63 | J132: 2381.37 | K132: 2331.9 | L132: 2288.2 | M132: 0.72318
A133: 124 | B133: LICHSGFIN | C133: 360.3 | D133: 360.80 | E133: 355.60 | F133: 350.90 | G133: 345.70 | H133: 365.50 | I133: 370.70 | J133: 375.40 | K133: 366 | L133: 356.1 | M133: 43.95587
A134: 125 | B134: LT | C134: 1292.05 | D134: 1286.47 | E134: 1276.58 | F134: 1261.12 | G134: 1251.23 | H134: 1301.93 | I134: 1311.82 | J134: 1327.28 | K134: 1296.35 | L134: 1271 | M134: 28.66392
A135: 126 | B135: LTI | C135: 3661.15 | D135: 3633.95 | E135: 3593.00 | F135: 3524.85 | G135: 3483.90 | H135: 3702.10 | I135: 3743.05 | J135: 3811.20 | K135: 3674.9 | L135: 3565.8 | M135: 2.69551
A136: 127 | B136: LTTS | C136: 2338.65 | D136: 2344.40 | E136: 2304.25 | F136: 2269.85 | G136: 2229.70 | H136: 2378.80 | I136: 2418.95 | J136: 2453.35 | K136: 2384.55 | L136: 2310 | M136: 2.25448
A137: 128 | B137: LUPIN | C137: 977.6 | D137: 974.70 | E137: 967.40 | F137: 957.20 | G137: 949.90 | H137: 984.90 | I137: 992.20 | J137: 1002.40 | K137: 982 | L137: 964.5 | M137: 19.11823
A138: 129 | B138: M&M | C138: 720.7 | D138: 716.45 | E138: 708.60 | F138: 696.50 | G138: 688.65 | H138: 728.55 | I138: 736.40 | J138: 748.50 | K138: 724.3 | L138: 704.35 | M138: 32.19036
A139: 130 | B139: M&MFIN | C139: 174.25 | D139: 174.22 | E139: 172.13 | F139: 170.02 | G139: 167.93 | H139: 176.33 | I139: 178.42 | J139: 180.53 | K139: 176.3 | L139: 172.1 | M139: 55.20968
A140: 131 | B140: MANAPPURAM | C140: 165.6 | D140: 165.53 | E140: 163.87 | F140: 162.13 | G140: 160.47 | H140: 167.27 | I140: 168.93 | J140: 170.67 | K140: 167.2 | L140: 163.8 | M140: 44.09096
A141: 132 | B141: MARICO | C141: 403.45 | D141: 404.98 | E141: 399.47 | F141: 395.48 | G141: 389.97 | H141: 408.97 | I141: 414.48 | J141: 418.47 | K141: 410.5 | L141: 401 | M141: 21.4837
A142: 133 | B142: MARUTI | C142: 7612.9 | D142: 7559.30 | E142: 7483.60 | F142: 7354.30 | G142: 7278.60 | H142: 7688.60 | I142: 7764.30 | J142: 7893.60 | K142: 7635 | L142: 7430 | M142: 10.298
A143: 134 | B143: MCDOWELL-N | C143: 577.75 | D143: 576.62 | E143: 572.73 | F143: 567.72 | G143: 563.83 | H143: 581.63 | I143: 585.52 | J143: 590.53 | K143: 580.5 | L143: 571.6 | M143: 18.58973
A144: 135 | B144: MFSL | C144: 683.85 | D144: 682.37 | E144: 674.48 | F144: 665.12 | G144: 657.23 | H144: 691.73 | I144: 699.62 | J144: 708.98 | K144: 690.25 | L144: 673 | M144: 8.52229
A145: 136 | B145: MGL | C145: 1070.4 | D145: 1077.00 | E145: 1059.00 | F145: 1047.60 | G145: 1029.60 | H145: 1088.40 | I145: 1106.40 | J145: 1117.80 | K145: 1095 | L145: 1065.6 | M145: 10.84657
A146: 137 | B146: MINDTREE | C146: 1629.95 | D146: 1624.35 | E146: 1613.30 | F146: 1596.65 | G146: 1585.60 | H146: 1641.00 | I146: 1652.05 | J146: 1668.70 | K146: 1635.4 | L146: 1607.7 | M146: 9.03715
A147: 138 | B147: MOTHERSUMI | C147: 160.55 | D147: 159.08 | E147: 156.77 | F147: 152.98 | G147: 150.67 | H147: 162.87 | I147: 165.18 | J147: 168.97 | K147: 161.4 | L147: 155.3 | M147: 94.75346
A148: 139 | B148: MPHASIS | C148: 1590.4 | D148: 1571.83 | E148: 1544.67 | F148: 1498.93 | G148: 1471.77 | H148: 1617.57 | I148: 1644.73 | J148: 1690.47 | K148: 1599 | L148: 1526.1 | M148: 2.61785
A149: 140 | B149: MRF | C149: 76925.1 | D149: 76632.62 | E149: 75592.48 | F149: 74259.87 | G149: 73219.73 | H149: 77965.23 | I149: 79005.37 | J149: 80337.98 | K149: 77672.75 | L149: 75300 | M149: 0.16171
A150: 141 | B150: MRPL | C150: 35.25 | D150: 35.05 | E150: 34.20 | F150: 33.15 | G150: 32.30 | H150: 36.10 | I150: 36.95 | J150: 38.00 | K150: 35.9 | L150: 34 | M150: 43.4079
A151: 142 | B151: MUTHOOTFIN | C151: 1212.45 | D151: 1210.77 | E151: 1202.68 | F151: 1192.92 | G151: 1184.83 | H151: 1220.53 | I151: 1228.62 | J151: 1238.38 | K151: 1218.85 | L151: 1201 | M151: 6.04708
A152: 143 | B152: NAM-INDIA | C152: 300.2 | D152: 301.87 | E152: 297.78 | F152: 295.37 | G152: 291.28 | H152: 304.28 | I152: 308.37 | J152: 310.78 | K152: 305.95 | L152: 299.45 | M152: 7.72028
A153: 144 | B153: NATCOPHARM | C153: 968.5 | D153: 962.05 | E153: 952.10 | F153: 935.70 | G153: 925.75 | H153: 978.45 | I153: 988.40 | J153: 1004.80 | K153: 972 | L153: 945.65 | M153: 3.26215
A154: 145 | B154: NATIONALUM | C154: 41.55 | D154: 41.67 | E154: 40.88 | F154: 40.22 | G154: 39.43 | H154: 42.33 | I154: 43.12 | J154: 43.78 | K154: 42.45 | L154: 41 | M154: 197.62936
A155: 146 | B155: NAUKRI | C155: 4777.7 | D155: 4747.80 | E155: 4703.60 | F155: 4629.50 | G155: 4585.30 | H155: 4821.90 | I155: 4866.10 | J155: 4940.20 | K155: 4792 | L155: 4673.7 | M155: 5.07298
A156: 147 | B156: NESTLEIND | C156: 18379.25 | D156: 18359.08 | E156: 18250.17 | F156: 18121.08 | G156: 18012.17 | H156: 18488.17 | I156: 18597.08 | J156: 18726.17 | K156: 18468 | L156: 18230 | M156: 0.93654
A157: 148 | B157: NHPC | C157: 23.15 | D157: 23.08 | E157: 22.97 | F157: 22.78 | G157: 22.67 | H157: 23.27 | I157: 23.38 | J157: 23.57 | K157: 23.2 | L157: 22.9 | M157: 42.60935
A158: 149 | B158: NMDC | C158: 115.9 | D158: 115.17 | E158: 113.43 | F158: 110.97 | G158: 109.23 | H158: 117.63 | I158: 119.37 | J158: 121.83 | K158: 116.9 | L158: 112.7 | M158: 78.61589
A159: 150 | B159: NTPC | C159: 99.1 | D159: 98.98 | E159: 98.32 | F159: 97.53 | G159: 96.87 | H159: 99.77 | I159: 100.43 | J159: 101.22 | K159: 99.65 | L159: 98.2 | M159: 302.81285
A160: 151 | B160: OBEROIRLTY | C160: 567.95 | D160: 559.25 | E160: 547.80 | F160: 527.65 | G160: 516.20 | H160: 579.40 | I160: 590.85 | J160: 611.00 | K160: 570.7 | L160: 539.1 | M160: 6.62053
A161: 152 | B161: OFSS | C161: 3225.15 | D161: 3221.88 | E161: 3205.27 | F161: 3185.38 | G161: 3168.77 | H161: 3241.77 | I161: 3258.38 | J161: 3278.27 | K161: 3238.5 | L161: 3202 | M161: 0.32849
A162: 153 | B162: OIL | C162: 110.55 | D162: 110.52 | E162: 109.53 | F162: 108.52 | G162: 107.53 | H162: 111.53 | I162: 112.52 | J162: 113.53 | K162: 111.5 | L162: 109.5 | M162: 6.2388
A163: 154 | B163: ONGC | C163: 93.25 | D163: 93.50 | E163: 92.50 | F163: 91.75 | G163: 90.75 | H163: 94.25 | I163: 95.25 | J163: 96.00 | K163: 94.5 | L163: 92.75 | M163: 159.60705
A164: 155 | B164: PAGEIND | C164: 27336.1 | D164: 27355.33 | E164: 26990.72 | F164: 26645.33 | G164: 26280.72 | H164: 27700.72 | I164: 28065.33 | J164: 28410.72 | K164: 27719.95 | L164: 27009.95 | M164: 0.22713
A165: 156 | B165: PEL | C165: 1435.8 | D165: 1426.23 | E165: 1412.47 | F165: 1389.13 | G165: 1375.37 | H165: 1449.57 | I165: 1463.33 | J165: 1486.67 | K165: 1440 | L165: 1402.9 | M165: 8.48528
A166: 157 | B166: PETRONET | C166: 246.5 | D166: 247.97 | E166: 244.63 | F166: 242.77 | G166: 239.43 | H166: 249.83 | I166: 253.17 | J166: 255.03 | K166: 251.3 | L166: 246.1 | M166: 37.65161
A167: 158 | B167: PFC | C167: 114.55 | D167: 114.87 | E167: 113.28 | F167: 112.02 | G167: 110.43 | H167: 116.13 | I167: 117.72 | J167: 118.98 | K167: 116.45 | L167: 113.6 | M167: 39.06421
A168: 159 | B168: PFIZER | C168: 5112.5 | D168: 5125.82 | E168: 5091.68 | F168: 5070.87 | G168: 5036.73 | H168: 5146.63 | I168: 5180.77 | J168: 5201.58 | K168: 5159.95 | L168: 5105 | M168: 0.45279
A169: 160 | B169: PGHH | C169: 11183.05 | D169: 11179.35 | E169: 11014.70 | F169: 10846.35 | G169: 10681.70 | H169: 11347.70 | I169: 11512.35 | J169: 11680.70 | K169: 11344 | L169: 11011 | M169: 0.19796
A170: 161 | B170: PIDILITIND | C170: 1749.7 | D170: 1753.42 | E170: 1736.88 | F170: 1724.07 | G170: 1707.53 | H170: 1766.23 | I170: 1782.77 | J170: 1795.58 | K170: 1769.95 | L170: 1740.6 | M170: 7.11918
A171: 162 | B171: PIIND | C171: 2209.9 | D171: 2213.30 | E171: 2196.60 | F171: 2183.30 | G171: 2166.60 | H171: 2226.60 | I171: 2243.30 | J171: 2256.60 | K171: 2230 | L171: 2200 | M171: 1.11539
A172: 163 | B172: PNB | C172: 32.75 | D172: 32.93 | E172: 32.17 | F172: 31.58 | G172: 30.82 | H172: 33.52 | I172: 34.28 | J172: 34.87 | K172: 33.7 | L172: 32.35 | M172: 925.97922
A173: 164 | B173: PNBHOUSING | C173: 357.05 | D173: 358.27 | E173: 353.88 | F173: 350.72 | G173: 346.33 | H173: 361.43 | I173: 365.82 | J173: 368.98 | K173: 362.65 | L173: 355.1 | M173: 0.81832
A174: 165 | B174: POLYCAB | C174: 1032.95 | D174: 1033.93 | E174: 1024.02 | F174: 1015.08 | G174: 1005.17 | H174: 1042.87 | I174: 1052.78 | J174: 1061.72 | K174: 1043.85 | L174: 1025 | M174: 1.05024
A175: 166 | B175: POWERGRID | C175: 190.2 | D175: 189.22 | E175: 187.78 | F175: 185.37 | G175: 183.93 | H175: 191.63 | I175: 193.07 | J175: 195.48 | K175: 190.65 | L175: 186.8 | M175: 107.62081
A176: 167 | B176: PRESTIGE | C176: 264.9 | D176: 265.80 | E176: 260.70 | F176: 256.50 | G176: 251.40 | H176: 270.00 | I176: 275.10 | J176: 279.30 | K176: 270.9 | L176: 261.6 | M176: 6.39926
A177: 168 | B177: QUESS | C177: 542.5 | D177: 537.17 | E177: 526.33 | F177: 510.17 | G177: 499.33 | H177: 553.33 | I177: 564.17 | J177: 580.33 | K177: 548 | L177: 521 | M177: 6.21318
A178: 169 | B178: RAJESHEXPO | C178: 486.8 | D178: 487.72 | E178: 480.38 | F178: 473.97 | G178: 466.63 | H178: 494.13 | I178: 501.47 | J178: 507.88 | K178: 495.05 | L178: 481.3 | M178: 1.07848
A179: 170 | B179: RAMCOCEM | C179: 813.9 | D179: 802.30 | E179: 784.70 | F179: 755.50 | G179: 737.90 | H179: 831.50 | I179: 849.10 | J179: 878.30 | K179: 819.9 | L179: 773.1 | M179: 16.48249
A180: 171 | B180: RBLBANK | C180: 232.5 | D180: 231.53 | E180: 229.07 | F180: 225.63 | G180: 223.17 | H180: 234.97 | I180: 237.43 | J180: 240.87 | K180: 234 | L180: 228.1 | M180: 117.2024
A181: 172 | B181: RECLTD | C181: 132.6 | D181: 133.13 | E181: 130.82 | F181: 129.03 | G181: 126.72 | H181: 134.92 | I181: 137.23 | J181: 139.02 | K181: 135.45 | L181: 131.35 | M181: 46.19727
A182: 173 | B182: RELIANCE | C182: 1995.5 | D182: 1992.75 | E182: 1978.30 | F182: 1961.10 | G182: 1946.65 | H182: 2009.95 | I182: 2024.40 | J182: 2041.60 | K182: 2007.2 | L182: 1975.55 | M182: 101.73132
A183: 174 | B183: SAIL | C183: 69.75 | D183: 68.10 | E183: 65.30 | F183: 60.85 | G183: 58.05 | H183: 72.55 | I183: 75.35 | J183: 79.80 | K183: 70.9 | L183: 63.65 | M183: 741.51917
A184: 175 | B184: SBICARD | C184: 850.85 | D184: 848.50 | E184: 843.50 | F184: 836.15 | G184: 831.15 | H184: 855.85 | I184: 860.85 | J184: 868.20 | K184: 853.5 | L184: 841.15 | M184: 9.0638
A185: 176 | B185: SBILIFE | C185: 902.95 | D185: 901.58 | E185: 892.17 | F185: 881.38 | G185: 871.97 | H185: 912.37 | I185: 921.78 | J185: 932.57 | K185: 911 | L185: 890.8 | M185: 19.69826
A186: 177 | B186: SBIN | C186: 276.9 | D186: 276.03 | E186: 273.37 | F186: 269.83 | G186: 267.17 | H186: 279.57 | I186: 282.23 | J186: 285.77 | K186: 278.7 | L186: 272.5 | M186: 309.71894
A187: 178 | B187: SHREECEM | C187: 24599.95 | D187: 24350.52 | E187: 23999.43 | F187: 23398.92 | G187: 23047.83 | H187: 24951.03 | I187: 25302.12 | J187: 25902.63 | K187: 24701.6 | L187: 23750 | M187: 0.57743
A188: 179 | B188: SIEMENS | C188: 1573.35 | D188: 1571.95 | E188: 1561.90 | F188: 1550.45 | G188: 1540.40 | H188: 1583.40 | I188: 1593.45 | J188: 1604.90 | K188: 1582 | L188: 1560.5 | M188: 1.94774
A189: 180 | B189: SRF | C189: 5516.95 | D189: 5529.47 | E189: 5467.48 | F189: 5418.02 | G189: 5356.03 | H189: 5578.93 | I189: 5640.92 | J189: 5690.38 | K189: 5591.45 | L189: 5480 | M189: 1.86725
A190: 181 | B190: SRTRANSFIN | C190: 1039.05 | D190: 1042.15 | E190: 1029.30 | F190: 1019.55 | G190: 1006.70 | H190: 1051.90 | I190: 1064.75 | J190: 1074.50 | K190: 1055 | L190: 1032.4 | M190: 40.40813
A191: 182 | B191: SUNPHARMA | C191: 584 | D191: 586.83 | E191: 578.67 | F191: 573.33 | G191: 565.17 | H191: 592.17 | I191: 600.33 | J191: 605.67 | K191: 595 | L191: 581.5 | M191: 55.89703
A192: 183 | B192: SUNTV | C192: 480.5 | D192: 481.02 | E192: 474.53 | F192: 468.57 | G192: 462.08 | H192: 486.98 | I192: 493.47 | J192: 499.43 | K192: 487.5 | L192: 475.05 | M192: 17.48005
A193: 184 | B193: SYNGENE | C193: 610.4 | D193: 609.37 | E193: 602.03 | F193: 593.67 | G193: 586.33 | H193: 617.73 | I193: 625.07 | J193: 633.43 | K193: 616.7 | L193: 601 | M193: 3.47359
A194: 185 | B194: TATACONSUM | C194: 594.35 | D194: 596.13 | E194: 588.27 | F194: 582.18 | G194: 574.32 | H194: 602.22 | I194: 610.08 | J194: 616.17 | K194: 604 | L194: 590.05 | M194: 22.97999
A195: 186 | B195: TATAMOTORS | C195: 184.15 | D195: 183.32 | E195: 181.23 | F195: 178.32 | G195: 176.23 | H195: 186.23 | I195: 188.32 | J195: 191.23 | K195: 185.4 | L195: 180.4 | M195: 385.76159
A196: 187 | B196: TATAPOWER | C196: 75.8 | D196: 75.98 | E196: 75.02 | F196: 74.23 | G196: 73.27 | H196: 76.77 | I196: 77.73 | J196: 78.52 | K196: 76.95 | L196: 75.2 | M196: 179.18812
A197: 188 | B197: TATASTEEL | C197: 640.45 | D197: 636.15 | E197: 628.35 | F197: 616.25 | G197: 608.45 | H197: 648.25 | I197: 656.05 | J197: 668.15 | K197: 643.95 | L197: 624.05 | M197: 115.14428
A198: 189 | B198: TCS | C198: 2909.3 | D198: 2919.67 | E198: 2891.63 | F198: 2873.97 | G198: 2845.93 | H198: 2937.33 | I198: 2965.37 | J198: 2983.03 | K198: 2947.7 | L198: 2902 | M198: 26.37968
A199: 190 | B199: TECHM | C199: 983.25 | D199: 978.68 | E199: 972.37 | F199: 961.48 | G199: 955.17 | H199: 989.57 | I199: 995.88 | J199: 1006.77 | K199: 985 | L199: 967.8 | M199: 63.89605
A200: 191 | B200: TITAN | C200: 1552.6 | D200: 1547.20 | E200: 1538.70 | F200: 1524.80 | G200: 1516.30 | H200: 1561.10 | I200: 1569.60 | J200: 1583.50 | K200: 1555.7 | L200: 1533.3 | M200: 11.5123
A201: 192 | B201: TORNTPHARM | C201: 2793 | D201: 2776.33 | E201: 2752.67 | F201: 2712.33 | G201: 2688.67 | H201: 2816.67 | I201: 2840.33 | J201: 2880.67 | K201: 2800 | L201: 2736 | M201: 3.08553
A202: 193 | B202: TORNTPOWER | C202: 319.6 | D202: 318.25 | E202: 315.60 | F202: 311.60 | G202: 308.95 | H202: 322.25 | I202: 324.90 | J202: 328.90 | K202: 320.9 | L202: 314.25 | M202: 6.10145
A203: 194 | B203: TRENT | C203: 677.55 | D203: 672.60 | E203: 654.95 | F203: 632.35 | G203: 614.70 | H203: 695.20 | I203: 712.85 | J203: 735.45 | K203: 690.25 | L203: 650 | M203: 6.6206
A204: 195 | B204: TVSMOTOR | C204: 486.5 | D204: 485.32 | E204: 481.18 | F204: 475.87 | G204: 471.73 | H204: 490.63 | I204: 494.77 | J204: 500.08 | K204: 489.45 | L204: 480 | M204: 8.31686
A205: 196 | B205: UBL | C205: 1159.9 | D205: 1157.90 | E205: 1147.00 | F205: 1134.10 | G205: 1123.20 | H205: 1170.80 | I205: 1181.70 | J205: 1194.60 | K205: 1168.8 | L205: 1145 | M205: 6.96591
... 27 more rows

Sheet MidCap Intra
L5: Back To Main Page
A6: FOR INTRA DAY TRADING | K6: =Main!B10 -> 2020-12-31
A9: Sr.no | B9: Scrip | C9: CLOSE RATE | D9: Pivot Point | E9: Supports | H9: Resistances
C10: Point | E10: S1 | F10: S2 | G10: S3 | H10: R1 | I10: R2 | J10: R3 | K10: HIGH | L10: LOW | M10: Total Trade Quanity in Lakhs
A11: 1 | B11: 3MINDIA | C11: 20865.6 | D11: 20980.53 | E11: 20596.07 | F11: 20326.53 | G11: 19942.07 | H11: 21250.07 | I11: 21634.53 | J11: 21904.07 | K11: 21365 | L11: 20711 | M11: 0.05617
A12: 2 | B12: AARTIIND | C12: 1219.4 | D12: 1221.25 | E12: 1205.45 | F12: 1191.50 | G12: 1175.70 | H12: 1235.20 | I12: 1251.00 | J12: 1264.95 | K12: 1237.05 | L12: 1207.3 | M12: 1.9418
A13: 3 | B13: AAVAS | C13: 1688.1 | D13: 1681.03 | E13: 1667.07 | F13: 1646.03 | G13: 1632.07 | H13: 1702.07 | I13: 1716.03 | J13: 1737.07 | K13: 1695 | L13: 1660 | M13: 0.15171
A14: 4 | B14: ABB | C14: 1208.9 | D14: 1216.68 | E14: 1193.47 | F14: 1178.03 | G14: 1154.82 | H14: 1232.12 | I14: 1255.33 | J14: 1270.77 | K14: 1239.9 | L14: 1201.25 | M14: 1.97431
A15: 5 | B15: ABBOTINDIA | C15: 15628.4 | D15: 15689.48 | E15: 15538.92 | F15: 15449.43 | G15: 15298.87 | H15: 15778.97 | I15: 15929.53 | J15: 16019.02 | K15: 15840.05 | L15: 15600 | M15: 0.11997
A16: 6 | B16: ABCAPITAL | C16: 85.7 | D16: 84.98 | E16: 83.97 | F16: 82.23 | G16: 81.22 | H16: 86.72 | I16: 87.73 | J16: 89.47 | K16: 86 | L16: 83.25 | M16: 22.60956
A17: 7 | B17: ABFRL | C17: 165.3 | D17: 164.97 | E17: 163.28 | F17: 161.27 | G17: 159.58 | H17: 166.98 | I17: 168.67 | J17: 170.68 | K17: 166.65 | L17: 162.95 | M17: 7.341
A18: 8 | B18: ACC | C18: 1648.25 | D18: 1633.60 | E18: 1614.65 | F18: 1581.05 | G18: 1562.10 | H18: 1667.20 | I18: 1686.15 | J18: 1719.75 | K18: 1652.55 | L18: 1600 | M18: 17.18433
A19: 9 | B19: ADANIGAS | C19: 380.4 | D19: 379.85 | E19: 370.05 | F19: 359.70 | G19: 349.90 | H19: 390.20 | I19: 400.00 | J19: 410.35 | K19: 389.65 | L19: 369.5 | M19: 36.41617
A20: 10 | B20: ADANIGREEN | C20: 1052.95 | D20: 1046.98 | E20: 1033.97 | F20: 1014.98 | G20: 1001.97 | H20: 1065.97 | I20: 1078.98 | J20: 1097.97 | K20: 1060 | L20: 1028 | M20: 3.74589
A21: 11 | B21: ADANIPORTS | C21: 485.4 | D21: 483.72 | E21: 479.83 | F21: 474.27 | G21: 470.38 | H21: 489.28 | I21: 493.17 | J21: 498.73 | K21: 487.6 | L21: 478.15 | M21: 37.36356
A22: 12 | B22: ADANIPOWER | C22: 50.05 | D22: 50.13 | E22: 49.17 | F22: 48.28 | G22: 47.32 | H22: 51.02 | I22: 51.98 | J22: 52.87 | K22: 51.1 | L22: 49.25 | M22: 61.46258
A23: 13 | B23: ADANITRANS | C23: 436.2 | D23: 436.20 | E23: 425.00 | F23: 413.80 | G23: 402.60 | H23: 447.40 | I23: 458.60 | J23: 469.80 | K23: 447.4 | L23: 425 | M23: 13.24653
A24: 14 | B24: ADVENZYMES | C24: 321.85 | D24: 323.27 | E24: 318.58 | F24: 315.32 | G24: 310.63 | H24: 326.53 | I24: 331.22 | J24: 334.48 | K24: 327.95 | L24: 320 | M24: 1.04536
A25: 15 | B25: AEGISCHEM | C25: 250.2 | D25: 250.03 | E25: 245.47 | F25: 240.73 | G25: 236.17 | H25: 254.77 | I25: 259.33 | J25: 264.07 | K25: 254.6 | L25: 245.3 | M25: 1.86165
A26: 16 | B26: AFFLE | C26: 3771.45 | D26: 3783.33 | E26: 3749.12 | F26: 3726.78 | G26: 3692.57 | H26: 3805.67 | I26: 3839.88 | J26: 3862.22 | K26: 3817.55 | L26: 3761 | M26: 0.27253
A27: 17 | B27: AIAENG | C27: 1995 | D27: 2003.32 | E27: 1976.63 | F27: 1958.27 | G27: 1931.58 | H27: 2021.68 | I27: 2048.37 | J27: 2066.73 | K27: 2030 | L27: 1984.95 | M27: 0.23591
A28: 18 | B28: AJANTPHARM | C28: 1669.35 | D28: 1673.12 | E28: 1661.23 | F28: 1653.12 | G28: 1641.23 | H28: 1681.23 | I28: 1693.12 | J28: 1701.23 | K28: 1685 | L28: 1665 | M28: 0.43738
A29: 19 | B29: AKZOINDIA | C29: 2401.55 | D29: 2381.97 | E29: 2319.53 | F29: 2237.52 | G29: 2175.08 | H29: 2463.98 | I29: 2526.42 | J29: 2608.43 | K29: 2444.4 | L29: 2299.95 | M29: 0.28789
A30: 20 | B30: ALKEM | C30: 2928.45 | D30: 2930.50 | E30: 2903.00 | F30: 2877.55 | G30: 2850.05 | H30: 2955.95 | I30: 2983.45 | J30: 3008.90 | K30: 2958 | L30: 2905.05 | M30: 0.42969
A31: 21 | B31: ALKYLAMINE | C31: 3846.35 | D31: 3854.83 | E31: 3792.67 | F31: 3738.98 | G31: 3676.82 | H31: 3908.52 | I31: 3970.68 | J31: 4024.37 | K31: 3917 | L31: 3801.15 | M31: 0.17074
A32: 22 | B32: ALLCARGO | C32: 133.65 | D32: 134.05 | E32: 131.10 | F32: 128.55 | G32: 125.60 | H32: 136.60 | I32: 139.55 | J32: 142.10 | K32: 137 | L32: 131.5 | M32: 6.76395
A33: 23 | B33: AMARAJABAT | C33: 935.95 | D33: 937.25 | E33: 928.70 | F33: 921.45 | G33: 912.90 | H33: 944.50 | I33: 953.05 | J33: 960.30 | K33: 945.8 | L33: 930 | M33: 7.01642
A34: 24 | B34: AMBER | C34: 2379.45 | D34: 2371.45 | E34: 2348.00 | F34: 2316.55 | G34: 2293.10 | H34: 2402.90 | I34: 2426.35 | J34: 2457.80 | K34: 2394.9 | L34: 2340 | M34: 0.66663
A35: 25 | B35: AMBUJACEM | C35: 252.4 | D35: 249.03 | E35: 245.07 | F35: 237.73 | G35: 233.77 | H35: 256.37 | I35: 260.33 | J35: 267.67 | K35: 253 | L35: 241.7 | M35: 104.81131
A36: 26 | B36: APLAPOLLO | C36: 835.35 | D36: 827.33 | E36: 813.92 | F36: 792.48 | G36: 779.07 | H36: 848.77 | I36: 862.18 | J36: 883.62 | K36: 840.75 | L36: 805.9 | M36: 3.94092
A37: 27 | B37: APLLTD | C37: 1033.15 | D37: 1037.02 | E37: 1017.13 | F37: 1001.12 | G37: 981.23 | H37: 1053.03 | I37: 1072.92 | J37: 1088.93 | K37: 1056.9 | L37: 1021 | M37: 1.84497
A38: 28 | B38: APOLLOHOSP | C38: 2396.35 | D38: 2383.85 | E38: 2363.70 | F38: 2331.05 | G38: 2310.90 | H38: 2416.50 | I38: 2436.65 | J38: 2469.30 | K38: 2404 | L38: 2351.2 | M38: 5.69168
A39: 29 | B39: APOLLOTYRE | C39: 179.9 | D39: 180.25 | E39: 178.15 | F39: 176.40 | G39: 174.30 | H39: 182.00 | I39: 184.10 | J39: 185.85 | K39: 182.35 | L39: 178.5 | M39: 57.49554
A40: 30 | B40: ARVINDFASN | C40: 157.15 | D40: 157.17 | E40: 155.03 | F40: 152.92 | G40: 150.78 | H40: 159.28 | I40: 161.42 | J40: 163.53 | K40: 159.3 | L40: 155.05 | M40: 2.17283
A41: 31 | B41: ASAHIINDIA | C41: 278.6 | D41: 282.70 | E41: 265.90 | F41: 253.20 | G41: 236.40 | H41: 295.40 | I41: 312.20 | J41: 324.90 | K41: 299.5 | L41: 270 | M41: 10.86581
A42: 32 | B42: ASHOKA | C42: 90.15 | D42: 89.88 | E42: 88.82 | F42: 87.48 | G42: 86.42 | H42: 91.22 | I42: 92.28 | J42: 93.62 | K42: 90.95 | L42: 88.55 | M42: 6.12323
A43: 33 | B43: ASHOKLEY | C43: 94.8 | D43: 94.52 | E43: 94.03 | F43: 93.27 | G43: 92.78 | H43: 95.28 | I43: 95.77 | J43: 96.53 | K43: 95 | L43: 93.75 | M43: 132.73848
A44: 34 | B44: ASIANPAINT | C44: 2734.4 | D44: 2719.20 | E44: 2695.55 | F44: 2656.70 | G44: 2633.05 | H44: 2758.05 | I44: 2781.70 | J44: 2820.55 | K44: 2742.85 | L44: 2680.35 | M44: 16.14643
A45: 35 | B45: ASTERDM | C45: 167.05 | D45: 166.13 | E45: 164.27 | F45: 161.48 | G45: 159.62 | H45: 168.92 | I45: 170.78 | J45: 173.57 | K45: 168 | L45: 163.35 | M45: 0.93146
A46: 36 | B46: ASTRAL | C46: 1717.05 | D46: 1686.03 | E46: 1627.07 | F46: 1537.08 | G46: 1478.12 | H46: 1776.02 | I46: 1834.98 | J46: 1924.97 | K46: 1745 | L46: 1596.05 | M46: 4.29551
A47: 37 | B47: ASTRAZEN | C47: 4642.3 | D47: 4624.42 | E47: 4476.83 | F47: 4311.37 | G47: 4163.78 | H47: 4789.88 | I47: 4937.47 | J47: 5102.93 | K47: 4772 | L47: 4458.95 | M47: 7.00072
A48: 38 | B48: ATUL | C48: 6480.2 | D48: 6444.40 | E48: 6368.80 | F48: 6257.40 | G48: 6181.80 | H48: 6555.80 | I48: 6631.40 | J48: 6742.80 | K48: 6520 | L48: 6333 | M48: 0.23037
A49: 39 | B49: AUBANK | C49: 852.45 | D49: 851.37 | E49: 842.73 | F49: 833.02 | G49: 824.38 | H49: 861.08 | I49: 869.72 | J49: 879.43 | K49: 860 | L49: 841.65 | M49: 5.91396
A50: 40 | B50: AUROPHARMA | C50: 906.75 | D50: 902.63 | E50: 896.27 | F50: 885.78 | G50: 879.42 | H50: 913.12 | I50: 919.48 | J50: 929.97 | K50: 909 | L50: 892.15 | M50: 16.6705
A51: 41 | B51: AVANTIFEED | C51: 522.55 | D51: 500.22 | E51: 462.43 | F51: 402.32 | G51: 364.53 | H51: 560.33 | I51: 598.12 | J51: 658.23 | K51: 538 | L51: 440.1 | M51: 4.36417
A52: 42 | B52: AXISBANK | C52: 625.1 | D52: 625.77 | E52: 617.53 | F52: 609.97 | G52: 601.73 | H52: 633.33 | I52: 641.57 | J52: 649.13 | K52: 634 | L52: 618.2 | M52: 102.62221
A53: 43 | B53: BAJAJ-AUTO | C53: 3448.15 | D53: 3442.08 | E53: 3411.32 | F53: 3374.48 | G53: 3343.72 | H53: 3478.92 | I53: 3509.68 | J53: 3546.52 | K53: 3472.85 | L53: 3405.25 | M53: 6.3918
A54: 44 | B54: BAJAJCON | C54: 215.85 | D54: 217.22 | E54: 213.63 | F54: 211.42 | G54: 207.83 | H54: 219.43 | I54: 223.02 | J54: 225.23 | K54: 220.8 | L54: 215 | M54: 1.93911
A55: 45 | B55: BAJAJELEC | C55: 613.55 | D55: 612.83 | E55: 607.67 | F55: 601.78 | G55: 596.62 | H55: 618.72 | I55: 623.88 | J55: 629.77 | K55: 618 | L55: 606.95 | M55: 0.54223
A56: 46 | B56: BAJAJFINSV | C56: 8961.7 | D56: 8967.88 | E56: 8914.82 | F56: 8867.93 | G56: 8814.87 | H56: 9014.77 | I56: 9067.83 | J56: 9114.72 | K56: 9020.95 | L56: 8921 | M56: 4.91074
A57: 47 | B57: BAJAJHLDNG | C57: 3105 | D57: 3092.60 | E57: 3060.20 | F57: 3015.40 | G57: 2983.00 | H57: 3137.40 | I57: 3169.80 | J57: 3214.60 | K57: 3125 | L57: 3047.8 | M57: 0.24651
A58: 48 | B58: BAJFINANCE | C58: 5334.15 | D58: 5285.38 | E58: 5222.77 | F58: 5111.38 | G58: 5048.77 | H58: 5396.77 | I58: 5459.38 | J58: 5570.77 | K58: 5348 | L58: 5174 | M58: 38.647
A59: 49 | B59: BALKRISIND | C59: 1615.05 | D59: 1603.00 | E59: 1582.05 | F59: 1549.05 | G59: 1528.10 | H59: 1636.00 | I59: 1656.95 | J59: 1689.95 | K59: 1623.95 | L59: 1570 | M59: 21.06717
A60: 50 | B60: BALMLAWRIE | C60: 128.45 | D60: 129.03 | E60: 126.07 | F60: 123.68 | G60: 120.72 | H60: 131.42 | I60: 134.38 | J60: 136.77 | K60: 132 | L60: 126.65 | M60: 18.25678
A61: 51 | B61: BALRAMCHIN | C61: 169.85 | D61: 170.42 | E61: 167.93 | F61: 166.02 | G61: 163.53 | H61: 172.33 | I61: 174.82 | J61: 176.73 | K61: 172.9 | L61: 168.5 | M61: 9.70232
A62: 52 | B62: BANDHANBNK | C62: 406.1 | D62: 408.37 | E62: 400.23 | F62: 394.37 | G62: 386.23 | H62: 414.23 | I62: 422.37 | J62: 428.23 | K62: 416.5 | L62: 402.5 | M62: 64.15631
A63: 53 | B63: BANKBARODA | C63: 62.1 | D63: 62.03 | E63: 60.82 | F63: 59.53 | G63: 58.32 | H63: 63.32 | I63: 64.53 | J63: 65.82 | K63: 63.25 | L63: 60.75 | M63: 331.0856
A64: 54 | B64: BANKINDIA | C64: 49.2 | D64: 49.30 | E64: 48.70 | F64: 48.20 | G64: 47.60 | H64: 49.80 | I64: 50.40 | J64: 50.90 | K64: 49.9 | L64: 48.8 | M64: 31.55428
A65: 55 | B65: BASF | C65: 1641.65 | D65: 1638.05 | E65: 1616.10 | F65: 1590.55 | G65: 1568.60 | H65: 1663.60 | I65: 1685.55 | J65: 1711.10 | K65: 1660 | L65: 1612.5 | M65: 0.26175
A66: 56 | B66: BATAINDIA | C66: 1581.1 | D66: 1579.88 | E66: 1571.22 | F66: 1561.33 | G66: 1552.67 | H66: 1589.77 | I66: 1598.43 | J66: 1608.32 | K66: 1588.55 | L66: 1570 | M66: 3.20841
A67: 57 | B67: BAYERCROP | C67: 5490.45 | D67: 5476.82 | E67: 5423.63 | F67: 5356.82 | G67: 5303.63 | H67: 5543.63 | I67: 5596.82 | J67: 5663.63 | K67: 5530 | L67: 5410 | M67: 0.13449
A68: 58 | B68: BBTC | C68: 1294.45 | D68: 1290.47 | E68: 1278.93 | F68: 1263.42 | G68: 1251.88 | H68: 1305.98 | I68: 1317.52 | J68: 1333.03 | K68: 1302 | L68: 1274.95 | M68: 0.3365
A69: 59 | B69: BDL | C69: 330.25 | D69: 331.08 | E69: 325.17 | F69: 320.08 | G69: 314.17 | H69: 336.17 | I69: 342.08 | J69: 347.17 | K69: 337 | L69: 326 | M69: 1.85264
A70: 60 | B70: BEL | C70: 114.4 | D70: 114.37 | E70: 113.43 | F70: 112.47 | G70: 111.53 | H70: 115.33 | I70: 116.27 | J70: 117.23 | K70: 115.3 | L70: 113.4 | M70: 63.3221
A71: 61 | B71: BEML | C71: 965.7 | D71: 972.07 | E71: 952.63 | F71: 939.57 | G71: 920.13 | H71: 985.13 | I71: 1004.57 | J71: 1017.63 | K71: 991.5 | L71: 959 | M71: 8.34824
A72: 62 | B72: BERGEPAINT | C72: 753.45 | D72: 749.17 | E72: 742.78 | F72: 732.12 | G72: 725.73 | H72: 759.83 | I72: 766.22 | J72: 776.88 | K72: 755.55 | L72: 738.5 | M72: 8.438
A73: 63 | B73: BHARATFORG | C73: 517.6 | D73: 518.98 | E73: 511.97 | F73: 506.33 | G73: 499.32 | H73: 524.62 | I73: 531.63 | J73: 537.27 | K73: 526 | L73: 513.35 | M73: 15.8326
A74: 64 | B74: BHARATRAS | C74: 9929.65 | D74: 9850.83 | E74: 9511.67 | F74: 9093.68 | G74: 8754.52 | H74: 10268.82 | I74: 10607.98 | J74: 11025.97 | K74: 10190 | L74: 9432.85 | M74: 0.38872
A75: 65 | B75: BHARTIARTL | C75: 516.15 | D75: 517.62 | E75: 511.83 | F75: 507.52 | G75: 501.73 | H75: 521.93 | I75: 527.72 | J75: 532.03 | K75: 523.4 | L75: 513.3 | M75: 104.94434
A76: 66 | B76: BHEL | C76: 35.4 | D76: 35.58 | E76: 34.77 | F76: 34.13 | G76: 33.32 | H76: 36.22 | I76: 37.03 | J76: 37.67 | K76: 36.4 | L76: 34.95 | M76: 552.67922
A77: 67 | B77: BIOCON | C77: 458.7 | D77: 458.53 | E77: 453.42 | F77: 448.13 | G77: 443.02 | H77: 463.82 | I77: 468.93 | J77: 474.22 | K77: 463.65 | L77: 453.25 | M77: 35.11633
A78: 68 | B78: BIRLACORPN | C78: 730.3 | D78: 723.73 | E78: 713.57 | F78: 696.83 | G78: 686.67 | H78: 740.47 | I78: 750.63 | J78: 767.37 | K78: 733.9 | L78: 707 | M78: 4.6189
A79: 69 | B79: BLISSGVS | C79: 205.4 | D79: 204.47 | E79: 187.93 | F79: 170.47 | G79: 153.93 | H79: 221.93 | I79: 238.47 | J79: 255.93 | K79: 221 | L79: 187 | M79: 33.38532
A80: 70 | B80: BLUEDART | C80: 4105 | D80: 4083.65 | E80: 4023.30 | F80: 3941.60 | G80: 3881.25 | H80: 4165.35 | I80: 4225.70 | J80: 4307.40 | K80: 4144 | L80: 4001.95 | M80: 0.44148
A81: 71 | B81: BLUESTARCO | C81: 801.55 | D81: 798.85 | E81: 792.70 | F81: 783.85 | G81: 777.70 | H81: 807.70 | I81: 813.85 | J81: 822.70 | K81: 805 | L81: 790 | M81: 0.8599
A82: 72 | B82: BOMDYEING | C82: 76.6 | D82: 75.70 | E82: 74.40 | F82: 72.20 | G82: 70.90 | H82: 77.90 | I82: 79.20 | J82: 81.40 | K82: 77 | L82: 73.5 | M82: 21.19514
A83: 73 | B83: BOSCHLTD | C83: 12818.55 | D83: 12811.85 | E83: 12673.70 | F83: 12528.85 | G83: 12390.70 | H83: 12956.70 | I83: 13094.85 | J83: 13239.70 | K83: 12950 | L83: 12667 | M83: 0.50895
A84: 74 | B84: BPCL | C84: 382.85 | D84: 381.95 | E84: 379.70 | F84: 376.55 | G84: 374.30 | H84: 385.10 | I84: 387.35 | J84: 390.50 | K84: 384.2 | L84: 378.8 | M84: 30.91717
A85: 75 | B85: BRIGADE | C85: 246.1 | D85: 245.90 | E85: 242.50 | F85: 238.90 | G85: 235.50 | H85: 249.50 | I85: 252.90 | J85: 256.50 | K85: 249.3 | L85: 242.3 | M85: 0.98228
A86: 76 | B86: BRITANNIA | C86: 3583.9 | D86: 3584.58 | E86: 3563.32 | F86: 3542.73 | G86: 3521.47 | H86: 3605.17 | I86: 3626.43 | J86: 3647.02 | K86: 3605.85 | L86: 3564 | M86: 4.07808
A87: 77 | B87: BSE | C87: 609.2 | D87: 611.23 | E87: 604.52 | F87: 599.83 | G87: 593.12 | H87: 615.92 | I87: 622.63 | J87: 627.32 | K87: 617.95 | L87: 606.55 | M87: 2.18172
A88: 78 | B88: BSOFT | C88: 253.8 | D88: 252.28 | E88: 247.57 | F88: 241.33 | G88: 236.62 | H88: 258.52 | I88: 263.23 | J88: 269.47 | K88: 257 | L88: 246.05 | M88: 10.57293
A89: 79 | B89: CADILAHC | C89: 479.35 | D89: 479.35 | E89: 475.80 | F89: 472.25 | G89: 468.70 | H89: 482.90 | I89: 486.45 | J89: 490.00 | K89: 482.9 | L89: 475.8 | M89: 18.39434
A90: 80 | B90: CANBK | C90: 129.35 | D90: 127.88 | E90: 125.07 | F90: 120.78 | G90: 117.97 | H90: 132.17 | I90: 134.98 | J90: 139.27 | K90: 130.7 | L90: 123.6 | M90: 456.99701
A91: 81 | B91: CANFINHOME | C91: 496.65 | D91: 495.88 | E91: 490.77 | F91: 484.88 | G91: 479.77 | H91: 501.77 | I91: 506.88 | J91: 512.77 | K91: 501 | L91: 490 | M91: 3.10217
A92: 82 | B92: CAPLIPOINT | C92: 503.1 | D92: 502.42 | E92: 497.78 | F92: 492.47 | G92: 487.83 | H92: 507.73 | I92: 512.37 | J92: 517.68 | K92: 507.05 | L92: 497.1 | M92: 1.10446
A93: 83 | B93: CARBORUNIV | C93: 404.7 | D93: 405.95 | E93: 393.25 | F93: 381.80 | G93: 369.10 | H93: 417.40 | I93: 430.10 | J93: 441.55 | K93: 418.65 | L93: 394.5 | M93: 5.84781
A94: 84 | B94: CARERATING | C94: 530.65 | D94: 531.22 | E94: 519.43 | F94: 508.22 | G94: 496.43 | H94: 542.43 | I94: 554.22 | J94: 565.43 | K94: 543 | L94: 520 | M94: 4.69531
A95: 85 | B95: CASTROLIND | C95: 123.55 | D95: 123.57 | E95: 121.38 | F95: 119.22 | G95: 117.03 | H95: 125.73 | I95: 127.92 | J95: 130.08 | K95: 125.75 | L95: 121.4 | M95: 31.67185
A96: 86 | B96: CCL | C96: 264.9 | D96: 265.72 | E96: 262.53 | F96: 260.17 | G96: 256.98 | H96: 268.08 | I96: 271.27 | J96: 273.63 | K96: 268.9 | L96: 263.35 | M96: 0.63955
A97: 87 | B97: CDSL | C97: 524.8 | D97: 522.58 | E97: 517.67 | F97: 510.53 | G97: 505.62 | H97: 529.72 | I97: 534.63 | J97: 541.77 | K97: 527.5 | L97: 515.45 | M97: 5.45847
A98: 88 | B98: CEATLTD | C98: 1071.5 | D98: 1069.28 | E98: 1053.77 | F98: 1036.03 | G98: 1020.52 | H98: 1087.02 | I98: 1102.53 | J98: 1120.27 | K98: 1084.8 | L98: 1051.55 | M98: 1.67838
A99: 89 | B99: CENTRALBK | C99: 13.75 | D99: 13.80 | E99: 13.60 | F99: 13.45 | G99: 13.25 | H99: 13.95 | I99: 14.15 | J99: 14.30 | K99: 14 | L99: 13.65 | M99: 31.43924
A100: 90 | B100: CENTURYPLY | C100: 233.85 | D100: 233.93 | E100: 230.37 | F100: 226.88 | G100: 223.32 | H100: 237.42 | I100: 240.98 | J100: 244.47 | K100: 237.5 | L100: 230.45 | M100: 2.33297
A101: 91 | B101: CENTURYTEX | C101: 395.75 | D101: 395.38 | E101: 390.87 | F101: 385.98 | G101: 381.47 | H101: 400.27 | I101: 404.78 | J101: 409.67 | K101: 399.9 | L101: 390.5 | M101: 8.71725
A102: 92 | B102: CERA | C102: 3420.3 | D102: 3456.08 | E102: 3362.17 | F102: 3304.03 | G102: 3210.12 | H102: 3514.22 | I102: 3608.13 | J102: 3666.27 | K102: 3550 | L102: 3397.95 | M102: 0.11499
A103: 93 | B103: CESC | C103: 609.5 | D103: 609.28 | E103: 605.42 | F103: 601.33 | G103: 597.47 | H103: 613.37 | I103: 617.23 | J103: 621.32 | K103: 613.15 | L103: 605.2 | M103: 2.77179
A104: 94 | B104: CGCL | C104: 310.15 | D104: 308.73 | E104: 305.12 | F104: 300.08 | G104: 296.47 | H104: 313.77 | I104: 317.38 | J104: 322.42 | K104: 312.35 | L104: 303.7 | M104: 0.89429
A105: 95 | B105: CHAMBLFERT | C105: 232.3 | D105: 233.93 | E105: 228.37 | F105: 224.43 | G105: 218.87 | H105: 237.87 | I105: 243.43 | J105: 247.37 | K105: 239.5 | L105: 230 | M105: 9.68455
A106: 96 | B106: CHENNPETRO | C106: 106 | D106: 105.80 | E106: 103.70 | F106: 101.40 | G106: 99.30 | H106: 108.10 | I106: 110.20 | J106: 112.50 | K106: 107.9 | L106: 103.5 | M106: 9.282
A107: 97 | B107: CHOLAFIN | C107: 384.9 | D107: 382.43 | E107: 378.82 | F107: 372.73 | G107: 369.12 | H107: 388.52 | I107: 392.13 | J107: 398.22 | K107: 386.05 | L107: 376.35 | M107: 22.18568
A108: 98 | B108: CHOLAHLDNG | C108: 544.55 | D108: 544.30 | E108: 536.90 | F108: 529.25 | G108: 521.85 | H108: 551.95 | I108: 559.35 | J108: 567.00 | K108: 551.7 | L108: 536.65 | M108: 3.54783
A109: 99 | B109: CIPLA | C109: 823.8 | D109: 823.28 | E109: 816.57 | F109: 809.33 | G109: 802.62 | H109: 830.52 | I109: 837.23 | J109: 844.47 | K109: 830 | L109: 816.05 | M109: 27.15404
A110: 100 | B110: COALINDIA | C110: 135.6 | D110: 135.52 | E110: 134.28 | F110: 132.97 | G110: 131.73 | H110: 136.83 | I110: 138.07 | J110: 139.38 | K110: 136.75 | L110: 134.2 | M110: 141.80071
A111: 101 | B111: COCHINSHIP | C111: 382.05 | D111: 376.50 | E111: 366.25 | F111: 350.45 | G111: 340.20 | H111: 392.30 | I111: 402.55 | J111: 418.35 | K111: 386.75 | L111: 360.7 | M111: 12.62298
A112: 102 | B112: COFORGE | C112: 2694.6 | D112: 2686.55 | E112: 2665.10 | F112: 2635.60 | G112: 2614.15 | H112: 2716.05 | I112: 2737.50 | J112: 2767.00 | K112: 2708 | L112: 2657.05 | M112: 2.40135
A113: 103 | B113: COLPAL | C113: 1579 | D113: 1574.70 | E113: 1567.40 | F113: 1555.80 | G113: 1548.50 | H113: 1586.30 | I113: 1593.60 | J113: 1605.20 | K113: 1582 | L113: 1563.1 | M113: 2.7149
A114: 104 | B114: CONCOR | C114: 398.85 | D114: 397.50 | E114: 393.50 | F114: 388.15 | G114: 384.15 | H114: 402.85 | I114: 406.85 | J114: 412.20 | K114: 401.5 | L114: 392.15 | M114: 15.96712
A115: 105 | B115: COROMANDEL | C115: 803.25 | D115: 803.92 | E115: 792.58 | F115: 781.92 | G115: 770.58 | H115: 814.58 | I115: 825.92 | J115: 836.58 | K115: 815.25 | L115: 793.25 | M115: 71.49481
A116: 106 | B116: CREDITACC | C116: 767.75 | D116: 771.92 | E116: 760.83 | F116: 753.92 | G116: 742.83 | H116: 778.83 | I116: 789.92 | J116: 796.83 | K116: 783 | L116: 765 | M116: 0.62819
A117: 107 | B117: CRISIL | C117: 1918.65 | D117: 1912.10 | E117: 1901.55 | F117: 1884.45 | G117: 1873.90 | H117: 1929.20 | I117: 1939.75 | J117: 1956.85 | K117: 1922.65 | L117: 1895 | M117: 0.07494
A118: 108 | B118: CROMPTON | C118: 368.35 | D118: 365.78 | E118: 359.57 | F118: 350.78 | G118: 344.57 | H118: 374.57 | I118: 380.78 | J118: 389.57 | K118: 372 | L118: 357 | M118: 28.38088
A119: 109 | B119: CSBBANK | C119: 217 | D119: 218.63 | E119: 214.37 | F119: 211.73 | G119: 207.47 | H119: 221.27 | I119: 225.53 | J119: 228.17 | K119: 222.9 | L119: 216 | M119: 1.98742
A120: 110 | B120: CUB | C120: 178.1 | D120: 178.37 | E120: 176.73 | F120: 175.37 | G120: 173.73 | H120: 179.73 | I120: 181.37 | J120: 182.73 | K120: 180 | L120: 177 | M120: 10.59595
A121: 111 | B121: CUMMINSIND | C121: 571.65 | D121: 574.93 | E121: 563.87 | F121: 556.08 | G121: 545.02 | H121: 582.72 | I121: 593.78 | J121: 601.57 | K121: 586 | L121: 567.15 | M121: 22.12476
A122: 112 | B122: CYIENT | C122: 514.7 | D122: 513.90 | E122: 509.80 | F122: 504.90 | G122: 500.80 | H122: 518.80 | I122: 522.90 | J122: 527.80 | K122: 518 | L122: 509 | M122: 1.99644
A123: 113 | B123: DABUR | C123: 539.55 | D123: 534.80 | E123: 529.10 | F123: 518.65 | G123: 512.95 | H123: 545.25 | I123: 550.95 | J123: 561.40 | K123: 540.5 | L123: 524.35 | M123: 66.6677
A124: 114 | B124: DALBHARAT | C124: 1077.75 | D124: 1067.62 | E124: 1045.23 | F124: 1012.72 | G124: 990.33 | H124: 1100.13 | I124: 1122.52 | J124: 1155.03 | K124: 1090 | L124: 1035.1 | M124: 2.10404
A125: 115 | B125: DBCORP | C125: 81.65 | D125: 81.47 | E125: 80.78 | F125: 79.92 | G125: 79.23 | H125: 82.33 | I125: 83.02 | J125: 83.88 | K125: 82.15 | L125: 80.6 | M125: 1.20421
A126: 116 | B126: DBL | C126: 394.45 | D126: 394.05 | E126: 389.40 | F126: 384.35 | G126: 379.70 | H126: 399.10 | I126: 403.75 | J126: 408.80 | K126: 398.7 | L126: 389 | M126: 1.20443
A127: 117 | B127: DCAL | C127: 137 | D127: 138.13 | E127: 135.37 | F127: 133.73 | G127: 130.97 | H127: 139.77 | I127: 142.53 | J127: 144.17 | K127: 140.9 | L127: 136.5 | M127: 4.29229
A128: 118 | B128: DCBBANK | C128: 120.1 | D128: 119.20 | E128: 117.90 | F128: 115.70 | G128: 114.40 | H128: 121.40 | I128: 122.70 | J128: 124.90 | K128: 120.5 | L128: 117 | M128: 16.72849
A129: 119 | B129: DCMSHRIRAM | C129: 389.4 | D129: 391.13 | E129: 383.27 | F129: 377.13 | G129: 369.27 | H129: 397.27 | I129: 405.13 | J129: 411.27 | K129: 399 | L129: 385 | M129: 0.69178
A130: 120 | B130: DEEPAKNTR | C130: 927.85 | D130: 924.45 | E130: 913.90 | F130: 899.95 | G130: 889.40 | H130: 938.40 | I130: 948.95 | J130: 962.90 | K130: 935 | L130: 910.5 | M130: 5.23199
A131: 121 | B131: DELTACORP | C131: 162.7 | D131: 162.40 | E131: 160.70 | F131: 158.70 | G131: 157.00 | H131: 164.40 | I131: 166.10 | J131: 168.10 | K131: 164.1 | L131: 160.4 | M131: 17.36278
A132: 122 | B132: DHANUKA | C132: 784.95 | D132: 789.78 | E132: 777.17 | F132: 769.38 | G132: 756.77 | H132: 797.57 | I132: 810.18 | J132: 817.97 | K132: 802.4 | L132: 782 | M132: 0.95502
A133: 123 | B133: DISHTV | C133: 13.35 | D133: 13.15 | E133: 12.80 | F133: 12.25 | G133: 11.90 | H133: 13.70 | I133: 14.05 | J133: 14.60 | K133: 13.5 | L133: 12.6 | M133: 224.22051
A134: 124 | B134: DIVISLAB | C134: 3799.7 | D134: 3793.52 | E134: 3767.03 | F134: 3734.37 | G134: 3707.88 | H134: 3826.18 | I134: 3852.67 | J134: 3885.33 | K134: 3820 | L134: 3760.85 | M134: 4.0794
A135: 125 | B135: DIXON | C135: 13368.45 | D135: 13413.77 | E135: 13256.53 | F135: 13144.62 | G135: 12987.38 | H135: 13525.68 | I135: 13682.92 | J135: 13794.83 | K135: 13571 | L135: 13301.85 | M135: 0.27262
A136: 126 | B136: DLF | C136: 235.95 | D136: 233.82 | E136: 230.63 | F136: 225.32 | G136: 222.13 | H136: 239.13 | I136: 242.32 | J136: 247.63 | K136: 237 | L136: 228.5 | M136: 90.7315
A137: 127 | B137: DMART | C137: 2680.3 | D137: 2682.55 | E137: 2640.10 | F137: 2599.90 | G137: 2557.45 | H137: 2722.75 | I137: 2765.20 | J137: 2805.40 | K137: 2725 | L137: 2642.35 | M137: 4.79318
A138: 128 | B138: DRREDDY | C138: 5170.95 | D138: 5168.30 | E138: 5145.15 | F138: 5119.35 | G138: 5096.20 | H138: 5194.10 | I138: 5217.25 | J138: 5243.05 | K138: 5191.45 | L138: 5142.5 | M138: 4.75269
A139: 129 | B139: ECLERX | C139: 901.45 | D139: 901.57 | E139: 892.78 | F139: 884.12 | G139: 875.33 | H139: 910.23 | I139: 919.02 | J139: 927.68 | K139: 910.35 | L139: 892.9 | M139: 0.63726
A140: 130 | B140: EDELWEISS | C140: 70.3 | D140: 70.27 | E140: 69.23 | F140: 68.17 | G140: 67.13 | H140: 71.33 | I140: 72.37 | J140: 73.43 | K140: 71.3 | L140: 69.2 | M140: 4.99616
A141: 131 | B141: EICHERMOT | C141: 2517.35 | D141: 2498.90 | E141: 2472.80 | F141: 2428.25 | G141: 2402.15 | H141: 2543.45 | I141: 2569.55 | J141: 2614.10 | K141: 2525 | L141: 2454.35 | M141: 24.29452
A142: 132 | B142: EIDPARRY | C142: 352.25 | D142: 354.10 | E142: 342.20 | F142: 332.15 | G142: 320.25 | H142: 364.15 | I142: 376.05 | J142: 386.10 | K142: 366 | L142: 344.05 | M142: 32.7394
A143: 133 | B143: EIHOTEL | C143: 90.6 | D143: 89.90 | E143: 88.85 | F143: 87.10 | G143: 86.05 | H143: 91.65 | I143: 92.70 | J143: 94.45 | K143: 90.95 | L143: 88.15 | M143: 4.0902
A144: 134 | B144: ELGIEQUIP | C144: 154.85 | D144: 155.28 | E144: 153.02 | F144: 151.18 | G144: 148.92 | H144: 157.12 | I144: 159.38 | J144: 161.22 | K144: 157.55 | L144: 153.45 | M144: 0.86725
A145: 135 | B145: EMAMILTD | C145: 423.45 | D145: 423.95 | E145: 421.00 | F145: 418.55 | G145: 415.60 | H145: 426.40 | I145: 429.35 | J145: 431.80 | K145: 426.9 | L145: 421.5 | M145: 8.96597
A146: 136 | B146: ENDURANCE | C146: 1344.7 | D146: 1325.97 | E146: 1301.93 | F146: 1259.17 | G146: 1235.13 | H146: 1368.73 | I146: 1392.77 | J146: 1435.53 | K146: 1350 | L146: 1283.2 | M146: 2.56951
A147: 137 | B147: ENGINERSIN | C147: 78.95 | D147: 78.73 | E147: 78.02 | F147: 77.08 | G147: 76.37 | H147: 79.67 | I147: 80.38 | J147: 81.32 | K147: 79.45 | L147: 77.8 | M147: 29.93049
A148: 138 | B148: EQUITAS | C148: 68.05 | D148: 67.53 | E148: 66.57 | F148: 65.08 | G148: 64.12 | H148: 69.02 | I148: 69.98 | J148: 71.47 | K148: 68.5 | L148: 66.05 | M148: 20.87058
A149: 139 | B149: ERIS | C149: 572.3 | D149: 575.43 | E149: 566.87 | F149: 561.43 | G149: 552.87 | H149: 580.87 | I149: 589.43 | J149: 594.87 | K149: 584 | L149: 570 | M149: 0.48894
A150: 140 | B150: ESABINDIA | C150: 1868.65 | D150: 1860.53 | E150: 1816.07 | F150: 1763.48 | G150: 1719.02 | H150: 1913.12 | I150: 1957.58 | J150: 2010.17 | K150: 1905 | L150: 1807.95 | M150: 0.10755
A151: 141 | B151: ESCORTS | C151: 1265.15 | D151: 1267.80 | E151: 1251.95 | F151: 1238.75 | G151: 1222.90 | H151: 1281.00 | I151: 1296.85 | J151: 1310.05 | K151: 1283.65 | L151: 1254.6 | M151: 18.53063
A152: 143 | B152: EXIDEIND | C152: 191.35 | D152: 190.87 | E152: 188.23 | F152: 185.12 | G152: 182.48 | H152: 193.98 | I152: 196.62 | J152: 199.73 | K152: 193.5 | L152: 187.75 | M152: 54.51885
A153: 144 | B153: FCONSUMER | C153: 8.4 | D153: 8.38 | E153: 8.32 | F153: 8.23 | G153: 8.17 | H153: 8.47 | I153: 8.53 | J153: 8.62 | K153: 8.45 | L153: 8.3 | M153: 43.42828
A154: 145 | B154: FDC | C154: 325.65 | D154: 325.53 | E154: 323.12 | F154: 320.58 | G154: 318.17 | H154: 328.07 | I154: 330.48 | J154: 333.02 | K154: 327.95 | L154: 323 | M154: 1.2413
A155: 146 | B155: FEDERALBNK | C155: 67.25 | D155: 67.18 | E155: 66.37 | F155: 65.48 | G155: 64.67 | H155: 68.07 | I155: 68.88 | J155: 69.77 | K155: 68 | L155: 66.3 | M155: 194.96396
A156: 147 | B156: FINCABLES | C156: 340.6 | D156: 343.73 | E156: 336.67 | F156: 332.73 | G156: 325.67 | H156: 347.67 | I156: 354.73 | J156: 358.67 | K156: 350.8 | L156: 339.8 | M156: 0.99848
A157: 148 | B157: FINEORG | C157: 2513.6 | D157: 2510.87 | E157: 2487.73 | F157: 2461.87 | G157: 2438.73 | H157: 2536.73 | I157: 2559.87 | J157: 2585.73 | K157: 2534 | L157: 2485 | M157: 0.17436
A158: 149 | B158: FINPIPE | C158: 646.65 | D158: 646.27 | E158: 638.08 | F158: 629.52 | G158: 621.33 | H158: 654.83 | I158: 663.02 | J158: 671.58 | K158: 654.45 | L158: 637.7 | M158: 0.53584
A159: 150 | B159: FLUOROCHEM | C159: 569 | D159: 569.77 | E159: 560.78 | F159: 552.57 | G159: 543.58 | H159: 577.98 | I159: 586.97 | J159: 595.18 | K159: 578.75 | L159: 561.55 | M159: 0.3478
A160: 151 | B160: FORTIS | C160: 154.3 | D160: 153.97 | E160: 151.73 | F160: 149.17 | G160: 146.93 | H160: 156.53 | I160: 158.77 | J160: 161.33 | K160: 156.2 | L160: 151.4 | M160: 13.09215
A161: 152 | B161: FRETAIL | C161: 77.25 | D161: 77.13 | E161: 76.72 | F161: 76.18 | G161: 75.77 | H161: 77.67 | I161: 78.08 | J161: 78.62 | K161: 77.55 | L161: 76.6 | M161: 13.70522
A162: 153 | B162: FSL | C162: 99.2 | D162: 100.97 | E162: 97.03 | F162: 94.87 | G162: 90.93 | H162: 103.13 | I162: 107.07 | J162: 109.23 | K162: 104.9 | L162: 98.8 | M162: 53.64013
A163: 154 | B163: GAIL | C163: 123.1 | D163: 122.97 | E163: 121.73 | F163: 120.37 | G163: 119.13 | H163: 124.33 | I163: 125.57 | J163: 126.93 | K163: 124.2 | L163: 121.6 | M163: 115.47865
A164: 155 | B164: GALAXYSURF | C164: 1997.05 | D164: 2001.53 | E164: 1985.02 | F164: 1972.98 | G164: 1956.47 | H164: 2013.57 | I164: 2030.08 | J164: 2042.12 | K164: 2018.05 | L164: 1989.5 | M164: 0.1658
A165: 156 | B165: GARFIBRES | C165: 2250.35 | D165: 2222.15 | E165: 2187.30 | F165: 2124.25 | G165: 2089.40 | H165: 2285.20 | I165: 2320.05 | J165: 2383.10 | K165: 2257 | L165: 2159.1 | M165: 0.19503
A166: 157 | B166: GEPIL | C166: 285.05 | D166: 282.72 | E166: 279.43 | F166: 273.82 | G166: 270.53 | H166: 288.33 | I166: 291.62 | J166: 297.23 | K166: 286 | L166: 277.1 | M166: 0.68794
A167: 158 | B167: GESHIP | C167: 264.15 | D167: 262.90 | E167: 259.80 | F167: 255.45 | G167: 252.35 | H167: 267.25 | I167: 270.35 | J167: 274.70 | K167: 266 | L167: 258.55 | M167: 2.09809
A168: 159 | B168: GET&D | C168: 118.6 | D168: 118.40 | E168: 114.40 | F168: 110.20 | G168: 106.20 | H168: 122.60 | I168: 126.60 | J168: 130.80 | K168: 122.4 | L168: 114.2 | M168: 1.547
A169: 160 | B169: GHCL | C169: 205.2 | D169: 207.47 | E169: 201.53 | F169: 197.87 | G169: 191.93 | H169: 211.13 | I169: 217.07 | J169: 220.73 | K169: 213.4 | L169: 203.8 | M169: 5.45222
A170: 161 | B170: GICRE | C170: 139.45 | D170: 139.83 | E170: 138.32 | F170: 137.18 | G170: 135.67 | H170: 140.97 | I170: 142.48 | J170: 143.62 | K170: 141.35 | L170: 138.7 | M170: 1.87391
A171: 162 | B171: GILLETTE | C171: 5795.85 | D171: 5803.43 | E171: 5754.87 | F171: 5713.88 | G171: 5665.32 | H171: 5844.42 | I171: 5892.98 | J171: 5933.97 | K171: 5852 | L171: 5762.45 | M171: 0.04639
A172: 163 | B172: GLAXO | C172: 1601.45 | D172: 1596.47 | E172: 1582.93 | F172: 1564.42 | G172: 1550.88 | H172: 1614.98 | I172: 1628.52 | J172: 1647.03 | K172: 1610 | L172: 1577.95 | M172: 0.25274
A173: 164 | B173: GLENMARK | C173: 499.25 | D173: 497.45 | E173: 494.55 | F173: 489.85 | G173: 486.95 | H173: 502.15 | I173: 505.05 | J173: 509.75 | K173: 500.35 | L173: 492.75 | M173: 14.90678
A174: 165 | B174: GMDCLTD | C174: 51.65 | D174: 51.23 | E174: 50.12 | F174: 48.58 | G174: 47.47 | H174: 52.77 | I174: 53.88 | J174: 55.42 | K174: 52.35 | L174: 49.7 | M174: 10.20004
A175: 166 | B175: GMMPFAUDLR | C175: 3770.45 | D175: 3766.15 | E175: 3685.30 | F175: 3600.15 | G175: 3519.30 | H175: 3851.30 | I175: 3932.15 | J175: 4017.30 | K175: 3847 | L175: 3681 | M175: 0.86827
A176: 167 | B176: GMRINFRA | C176: 27.4 | D176: 27.27 | E176: 26.43 | F176: 25.47 | G176: 24.63 | H176: 28.23 | I176: 29.07 | J176: 30.03 | K176: 28.1 | L176: 26.3 | M176: 1461.11191
A177: 168 | B177: GNFC | C177: 222.5 | D177: 224.00 | E177: 219.60 | F177: 216.70 | G177: 212.30 | H177: 226.90 | I177: 231.30 | J177: 234.20 | K177: 228.4 | L177: 221.1 | M177: 7.49457
A178: 169 | B178: GODFRYPHLP | C178: 974.85 | D178: 977.18 | E178: 963.22 | F178: 951.58 | G178: 937.62 | H178: 988.82 | I178: 1002.78 | J178: 1014.42 | K178: 991.15 | L178: 965.55 | M178: 0.48452
A179: 170 | B179: GODREJAGRO | C179: 535.7 | D179: 536.13 | E179: 532.57 | F179: 529.43 | G179: 525.87 | H179: 539.27 | I179: 542.83 | J179: 545.97 | K179: 539.7 | L179: 533 | M179: 0.97701
A180: 171 | B180: GODREJCP | C180: 749.15 | D180: 748.12 | E180: 739.33 | F180: 729.52 | G180: 720.73 | H180: 757.93 | I180: 766.72 | J180: 776.53 | K180: 756.9 | L180: 738.3 | M180: 21.88175
A181: 172 | B181: GODREJIND | C181: 423.75 | D181: 428.32 | E181: 415.63 | F181: 407.52 | G181: 394.83 | H181: 436.43 | I181: 449.12 | J181: 457.23 | K181: 441 | L181: 420.2 | M181: 2.56257
A182: 173 | B182: GODREJPROP | C182: 1393.75 | D182: 1395.53 | E182: 1373.22 | F182: 1352.68 | G182: 1330.37 | H182: 1416.07 | I182: 1438.38 | J182: 1458.92 | K182: 1417.85 | L182: 1375 | M182: 10.84354
A183: 174 | B183: GPPL | C183: 99.85 | D183: 99.70 | E183: 97.65 | F183: 95.45 | G183: 93.40 | H183: 101.90 | I183: 103.95 | J183: 106.15 | K183: 101.75 | L183: 97.5 | M183: 24.07974
A184: 175 | B184: GRANULES | C184: 363.35 | D184: 365.18 | E184: 359.47 | F184: 355.58 | G184: 349.87 | H184: 369.07 | I184: 374.78 | J184: 378.67 | K184: 370.9 | L184: 361.3 | M184: 9.28292
A185: 176 | B185: GRAPHITE | C185: 307.25 | D185: 307.50 | E185: 301.75 | F185: 296.25 | G185: 290.50 | H185: 313.00 | I185: 318.75 | J185: 324.25 | K185: 313.25 | L185: 302 | M185: 9.65013
A186: 177 | B186: GRASIM | C186: 934.4 | D186: 923.55 | E186: 908.15 | F186: 881.90 | G186: 866.50 | H186: 949.80 | I186: 965.20 | J186: 991.45 | K186: 938.95 | L186: 897.3 | M186: 22.80218
A187: 178 | B187: GREAVESCOT | C187: 86.4 | D187: 86.53 | E187: 85.37 | F187: 84.33 | G187: 83.17 | H187: 87.57 | I187: 88.73 | J187: 89.77 | K187: 87.7 | L187: 85.5 | M187: 10.12757
A188: 179 | B188: GRINDWELL | C188: 722.95 | D188: 727.73 | E188: 708.22 | F188: 693.48 | G188: 673.97 | H188: 742.47 | I188: 761.98 | J188: 776.72 | K188: 747.25 | L188: 713 | M188: 0.52273
A189: 180 | B189: GRSE | C189: 195.4 | D189: 196.10 | E189: 193.70 | F189: 192.00 | G189: 189.60 | H189: 197.80 | I189: 200.20 | J189: 201.90 | K189: 198.5 | L189: 194.4 | M189: 2.04795
A190: 181 | B190: GSFC | C190: 73.5 | D190: 74.15 | E190: 72.55 | F190: 71.60 | G190: 70.00 | H190: 75.10 | I190: 76.70 | J190: 77.65 | K190: 75.75 | L190: 73.2 | M190: 6.48267
A191: 182 | B191: GSPL | C191: 223.65 | D191: 221.13 | E191: 217.77 | F191: 211.88 | G191: 208.52 | H191: 227.02 | I191: 230.38 | J191: 236.27 | K191: 224.5 | L191: 215.25 | M191: 9.65352
A192: 183 | B192: GUJALKALI | C192: 358.5 | D192: 358.28 | E192: 353.57 | F192: 348.63 | G192: 343.92 | H192: 363.22 | I192: 367.93 | J192: 372.87 | K192: 363 | L192: 353.35 | M192: 1.33223
A193: 184 | B193: GUJGASLTD | C193: 382.2 | D193: 380.38 | E193: 376.12 | F193: 370.03 | G193: 365.77 | H193: 386.47 | I193: 390.73 | J193: 396.82 | K193: 384.65 | L193: 374.3 | M193: 5.44797
A194: 185 | B194: GULFOILLUB | C194: 719 | D194: 734.00 | E194: 703.00 | F194: 687.00 | G194: 656.00 | H194: 750.00 | I194: 781.00 | J194: 797.00 | K194: 765 | L194: 718 | M194: 0.21305
A195: 186 | B195: HAL | C195: 831.05 | D195: 831.35 | E195: 822.70 | F195: 814.35 | G195: 805.70 | H195: 839.70 | I195: 848.35 | J195: 856.70 | K195: 840 | L195: 823 | M195: 1.93476
A196: 187 | B196: HATHWAY | C196: 32.7 | D196: 32.60 | E196: 32.40 | F196: 32.10 | G196: 31.90 | H196: 32.90 | I196: 33.10 | J196: 33.40 | K196: 32.8 | L196: 32.3 | M196: 2.79539
A197: 188 | B197: HATSUN | C197: 727.35 | D197: 727.30 | E197: 714.05 | F197: 700.75 | G197: 687.50 | H197: 740.60 | I197: 753.85 | J197: 767.15 | K197: 740.55 | L197: 714 | M197: 0.3967
A198: 189 | B198: HAVELLS | C198: 904.65 | D198: 904.08 | E198: 897.87 | F198: 891.08 | G198: 884.87 | H198: 910.87 | I198: 917.08 | J198: 923.87 | K198: 910.3 | L198: 897.3 | M198: 8.86047
A199: 190 | B199: HCLTECH | C199: 940.7 | D199: 940.57 | E199: 931.13 | F199: 921.57 | G199: 912.13 | H199: 950.13 | I199: 959.57 | J199: 969.13 | K199: 950 | L199: 931 | M199: 63.82809
A200: 191 | B200: HDFC | C200: 2518.05 | D200: 2508.68 | E200: 2492.37 | F200: 2466.68 | G200: 2450.37 | H200: 2534.37 | I200: 2550.68 | J200: 2576.37 | K200: 2525 | L200: 2483 | M200: 29.02423
A201: 192 | B201: HDFCAMC | C201: 2908.7 | D201: 2903.93 | E201: 2880.87 | F201: 2853.03 | G201: 2829.97 | H201: 2931.77 | I201: 2954.83 | J201: 2982.67 | K201: 2927 | L201: 2876.1 | M201: 2.37351
A202: 193 | B202: HDFCBANK | C202: 1432.5 | D202: 1428.47 | E202: 1417.03 | F202: 1401.57 | G202: 1390.13 | H202: 1443.93 | I202: 1455.37 | J202: 1470.83 | K202: 1439.9 | L202: 1413 | M202: 81.08363
A203: 194 | B203: HDFCLIFE | C203: 675.7 | D203: 673.90 | E203: 668.80 | F203: 661.90 | G203: 656.80 | H203: 680.80 | I203: 685.90 | J203: 692.80 | K203: 679 | L203: 667 | M203: 28.86107
A204: 195 | B204: HEG | C204: 931.8 | D204: 937.58 | E204: 917.22 | F204: 902.63 | G204: 882.27 | H204: 952.17 | I204: 972.53 | J204: 987.12 | K204: 957.95 | L204: 923 | M204: 5.5499
A205: 196 | B205: HEIDELBERG | C205: 229.25 | D205: 226.50 | E205: 218.25 | F205: 207.25 | G205: 199.00 | H205: 237.50 | I205: 245.75 | J205: 256.75 | K205: 234.75 | L205: 215.5 | M205: 16.62151
A206: 197 | B206: HERITGFOOD | C206: 299.65 | D206: 299.05 | E206: 295.60 | F206: 291.55 | G206: 288.10 | H206: 303.10 | I206: 306.55 | J206: 310.60 | K206: 302.5 | L206: 295 | M206: 0.58059
... 316 more rows

Sheet Bulk Deals
E6: Back To Main Page
A7: Subject : | B7: BULK DEAL | D7: =Main!B10 -> 2020-12-31
A9: Date | B9: Scrip code | C9: Scrip Name | D9: Client Name | E9: Buy / Sell | F9: Quantity Traded | G9: Trade Price / Wt.Avg.trade price | H9: Exchange
A10: 2020-12-30 | B10: 542437 | C10: ANMOL | D10: MANISH MITTAL | E10: BUY | F10: 4,000 | G10: 34.95 | H10: BSE
A11: 2020-12-30 | B11: 542437 | C11: ANMOL | D11: YASH PAL HUF | E11: BUY | F11: 220,000 | G11: 34.16 | H11: BSE
A12: 2020-12-30 | B12: 542437 | C12: ANMOL | D12: MANISH MITTAL | E12: SELL | F12: 100,000 | G12: 34.2 | H12: BSE
A13: 2020-12-30 | B13: 542437 | C13: ANMOL | D13: ANKIT MITTAL | E13: SELL | F13: 108,000 | G13: 34.11 | H13: BSE
A14: 2020-12-30 | B14: 523019 | C14: BNRSEC | D14: CHANDA DEVI RATHI | E14: BUY | F14: 32,945 | G14: 24.9 | H14: BSE
A15: 2020-12-30 | B15: 523019 | C15: BNRSEC | D15: SUBHADRA DUGGI | E15: SELL | F15: 26,155 | G15: 24.9 | H15: BSE
A16: 2020-12-30 | B16: 506395 | C16: COROMANDEL | D16: E I D PARRY INDIA LIMITED | E16: SELL | F16: 5,850,000 | G16: 803.19 | H16: BSE
A17: 2020-12-30 | B17: 540190 | C17: FRANKLININD | D17: SHAIKH ASRAFALI NURULHUDA | E17: BUY | F17: 30,400 | G17: 13.5 | H17: BSE
A18: 2020-12-30 | B18: 540190 | C18: FRANKLININD | D18: KARAN BIRJUBHAI SANGHVI | E18: SELL | F18: 24,000 | G18: 13.5 | H18: BSE
A19: 2020-12-30 | B19: 541627 | C19: HITECHWIND | D19: MANISH BIPINCHANDRA GOR | E19: SELL | F19: 31,100 | G19: 16.2 | H19: BSE
A20: 2020-12-30 | B20: 541627 | C20: HITECHWIND | D20: NEETA RAJESH GOTHI | E20: BUY | F20: 30,860 | G20: 16.2 | H20: BSE
A21: 2020-12-30 | B21: 542935 | C21: ICLORGANIC | D21: RAMAN TALWAR | E21: BUY | F21: 24,000 | G21: 24.3 | H21: BSE
A22: 2020-12-30 | B22: 542935 | C22: ICLORGANIC | D22: RAMAN TALWAR | E22: SELL | F22: 42,000 | G22: 24.68 | H22: BSE
A23: 2020-12-30 | B23: 536709 | C23: INDRENEW | D23: RAMESH UTTAMCHAND JEWANI | E23: SELL | F23: 31,459 | G23: 7.43 | H23: BSE
A24: 2020-12-30 | B24: 536709 | C24: INDRENEW | D24: CHITRA NARAIN KHATWANI | E24: SELL | F24: 36,929 | G24: 7.43 | H24: BSE
A25: 2020-12-30 | B25: 536709 | C25: INDRENEW | D25: USHABEN TRIVEDI | E25: BUY | F25: 75,840 | G25: 7.43 | H25: BSE
A26: 2020-12-30 | B26: 540515 | C26: KANUNGO | D26: SHAIKH ASRAFALI NURULHUDA | E26: BUY | F26: 35,300 | G26: 14 | H26: BSE
A27: 2020-12-30 | B27: 505523 | C27: MAHACORP | D27: COBIA DISTRIBUTORS PRIVATE LIMITED . | E27: SELL | F27: 739,742 | G27: 0.65 | H27: BSE
A28: 2020-12-30 | B28: 543247 | C28: NETPIX | D28: ARYAMAN BROKING LIMITED | E28: SELL | F28: 108,000 | G28: 30.21 | H28: BSE
A29: 2020-12-30 | B29: 543247 | C29: NETPIX | D29: SAJANKUMAR RAMESHWARLAL BAJAJ | E29: BUY | F29: 28,000 | G29: 30.1 | H29: BSE
A30: 2020-12-30 | B30: 543247 | C30: NETPIX | D30: ARC FINANCE LIMITED | E30: BUY | F30: 80,000 | G30: 30.25 | H30: BSE
A31: 2020-12-30 | B31: 535136 | C31: NIBE | D31: LAKHOTIA POLYSTERS (INDIA) LIMITED | E31: SELL | F31: 150,000 | G31: 13.65 | H31: BSE
A32: 2020-12-30 | B32: 535136 | C32: NIBE | D32: SANJOYOG TRADE-LINK PRIVATE LIMITED | E32: SELL | F32: 150,000 | G32: 13.65 | H32: BSE
A33: 2020-12-30 | B33: 535136 | C33: NIBE | D33: GANESH RAMESH NIBE | E33: BUY | F33: 282,626 | G33: 13.65 | H33: BSE
A34: 2020-12-30 | B34: 540198 | C34: OSIAJEE | D34: BALJINDER KAUR | E34: BUY | F34: 85,993 | G34: 32.8 | H34: BSE
A35: 2020-12-30 | B35: 540198 | C35: OSIAJEE | D35: ANITA SARNA | E35: SELL | F35: 36,450 | G35: 33.18 | H35: BSE
A36: 2020-12-30 | B36: 539291 | C36: OZONEWORLD | D36: NISHIL SURENDRABHAI MARFATIA | E36: SELL | F36: 19,000 | G36: 82.75 | H36: BSE
A37: 2020-12-30 | B37: 539291 | C37: OZONEWORLD | D37: SYNEMATIC MEDIA AND CONSULTING PRIVATE LIMITED | E37: BUY | F37: 25,000 | G37: 82 | H37: BSE
A38: 2020-12-30 | B38: 539291 | C38: OZONEWORLD | D38: JIGAR MUKESHKUMAR SHAH | E38: BUY | F38: 18,500 | G38: 82.38 | H38: BSE
A39: 2020-12-30 | B39: 539291 | C39: OZONEWORLD | D39: AAKASH DILIP DOSHI . . | E39: BUY | F39: 50,000 | G39: 82.72 | H39: BSE
A40: 2020-12-30 | B40: 539291 | C40: OZONEWORLD | D40: RIDHIMAA GUPTA | E40: BUY | F40: 23,906 | G40: 82.65 | H40: BSE
A41: 2020-12-30 | B41: 539291 | C41: OZONEWORLD | D41: RIDHIMAA GUPTA | E41: SELL | F41: 23,906 | G41: 82.42 | H41: BSE
A42: 2020-12-30 | B42: 539291 | C42: OZONEWORLD | D42: DEEPAK MANILAL PATEL | E42: SELL | F42: 122,785 | G42: 82.41 | H42: BSE
A43: 2020-12-30 | B43: 504335 | C43: PAZEL | D43: AMIT HASMUKHBHAI PATEL | E43: SELL | F43: 1,294,967 | G43: 0.23 | H43: BSE
A44: 2020-12-30 | B44: 512217 | C44: PRISMMEDI | D44: BIJENDER | E44: BUY | F44: 41,428 | G44: 27.29 | H44: BSE
A45: 2020-12-30 | B45: 512217 | C45: PRISMMEDI | D45: SURESH KUMAR | E45: SELL | F45: 39,791 | G45: 27.3 | H45: BSE
A46: 2020-12-30 | B46: 511557 | C46: PROFINC | D46: ANUPAM NARAIN GUPTA | E46: BUY | F46: 50,000 | G46: 24.09 | H46: BSE
A47: 2020-12-30 | B47: 511557 | C47: PROFINC | D47: SANDESH MADHUKAR SAWANT | E47: SELL | F47: 50,000 | G47: 24.25 | H47: BSE
A48: 2020-12-30 | B48: 511557 | C48: PROFINC | D48: PREETI AGGARWAL | E48: BUY | F48: 50,000 | G48: 24.25 | H48: BSE
A49: 2020-12-30 | B49: 540027 | C49: PTIL | D49: GURUDUTT RAGHURAM NAYAK . | E49: BUY | F49: 100,000 | G49: 359 | H49: BSE
A50: 2020-12-30 | B50: 540027 | C50: PTIL | D50: KETAN MADHUSUDAN SHROFF . | E50: BUY | F50: 200,000 | G50: 360 | H50: BSE
A51: 2020-12-30 | B51: 540027 | C51: PTIL | D51: ESAAR INDIA LIMITED | E51: SELL | F51: 300,000 | G51: 359.67 | H51: BSE
A52: 2020-12-30 | B52: 540159 | C52: PURPLE | D52: SHAIKH ASRAFALI NURULHUDA | E52: BUY | F52: 51,878 | G52: 17.03 | H52: BSE
A53: 2020-12-30 | B53: 538646 | C53: QGO | D53: SINGI | E53: SELL | F53: 100,000 | G53: 16.15 | H53: BSE
A54: 2020-12-30 | B54: 538646 | C54: QGO | D54: RAMESH KOMMURU | E54: BUY | F54: 91,422 | G54: 16.15 | H54: BSE
A55: 2020-12-30 | B55: 539673 | C55: RCL | D55: PANIPRASADKURCHETI | E55: BUY | F55: 3,614 | G55: 8.3 | H55: BSE
A56: 2020-12-30 | B56: 539673 | C56: RCL | D56: PANIPRASADKURCHETI | E56: SELL | F56: 29,425 | G56: 8.3 | H56: BSE
A57: 2020-12-30 | B57: 539673 | C57: RCL | D57: NEETA RAJESH GOTHI | E57: BUY | F57: 24,095 | G57: 8.3 | H57: BSE
A58: 2020-12-30 | B58: 539593 | C58: SHIVA | D58: DHARMENDRA CHOTALAL SHAH | E58: SELL | F58: 58,000 | G58: 0.59 | H58: BSE
A59: 2020-12-30 | B59: 539593 | C59: SHIVA | D59: KINJALBEN ASHISHBHAI MODI | E59: SELL | F59: 58,000 | G59: 0.59 | H59: BSE
A60: 2020-12-30 | B60: 539593 | C60: SHIVA | D60: SHAIKH ASRAFALI NURULHUDA | E60: BUY | F60: 105,421 | G60: 0.59 | H60: BSE
A61: 2020-12-30 | B61: 542910 | C61: VALENCIA | D61: ARYAMAN BROKING LIMITED | E61: BUY | F61: 39,000 | G61: 21.18 | H61: BSE
A62: 2020-12-30 | B62: 542910 | C62: VALENCIA | D62: ARYAMAN BROKING LIMITED | E62: SELL | F62: 3,000 | G62: 22.75 | H62: BSE
A63: 2020-12-30 | B63: 542910 | C63: VALENCIA | D63: SAJANKUMAR RAMESHWARLAL BAJAJ | E63: SELL | F63: 36,000 | G63: 21.21 | H63: BSE
A64: 2020-12-30 | B64: 538732 | C64: VGCL | D64: VINOD GARG | E64: BUY | F64: 1,451,810 | G64: 18.22 | H64: BSE
A65: 2020-12-30 | B65: 538732 | C65: VGCL | D65: VIBRANT GLOBAL INFRAPROJECT PRIVATE LIMITED | E65: SELL | F65: 1,451,810 | G65: 18.22 | H65: BSE
A66: 2020-12-30 | B66: BLISSGVS | C66: Bliss GVS Pharma Ltd | D66: MARFATIA NISHIL SURENDRA | E66: BUY | F66: 670,813 | G66: 199.78 | H66: NSE
A67: 2020-12-30 | B67: BORORENEW | C67: BOROSIL RENEWABLES LTD | D67: ALPHA LEON ENTERPRISES LLP | E67: BUY | F67: 726,620 | G67: 304.28 | H67: NSE
A68: 2020-12-30 | B68: CENTUM | C68: Centum Electronics Ltd. | D68: HDFC MUTUAL FUND A/C HDFC DIVIDEND YIELD FUND | E68: BUY | F68: 400,000 | G68: 421.19 | H68: NSE
A69: 2020-12-30 | B69: CHEMCON | C69: Chemcon Special Chem Ltd | D69: PLUTUS WEALTH MANAGEMENT LLP | E69: BUY | F69: 1,000,000 | G69: 428.52 | H69: NSE
A70: 2020-12-30 | B70: DHFL | C70: Dewan Housing Fin Corp | D70: ALPHA LEON ENTERPRISES LLP | E70: BUY | F70: 2,254,110 | G70: 25.71 | H70: NSE
A71: 2020-12-30 | B71: LIBAS | C71: Libas Consu Products Ltd | D71: ANKITA VISHAL SHAH | E71: BUY | F71: 248,572 | G71: 37.79 | H71: NSE
A72: 2020-12-30 | B72: MOHOTAIND | C72: Mohota Industries Ltd. | D72: VIKRAMKUMAR KARANRAJ SAKARIA HUF DAKSH CORPORATION | E72: BUY | F72: 584,889 | G72: 13.12 | H72: NSE
A73: 2020-12-30 | B73: ONEPOINT | C73: One Point One Sol Ltd | D73: AKSHAY CHHABRA | E73: BUY | F73: 300,000 | G73: 18 | H73: NSE
A74: 2020-12-30 | B74: ONEPOINT | C74: One Point One Sol Ltd | D74: SHREEJI CAPITAL AND FINANCE LIMITED | E74: BUY | F74: 1,926 | G74: 17.92 | H74: NSE
A75: 2020-12-30 | B75: PANSARI | C75: Pansari Developers Ltd. | D75: ADESH BROKING HOUSE PRIVATE LIMITED | E75: BUY | F75: 216,000 | G75: 22.35 | H75: NSE
A76: 2020-12-30 | B76: RPPINFRA | C76: R.P.P. Infra Projects Ltd | D76: EL DORADO BIOTECH PRIVATE LIMITED | E76: BUY | F76: 127,897 | G76: 55.45 | H76: NSE
A77: 2020-12-30 | B77: SEPOWER | C77: S.E. Power Limited | D77: AANJANAYAE AGARWAL | E77: BUY | F77: 1,999,944 | G77: 2.91 | H77: NSE
A78: 2020-12-30 | B78: SNOWMAN | C78: Snowman Logistics Ltd. | D78: PARTH INFIN BROKERS PVT LTD | E78: BUY | F78: 1,626,772 | G78: 65.64 | H78: NSE
A79: 2020-12-30 | B79: SNOWMAN | C79: Snowman Logistics Ltd. | D79: RUDRAPRATAP NARAIN SINGH | E79: BUY | F79: 984,370 | G79: 66.21 | H79: NSE
A80: 2020-12-30 | B80: SNOWMAN | C80: Snowman Logistics Ltd. | D80: KRG POLYCHEM PRIVATE LIMITED | E80: BUY | F80: 1,207,489 | G80: 68.05 | H80: NSE
A81: 2020-12-30 | B81: SNOWMAN | C81: Snowman Logistics Ltd. | D81: QE SECURITIES | E81: BUY | F81: 1,295,253 | G81: 66.92 | H81: NSE
A82: 2020-12-30 | B82: SNOWMAN | C82: Snowman Logistics Ltd. | D82: GRAVITON RESEARCH CAPITAL LLP | E82: BUY | F82: 1,667,205 | G82: 67.48 | H82: NSE
A83: 2020-12-30 | B83: SNOWMAN | C83: Snowman Logistics Ltd. | D83: NISHA JIGNESH MEHTA | E83: BUY | F83: 850,000 | G83: 66.06 | H83: NSE
A84: 2020-12-30 | B84: SNOWMAN | C84: Snowman Logistics Ltd. | D84: PURVISH MUKESH SHAH | E84: BUY | F84: 848,906 | G84: 68.54 | H84: NSE
A85: 2020-12-30 | B85: SPIC | C85: Southern Petro Ind Corp | D85: FINQUEST SECURITIES PVT. LTD. | E85: BUY | F85: 4,202,967 | G85: 24 | H85: NSE
A86: 2020-12-30 | B86: SUTLEJTEX | C86: Sutlej Textiles and Indus | D86: THE HINDUSTAN TIIMES LTD | E86: BUY | F86: 3,800,000 | G86: 45.61 | H86: NSE
A87: 2020-12-30 | B87: UJAAS | C87: Ujaas Energy Limited | D87: HI GROWTH CORPORATE SERVICES PVT LTD | E87: BUY | F87: 934,536 | G87: 2.75 | H87: NSE
A88: 2020-12-30 | B88: VAISHALI | C88: Vaishali Pharma Limited | D88: MUKUL MAHESHWARI | E88: BUY | F88: 45,001 | G88: 63.99 | H88: NSE
A89: 2020-12-30 | B89: VIKASECO | C89: Vikas EcoTech Limited | D89: MARFATIA NISHIL SURENDRA | E89: BUY | F89: 2,235,511 | G89: 4 | H89: NSE
A90: 2020-12-30 | B90: VIKASMCORP | C90: Vikas Multicorp Limited | D90: MARFATIA NISHIL SURENDRA | E90: BUY | F90: 3,180,974 | G90: 5.96 | H90: NSE
A91: 2020-12-30 | B91: AARVI | C91: Aarvi Encon Limited | D91: GITA KIRTI AMBANI | E91: SELL | F91: 180,100 | G91: 54.6 | H91: NSE
A92: 2020-12-30 | B92: BLISSGVS | C92: Bliss GVS Pharma Ltd | D92: MARFATIA NISHIL SURENDRA | E92: SELL | F92: 557,020 | G92: 199.49 | H92: NSE
A93: 2020-12-30 | B93: BORORENEW | C93: BOROSIL RENEWABLES LTD | D93: ALPHA LEON ENTERPRISES LLP | E93: SELL | F93: 719,889 | G93: 307.86 | H93: NSE
A94: 2020-12-30 | B94: CENTUM | C94: Centum Electronics Ltd. | D94: HDFC MUTUAL FUND A/C HDFC EQUITY SAVINGS FUND | E94: SELL | F94: 372,882 | G94: 420.72 | H94: NSE
A95: 2020-12-30 | B95: DHFL | C95: Dewan Housing Fin Corp | D95: ALPHA LEON ENTERPRISES LLP | E95: SELL | F95: 2,372,470 | G95: 25.72 | H95: NSE
A96: 2020-12-30 | B96: GMRINFRA | C96: GMR Infrastructure Limite | D96: GMR ENTERPRISES PRIVATE LIMITED | E96: SELL | F96: 65,000,000 | G96: 27.09 | H96: NSE
A97: 2020-12-30 | B97: INDTERRAIN | C97: Ind Terrain Fashions Ltd | D97: MALABAR VALUE FUND - AIF | E97: SELL | F97: 195,597 | G97: 35 | H97: NSE
A98: 2020-12-30 | B98: LIBAS | C98: Libas Consu Products Ltd | D98: MAHIMTURA NISHANT MITRASEN | E98: SELL | F98: 191,965 | G98: 37.62 | H98: NSE
A99: 2020-12-30 | B99: LIBAS | C99: Libas Consu Products Ltd | D99: ANKITA VISHAL SHAH | E99: SELL | F99: 76,572 | G99: 38.09 | H99: NSE
A100: 2020-12-30 | B100: MOHOTAIND | C100: Mohota Industries Ltd. | D100: ERROR-SALTLAKE(INSIGHT SHARE BROKERS LTD) | E100: SELL | F100: 424,526 | G100: 12.88 | H100: NSE
A101: 2020-12-30 | B101: MOHOTAIND | C101: Mohota Industries Ltd. | D101: BHAVIN ARVIND SHAH | E101: SELL | F101: 74,111 | G101: 13.76 | H101: NSE
A102: 2020-12-30 | B102: MOHOTAIND | C102: Mohota Industries Ltd. | D102: VIKRAMKUMAR KARANRAJ SAKARIA HUF DAKSH CORPORATION | E102: SELL | F102: 584,889 | G102: 13.58 | H102: NSE
A103: 2020-12-30 | B103: MTEDUCARE | C103: MT Educare Ltd | D103: XANDER FINANCE PRIVATE LIMITED | E103: SELL | F103: 1,130,000 | G103: 9.25 | H103: NSE
A104: 2020-12-30 | B104: ONEPOINT | C104: One Point One Sol Ltd | D104: SHREEJI CAPITAL AND FINANCE LIMITED | E104: SELL | F104: 155,488 | G104: 18.01 | H104: NSE
A105: 2020-12-30 | B105: ONEPOINT | C105: One Point One Sol Ltd | D105: PALLADIUM FINSERVE PRIVATE LIMITED | E105: SELL | F105: 138,800 | G105: 18 | H105: NSE
A106: 2020-12-30 | B106: PANSARI | C106: Pansari Developers Ltd. | D106: BABULAL BUBNA (HUF) | E106: SELL | F106: 126,000 | G106: 22.39 | H106: NSE
A107: 2020-12-30 | B107: PATINTLOG | C107: Patel Integrated Logistic | D107: CENTRAL BANK OF INDIA (CAPITAL MARKET SERVICE BRANCH) | E107: SELL | F107: 130,103 | G107: 31.09 | H107: NSE
A108: 2020-12-30 | B108: SEPOWER | C108: S.E. Power Limited | D108: PRADUMN RETAILS PRIVATE LIMITED | E108: SELL | F108: 686,218 | G108: 2.9 | H108: NSE
A109: 2020-12-30 | B109: SEPOWER | C109: S.E. Power Limited | D109: ZEAL PROFESSIONAL SERVICES PRIVATE LIMITED | E109: SELL | F109: 1,386,000 | G109: 2.9 | H109: NSE
A110: 2020-12-30 | B110: SNOWMAN | C110: Snowman Logistics Ltd. | D110: RUDRAPRATAP NARAIN SINGH | E110: SELL | F110: 984,370 | G110: 68.67 | H110: NSE
A111: 2020-12-30 | B111: SNOWMAN | C111: Snowman Logistics Ltd. | D111: NISHA JIGNESH MEHTA | E111: SELL | F111: 300,000 | G111: 70.34 | H111: NSE
A112: 2020-12-30 | B112: SNOWMAN | C112: Snowman Logistics Ltd. | D112: GRAVITON RESEARCH CAPITAL LLP | E112: SELL | F112: 1,667,205 | G112: 67.47 | H112: NSE
A113: 2020-12-30 | B113: SNOWMAN | C113: Snowman Logistics Ltd. | D113: KRG POLYCHEM PRIVATE LIMITED | E113: SELL | F113: 1,207,489 | G113: 68.64 | H113: NSE
A114: 2020-12-30 | B114: SNOWMAN | C114: Snowman Logistics Ltd. | D114: QE SECURITIES | E114: SELL | F114: 1,299,058 | G114: 67.16 | H114: NSE
A115: 2020-12-30 | B115: SNOWMAN | C115: Snowman Logistics Ltd. | D115: PURVISH MUKESH SHAH | E115: SELL | F115: 848,906 | G115: 68.36 | H115: NSE
A116: 2020-12-30 | B116: SNOWMAN | C116: Snowman Logistics Ltd. | D116: DHWAJA COMMODITY SERVICES PRIVATE LIMITED | E116: SELL | F116: 1,107,992 | G116: 66.03 | H116: NSE
A117: 2020-12-30 | B117: SNOWMAN | C117: Snowman Logistics Ltd. | D117: PARTH INFIN BROKERS PVT LTD | E117: SELL | F117: 1,646,772 | G117: 65.98 | H117: NSE
A118: 2020-12-30 | B118: SPIC | C118: Southern Petro Ind Corp | D118: MINAL PATEL | E118: SELL | F118: 4,202,967 | G118: 24 | H118: NSE
A119: 2020-12-30 | B119: SUTLEJTEX | C119: Sutlej Textiles and Indus | D119: EARTHSTONE HOLDING (TWO) PRIVATE LTD | E119: SELL | F119: 3,800,000 | G119: 45.6 | H119: NSE
A120: 2020-12-30 | B120: UJAAS | C120: Ujaas Energy Limited | D120: HI GROWTH CORPORATE SERVICES PVT LTD | E120: SELL | F120: 1,239,031 | G120: 2.76 | H120: NSE
A121: 2020-12-30 | B121: VAISHALI | C121: Vaishali Pharma Limited | D121: MUKUL MAHESHWARI | E121: SELL | F121: 56,216 | G121: 64.15 | H121: NSE
A122: 2020-12-30 | B122: VAISHALI | C122: Vaishali Pharma Limited | D122: MANJU JAYANTILAL LODHA | E122: SELL | F122: 59,000 | G122: 63 | H122: NSE
A123: 2020-12-30 | B123: VAISHALI | C123: Vaishali Pharma Limited | D123: JAYANTILAL HANSRAJ HUF | E123: SELL | F123: 54,500 | G123: 64.02 | H123: NSE
A124: 2020-12-30 | B124: VIKASECO | C124: Vikas EcoTech Limited | D124: MARFATIA NISHIL SURENDRA | E124: SELL | F124: 298,482 | G124: 3.93 | H124: NSE
A125: 2020-12-30 | B125: VIKASECO | C125: Vikas EcoTech Limited | D125: PARVESH SAHIB SINGH | E125: SELL | F125: 2,108,511 | G125: 3.85 | H125: NSE
A126: 2020-12-30 | B126: VIKASMCORP | C126: Vikas Multicorp Limited | D126: MARFATIA NISHIL SURENDRA | E126: SELL | F126: 6,054,883 | G126: 5.68 | H126: NSE

Sheet Call Tracker (Equity & F&O)
M5: Back To Main Page
A6: Retail Research Technical Calls & Fundamental Performance Report for the month of December-2020
M7: =Main!B10 -> 2020-12-31
B8: Positional Call
A9: Sr.no | B9: Date | D9: Company | E9: Rec | F9: Rec Price | G9: Stop Loss*** | H9: Call Closed At | I9: Target | J9: Remark | K9: Profit / Loss per Share | L9: All charges | M9: Net Gain / Loss % | N9: Status | O9: Closed Date
A10: 1 | B10: 2020-10-06 | D10: MARUTI | E10: Buy | F10: 6890 | G10: 6,600.00 | H10: 7,320.00 | I10: 7450 | J10: Profit of Rs.430/- | K10: =H10-F10 -> 430 | L10: =(F10*-0.8)/100 -> -55.12 | M10: =(K10+L10)/F10 -> 5.44% | N10: Successful | O10: 2020-12-03 | R10: A
A11: 2 | B11: 2020-11-18 | D11: HINDUNILVR | E11: Buy | F11: 2137.5 | G11: 2,000.00 | H11: 2,267.50 | I11: 2350-2400 | J11: Profit of Rs.130/- | K11: =H11-F11 -> 130 | L11: =(F11*-0.8)/100 -> -17.10 | M11: =(K11+L11)/F11 -> 5.28% | N11: Successful | O11: 2020-12-09 | R11: H
A12: 3 | B12: 2020-11-19 | D12: MCX | E12: Buy | F12: 1630 | G12: 1,515.00 | H12: 1,712.50 | I12: 1800-1850 | J12: Profit of Rs.82.5/- | K12: 82.5 | L12: -13.04 | M12: 4.26% | N12: Successful | O12: 2020-12-16 | R12: H
A13: 4 | B13: 2020-11-19 | D13: HDFCAMC | E13: Buy | F13: 2450 | G13: 2,300.00 | H13: 2605 | I13: 2750 | J13: Profit of Rs.155/- | K13: =H13-F13 -> 155 | L13: =(F13*-0.8)/100 -> -19.60 | M13: =(K13+L13)/F13 -> 5.53% | N13: Successful | O13: 2020-12-04 | R13: N
A14: 5 | B14: 2020-12-02 | D14: EXIDEIND | E14: Buy | F14: 181 | G14: 167.00 | H14: 194 | I14: 200-205 | J14: Profit of Rs.13/- | K14: 13 | L14: -1.45 | M14: 6.38% | N14: Successful | O14: 2020-12-08 | R14: H
A15: 6 | B15: 2020-12-10 | D15: IRCTC | E15: Buy | F15: 1427.5 | G15: 1330 | H15: 1500 | I15: 1550-1600 | J15: Part Profit of Rs.72.5/- | K15: =H15-F15 -> 72.5 | L15: =(F15*-0.07)/100 -> -1.00 | M15: =(K15+L15)/F15 -> 5.01% | N15: Successful | O15: 2020-12-10 | R15: H
A16: 7 | B16: 2020-12-10 | D16: ITC | E16: Buy | F16: 210 | G16: 197 | H16: 218.5 | I16: 225-230 | J16: Part Profit of Rs.8.5/- | K16: 8.5 | L16: =(F16*-0.8)/100 -> -1.68 | M16: 3.25% | N16: Successful | O16: 2020-12-14 | R16: H
A17: 8 | B17: 2020-12-11 | D17: WHIRLPOOL | E17: Buy | F17: 2072.5 | G17: 1940 | H17: 2212.5 | I17: 2250-2300 | J17: Profit of Rs.140/- | K17: =H17-F17 -> 140 | L17: =(F17*-0.8)/100 -> -16.58 | M17: =(K17+L17)/F17 -> 5.96% | N17: Successful | O17: 2020-12-18 | R17: H
A18: 9 | B18: 2020-12-16 | D18: GODFRYPHLP | E18: Buy | F18: 999 | G18: 935 | H18: 935 | I18: 1100-1140 | J18: Loss of Rs.64/- | K18: =H18-F18 -> -64 | L18: =(F18*-0.8)/100 -> -7.99 | M18: =(K18+L18)/F18 -> -7.21% | N18: Successful | O18: 2020-12-22 | R18: H
A19: 10 | B19: 2020-12-23 | D19: TORNTPOWER | E19: Buy | F19: 316 | G19: 295 | H19: 329 | I19: 340-350 | J19: Part Profit of Rs.13/- | K19: 13 | L19: -2.53 | M19: 3.31% | N19: Successful | O19: 2020-12-24 | R19: N
A20: 11 | B20: 2020-12-23 | D20: CONCOR | E20: Buy | F20: 385-389 | G20: 360 | I20: 425-435 | J20: Open | R20: N
A21: 12 | B21: 2020-12-24 | D21: OFSS | E21: Buy | F21: 3200-3230 | G21: 2990 | I21: 3500-3600 | J21: Open | R21: H
A25: CLBS = Closing Basis ***
A26: Dividend adjusted <> | F26: Reinitiated $
A27: Part book {} | F27: Revised stoploss #
B29: Momentum Call
A30: Sr.no | B30: Date | D30: Company | E30: Rec | F30: Rec Price | G30: Stop Loss | H30: Call Closed At | I30: Target | J30: Remark | K30: Profit / Loss per Share/Lot | L30: All charges | M30: Net Gain / Loss % | N30: Status | O30: Closed Date
A31: 1 | B31: 2020-11-18 | D31: MARICO | E31: Buy | F31: 376 | G31: 367 | H31: 376.5 | I31: 396 | J31: Profit of Rs.0.5/- | K31: =H31-F31 -> 0.5 | L31: =(F31*-0.7)/100 -> -2.63 | M31: =(K31+L31)/F31 -> -0.57% | N31: Neutral | O31: 2020-12-02 | R31: H
A32: 2 | B32: 2020-11-26 | D32: KOTAKBANK | E32: Sell | F32: 1877 | G32: 1925 | H32: 1837 | I32: 1800 | J32: Profit of Rs.40/- | K32: =F32-H32 -> 40 | L32: -13.14 | M32: 1.43% | N32: Successful | O32: 2020-12-02 | R32: H
A33: 3 | B33: 2020-12-01 | D33: HDFCLIFE | E33: Buy | F33: 641.5 | G33: 619 | H33: 659 | I33: 680 | J33: Profit of Rs.17.5/- | K33: =H33-F33 -> 17.5 | L33: -4.49 | M33: 2.03% | N33: Successful | O33: 2020-12-10 | R33: H
A34: 4 | B34: 2020-12-01 | D34: ASTRAMICRO | E34: Buy | F34: 115.5 | G34: 112 | H34: 118.5 | I34: 122 | J34: Profit of Rs.3/- | K34: =H34-F34 -> 3 | L34: =(F34*-0.7)/100 -> -0.81 | M34: =(K34+L34)/F34 -> 1.90% | N34: Successful | O34: 2020-12-03 | R34: N
A35: 5 | B35: 2020-12-02 | D35: AXISBANK | E35: Buy | F35: 608.5 | G35: 590 | H35: 624 | I35: 640 | J35: Profit of Rs.15.5/- | K35: 15.5 | L35: -4.26 | M35: 1.85% | N35: Successful | O35: 2020-12-08 | R35: N
A36: 6 | B36: 2020-12-02 | D36: UPL | E36: Buy | F36: 440 | G36: 428 | H36: 450.5 | I36: 460-465 | J36: Profit of Rs.10.5/- | K36: =H36-F36 -> 10.5 | L36: =(F36*-0.7)/100 -> -3.08 | M36: =(K36+L36)/F36 -> 1.69% | N36: Successful | O36: 2020-12-03 | R36: H
A37: 7 | B37: 2020-12-02 | D37: BRITANNIA | E37: Buy | F37: 3585 | G37: 3480 | H37: 3670 | I37: 3800 | J37: Profit of Rs.85/- | K37: =H37-F37 -> 85 | L37: =(F37*-0.7)/100 -> -25.10 | M37: =(K37+L37)/F37 -> 1.67% | N37: Successful | O37: 2020-12-07 | R37: H
A38: 8 | B38: 2020-12-03 | D38: BAJAJCON | E38: Buy | F38: 200 | G38: 193 | H38: 206.5 | I38: 210 | J38: Profit of Rs.6.5/- | K38: =H38-F38 -> 6.5 | L38: =(F38*-0.7)/100 -> -1.40 | M38: =(K38+L38)/F38 -> 2.55% | N38: Successful | O38: 2020-12-11 | R38: H
A39: 9 | B39: 2020-12-03 | D39: IRCON | E39: Buy | F39: 87.25 | G39: 84.5 | H39: 89.25 | I39: 95-97 | J39: Profit of Rs.2/- | K39: =H39-F39 -> 2 | L39: =(F39*-0.07)/100 -> -0.06 | M39: =(K39+L39)/F39 -> 2.22% | N39: Successful | O39: 2020-12-03 | R39: N
A40: 10 | B40: 2020-12-03 | D40: IRCTC | E40: Buy | F40: 1370 | G40: 1335 | H40: 1407.5 | I40: 1420-1430 | J40: Profit of Rs.37.5/- | K40: 37.5 | L40: =(F40*-0.7)/100 -> -9.59 | M40: 2.04% | N40: Successful | O40: 2020-12-04 | R40: H
A41: 11 | B41: 2020-12-03 | D41: SONATSOFTW | E41: Buy | F41: 345.5 | G41: 335 | H41: 346.5 | I41: 365 | J41: Profit of Rs.1/- | K41: 1 | L41: -2.42 | M41: -0.41% | N41: Neutral | O41: 2020-12-08 | R41: N
A42: 12 | B42: 2020-12-04 | D42: VINATIORGA | E42: Buy | F42: 1150 | G42: 1115 | H42: 1183 | I42: 1200-1220 | J42: Profit of Rs.33/- | K42: =H42-F42 -> 33 | L42: =(F42*-0.7)/100 -> -8.05 | M42: =(K42+L42)/F42 -> 2.17% | N42: Successful | O42: 2020-12-08 | R42: N
A43: 13 | B43: 2020-12-04 | D43: SUNTV | E43: Buy | F43: 452 | G43: 437 | H43: 462.5 | I43: 475 | J43: Profit of Rs.10.5/- | K43: =H43-F43 -> 10.5 | L43: =(F43*-0.7)/100 -> -3.16 | M43: =(K43+L43)/F43 -> 1.62% | N43: Successful | O43: 2020-12-07 | R43: N
A44: 14 | B44: 2020-12-07 | D44: DEEPAKFERT | E44: Buy | F44: 156.75 | G44: 152 | H44: 161.25 | I44: 165-167 | J44: Profit of Rs.4.5/- | K44: =H44-F44 -> 4.5 | L44: =(F44*-0.07)/100 -> -0.11 | M44: =(K44+L44)/F44 -> 2.80% | N44: Successful | O44: 2020-12-07 | R44: N
A45: 15 | B45: 2020-12-07 | D45: SUMICHEM | E45: Buy | F45: 317.5 | G45: 309 | H45: 309 | I45: 330-335 | J45: Loss of Rs.8.5/- | K45: -8.5 | L45: =(F45*-0.7)/100 -> -2.22 | M45: -3.38% | N45: Unsuccessful | O45: 2020-12-08 | R45: H
A46: 16 | B46: 2020-12-07 | D46: MOIL | E46: Buy | F46: 141.4 | G46: 137 | H46: 145 | I46: 150-152 | J46: Profit of Rs.3.6/- | K46: 3.6 | L46: -0.99 | M46: 1.85% | N46: Successful | O46: 2020-12-09 | R46: N
A47: 17 | B47: 2020-12-07 | D47: KANSAINER | E47: Buy | F47: 549 | G47: 534 | H47: 563 | I47: 575-580 | J47: Profit of Rs.14/- | K47: =H47-F47 -> 14 | L47: =(F47*-0.7)/100 -> -3.84 | M47: =(K47+L47)/F47 -> 1.85% | N47: Successful | O47: 2020-12-08 | R47: H
A48: 18 | B48: 2020-12-08 | D48: SUNTV | E48: Buy | F48: 455 | G48: 438 | H48: 467.5 | I48: 475-480 | J48: Profit of Rs.12.5/- | K48: 12.5 | L48: -3.19 | M48: 2.05% | N48: Successful | O48: 2020-12-09 | R48: H
A49: 19 | B49: 2020-12-09 | D49: KEC | E49: Buy | F49: 376.5 | G49: 365 | H49: 365 | I49: 390-395 | J49: Loss of Rs.11.5/- | K49: -11.5 | L49: -2.64 | M49: -3.75% | N49: Unsuccessful | O49: 2020-12-21 | R49: N
A50: 20 | B50: 2020-12-09 | D50: DHANUKA | E50: Buy | F50: 741 | G50: 718 | H50: 761 | I50: 780 | J50: Profit of Rs.20/- | K50: =H50-F50 -> 20 | L50: =(F50*-0.7)/100 -> -5.19 | M50: =(K50+L50)/F50 -> 2.00% | N50: Successful | O50: 2020-12-10 | R50: H
A51: 21 | B51: 2020-12-10 | D51: HDFCAMC | E51: Buy | F51: 2790 | G51: 2710 | H51: 2845 | I51: 2900-2950 | J51: Profit of Rs.55/- | K51: =H51-F51 -> 55 | L51: =(F51*-0.07)/100 -> -1.95 | M51: =(K51+L51)/F51 -> 1.90% | N51: Successful | O51: 2020-12-10 | R51: N
A52: 22 | B52: 2020-12-10 | D52: PIDILITIND | E52: Buy | F52: 1627.5 | G52: 1580 | H52: 1657.5 | I52: 1700-1720 | J52: Profit of Rs.30/- | K52: =H52-F52 -> 30 | L52: =(F52*-0.07)/100 -> -1.14 | M52: =(K52+L52)/F52 -> 1.77% | N52: Successful | O52: 2020-12-10 | R52: N
A53: 23 | B53: 2020-12-10 | D53: ORIENTREF | E53: Buy | F53: 215 | G53: 209 | H53: 221 | I53: 225-227 | J53: Profit of Rs.6/- | K53: 6 | L53: =(F53*-0.7)/100 -> -1.51 | M53: 2.09% | N53: Successful | O53: 2020-12-11 | R53: H
A54: 24 | B54: 2020-12-10 | D54: VINATIORGA | E54: Buy | F54: 1142.5 | G54: 1110 | H54: 1169 | I54: 1200 | J54: Profit of Rs.26.5/- | K54: =H54-F54 -> 26.5 | L54: =(F54*-0.7)/100 -> -8.00 | M54: =(K54+L54)/F54 -> 1.62% | N54: Successful | O54: 2020-12-17 | R54: N
A55: 25 | B55: 2020-12-11 | D55: SONATSOFTW | E55: Buy | F55: 356 | G55: 345 | H55: 366 | I55: 370-375 | J55: Profit of Rs.10/- | K55: =H55-F55 -> 10 | L55: =(F55*-0.7)/100 -> -2.49 | M55: =(K55+L55)/F55 -> 2.11% | N55: Successful | O55: 2020-12-17 | R55: N
A56: 26 | B56: 2020-12-11 | D56: BRITANNIA | E56: Buy | F56: 3715 | G56: 3630 | H56: 3630 | I56: 3820-3850 | J56: Loss of Rs.85/- | K56: -85 | L56: -26.01 | M56: -2.99% | N56: Unsuccessful | O56: 2020-12-22 | R56: H
A57: 27 | B57: 2020-12-14 | D57: POLYMED | E57: Buy | F57: 535.5 | G57: 518 | H57: 518 | I57: 560 | J57: Loss of Rs.17.5/- | K57: =H57-F57 -> -17.5 | L57: =(F57*-0.7)/100 -> -3.75 | M57: =(K57+L57)/F57 -> -3.97% | N57: Unsuccessful | O57: 2020-12-16 | R57: N
A58: 28 | B58: 2020-12-14 | D58: NAVNETEDUL | E58: Buy | F58: 85.65 | G58: 83 | H58: 88.5 | I58: 90-92 | J58: Profit of Rs.2.85/- | K58: =H58-F58 -> 2.85 | L58: =(F58*-0.7)/100 -> -0.60 | M58: =(K58+L58)/F58 -> 2.63% | N58: Successful | O58: 2020-12-15 | R58: H
A59: 29 | B59: 2020-12-15 | D59: DHANUKA | E59: Buy | F59: 737 | G59: 718 | H59: 718 | I59: 770-775 | J59: Loss of Rs.19/- | K59: -19 | L59: -5.16 | M59: -3.28% | N59: Unsuccessful | O59: 2020-12-21 | R59: H
A60: 30 | B60: 2020-12-16 | D60: VGUARD | E60: Buy | F60: 196.5 | G60: 190 | H60: 190 | I60: 210 | J60: Loss of Rs.6.5/- | K60: -6.5 | L60: -1.38 | M60: -4.01% | N60: Unsuccessful | O60: 2020-12-21 | R60: N
A61: 31 | B61: 2020-12-16 | D61: MIDHANI | E61: Buy | F61: 205.5 | G61: 200 | H61: 209.4 | I61: 215-218 | J61: Profit of Rs.3.9/- | K61: =H61-F61 -> 3.9 | L61: =(F61*-0.07)/100 -> -0.14 | M61: =(K61+L61)/F61 -> 1.83% | N61: Successful | O61: 2020-12-16 | R61: N
A62: 32 | B62: 2020-12-16 | D62: KSCL | E62: Buy | F62: 538.5 | G62: 520 | H62: 520 | I62: 570-575 | J62: Loss of Rs.18.5/- | K62: -18.5 | L62: =(F62*-0.7)/100 -> -3.77 | M62: -4.14% | N62: Unsuccessful | O62: 2020-12-18 | R62: H
A63: 33 | B63: 2020-12-17 | D63: BIOCON | E63: Buy | F63: 462 | G63: 449 | H63: 473 | I63: 485 | J63: Profit of Rs.11/- | K63: 11 | L63: -3.23 | M63: 1.68% | N63: Successful | O63: 2020-12-18 | R63: N
A64: 34 | B64: 2020-12-17 | D64: RADICO | E64: Buy | F64: 461 | G64: 448 | H64: 472 | I64: 480 | J64: Profit of Rs.11/- | K64: =H64-F64 -> 11 | L64: =(F64*-0.7)/100 -> -3.23 | M64: =(K64+L64)/F64 -> 1.69% | N64: Successful | O64: 2020-12-18 | R64: H
A65: 35 | B65: 2020-12-18 | D65: BHARTIARTL | E65: Buy | F65: 508.5 | G65: 494 | H65: 495 | I65: 540-550 | J65: Loss of Rs.13.5/- | K65: -13.5 | L65: -3.56 | M65: -3.35% | N65: Unsuccessful | O65: 2020-12-21 | R65: H
A66: 36 | B66: 2020-12-18 | D66: NAVNETEDUL | E66: Buy | F66: 85.7 | G66: 83.5 | H66: 83.5 | I66: 90-92 | J66: Loss of Rs.2.2/- | K66: -2.2 | L66: -0.60 | M66: -3.27% | N66: Unsuccessful | O66: 2020-12-21 | R66: H
A67: 37 | B67: 2020-12-18 | D67: ZENSARTECH | E67: Buy | F67: 244.5 | G67: 237 | H67: 238 | I67: 258 | J67: Loss of Rs.6.5/- | K67: =H67-F67 -> -6.5 | L67: =(F67*-0.07)/100 -> -0.17 | M67: =(K67+L67)/F67 -> -2.73% | N67: Unsuccessful | O67: 2020-12-18 | R67: N
A68: 38 | B68: 2020-12-21 | D68: CRISIL | E68: Buy | F68: 1895-1901 | G68: 1845 | I68: 2000 | J68: Open | R68: H
A69: 39 | B69: 2020-12-22 | D69: VINATIORGA | E69: Buy | F69: 1120 | G69: 1090 | H69: 1165 | I69: 1200 | J69: Profit of Rs.45/- | K69: =H69-F69 -> 45 | L69: =(F69*-0.7)/100 -> -7.84 | M69: =(K69+L69)/F69 -> 3.32% | N69: Successful | O69: 2020-12-24 | R69: N
A70: 40 | B70: 2020-12-22 | D70: HINDALCO | E70: Sell | F70: 237.5 | G70: 242 | H70: 232.5 | I70: 230-228 | J70: Profit of Rs.5/- | K70: =F70-H70 -> 5 | L70: =(F70*-0.07)/100 -> -0.17 | M70: =(K70+L70)/F70 -> 2.04% | N70: Successful | O70: 2020-12-22 | R70: H
A71: 41 | B71: 2020-12-23 | D71: HDFCLIFE | E71: Buy | F71: 637 | G71: 618 | H71: 648 | I71: 660-670 | J71: Profit of Rs.11/- | K71: =H71-F71 -> 11 | L71: =(F71*-0.07)/100 -> -0.45 | M71: 1.66% | N71: Successful | O71: 2020-12-23 | R71: H
A72: 42 | B72: 2020-12-23 | D72: MARICO | E72: Buy | F72: 401 | G72: 388 | H72: 412 | I72: 420-425 | J72: Profit of Rs.11/- | K72: 11 | L72: =(F72*-0.7)/100 -> -2.81 | M72: 2.04% | N72: Successful | O72: 2020-12-24 | R72: H
A73: 43 | B73: 2020-12-24 | D73: MARICO | E73: Buy | F73: 400-402 | G73: 388 | I73: 420-425 | J73: Open | R73: H
A74: 44 | B74: 2020-12-28 | D74: RADICO | E74: Buy | F74: 450-452 | G74: 437 | I74: 470-475 | J74: Open | R74: H
A75: 45 | B75: 2020-12-28 | D75: CADILAHC | E75: Buy | F75: 484-486 | G75: 477 | I75: 505 | J75: Open | R75: H
A76: 46 | B76: 2020-12-29 | D76: CIPLA | E76: Buy | F76: 820-825 | G76: 799 | I76: 855-865 | J76: Open
A77: 47 | B77: 2020-12-29 | D77: AARTIIND | E77: Buy | F77: 1230-1235 | G77: 1195 | I77: 1290 | J77: Open
A78: 48 | B78: 2020-12-30 | D78: COROMANDEL | E78: Buy | F78: 803-806 | G78: 788 | I78: 840 | J78: Open
A80: CLBS = Closing Basis *** | H80: *
A81: Dividend adjusted <> | F81: Reinitiated $
F82: Revised stoploss #
A84: Master Trade High Risk
A85: Sr.no | B85: Date | D85: Company | E85: Rec | F85: Rec Price | G85: Stop Loss | H85: Call Closed At | I85: Target | J85: Remark | K85: Profit / Loss per share | L85: All charges | M85: Gain / Loss per Lot | N85: Lot | O85: Status | P85: Closed Date
A86: 1 | B86: 2020-11-26 | D86: HDFCBANK DEC FUT | E86: Sell | F86: 1412 | G86: 1452 | H86: 1397.5 | I86: 1350 | J86: Profit of Rs.17/- | K86: =F86-H86 -> 14.5 | L86: =(H86*N86)*0.035% -> 269.02 | M86: =(17*550)-369 -> 8981 | N86: 550 | O86: Successful | P86: 2020-12-03 | R86: H
D87: HDFCBANK 1360 PE DEC | E87: Sell | F87: 29 | H87: 26.5 | K87: 2.5 | L87: 100 | R87: H
A88: 2 | B88: 2020-11-27 | D88: NIFTY DEC FUT | E88: Sell | F88: 13040 | G88: 13200 | H88: 13195 | I88: 12700 | J88: Loss of Rs.155/- | K88: =F88-H88 -> -155 | L88: =(H88*N88)*0.035% -> 346.37 | M88: =(K88*N88)-L88 -> -11971.4 | N88: 75 | O88: Unsuccessful | P88: 2020-12-03 | R88: H
A89: 3 | B89: 2020-11-27 | D89: BHARATFORG DEC FUT | E89: Buy | F89: 511.5 | G89: 502 | H89: 517.5 | I89: 530 | J89: Profit of Rs.6/- | K89: =H89-F89 -> 6 | L89: =(H89*N89)*0.035% -> 271.69 | M89: =(K89*N89)-L89 -> 8728.3 | N89: 1500 | O89: Successful | P89: 2020-12-02 | R89: N
A90: 4 | B90: 2020-12-04 | D90: GRASIM DEC FUT | E90: Buy | F90: 925 | G90: 912 | H90: 934 | I90: 940 | J90: Profit of Rs.9/- | K90: =H90-F90 -> 9 | L90: =(H90*N90)*0.035% -> 310.56 | M90: =(K90*N90)-L90 -> 8239.4 | N90: 950 | O90: Successful | P90: 2020-12-04 | R90: N
A91: 5 | B91: 2020-12-04 | D91: AUROPHARMA DEC FUT | E91: Buy | F91: 904.5 | G91: 884 | H91: 920 | I91: 940 | J91: Profit of Rs.15.5/- | K91: 15.5 | L91: 209.30 | M91: 9865.7 | N91: 650 | O91: Successful | P91: 2020-12-07 | R91: N
A92: 6 | B92: 2020-12-04 | D92: LUPIN DEC FUT | E92: Buy | F92: 927 | G92: 913 | H92: 936.5 | I92: 950 | J92: Profit of Rs.9.5/- | K92: =H92-F92 -> 9.5 | L92: =(H92*N92)*0.035% -> 278.61 | M92: =(K92*N92)-L92 -> 7796.4 | N92: 850 | O92: Successful | P92: 2020-12-04 | R92: H
A93: 7 | B93: 2020-12-04 | D93: BHARATFORG DEC FUT | E93: Buy | F93: 546.5 | G93: 537 | H93: 552.5 | I93: 562 | J93: Profit of Rs.6/- | K93: 6 | L93: 290.06 | M93: 8709.9 | N93: 1500 | O93: Successful | P93: 2020-12-04 | R93: N
A94: 8 | B94: 2020-12-04 | D94: CIPLA DEC FUT | E94: Buy | F94: 769.5 | G94: 758 | H94: 776.5 | I94: 790 | J94: Profit of Rs.7/- | K94: 7 | L94: 353.31 | M94: 8746.7 | N94: 1300 | O94: Successful | P94: 2020-12-07 | R94: H
A95: 9 | B95: 2020-12-04 | D95: CONCOR DEC FUT | E95: Buy | F95: 415 | G95: 406 | H95: 406 | I95: 430 | J95: Loss of Rs.9/- | K95: =H95-F95 -> -9 | L95: =(H95*N95)*0.035% -> 222.10 | M95: =(K95*N95)-L95 -> -14289.1 | N95: 1563 | O95: Unsuccessful | P95: 2020-12-08 | R95: N
A96: 10 | B96: 2020-12-07 | D96: BRITANNIA DEC FUT | E96: Buy | F96: 3639 | G96: 3575 | H96: 3672.5 | I96: 3750 | J96: Profit of Rs.33.5/- | K96: 33.5 | L96: 257.08 | M96: 6442.9 | N96: 200 | O96: Successful | P96: 2020-12-10 | R96: H
A97: 11 | B97: 2020-12-07 | D97: GRASIM DEC FUT | E97: Buy | F97: 941 | G97: 927 | H97: 927 | I97: 965 | J97: Loss of Rs.14/- | K97: =H97-F97 -> -14 | L97: =(H97*N97)*0.035% -> 308.23 | M97: =(K97*N97)-L97 -> -13608.2 | N97: 950 | O97: Unsuccessful | P97: 2020-12-08 | R97: N
A98: 12 | B98: 2020-12-07 | D98: HCLTECH DEC FUT | E98: Buy | F98: 857 | G98: 843 | H98: 874.5 | I98: 880-885 | J98: Profit of Rs.17.5/- | K98: =H98-F98 -> 17.5 | L98: =(H98*N98)*0.035% -> 214.25 | M98: =(K98*N98)-L98 -> 12035.7 | N98: 700 | O98: Successful | P98: 2020-12-08 | R98: H
A99: 13 | B99: 2020-12-09 | D99: NIFTY DEC FUT | E99: Buy | F99: 13475 | G99: 13570 | H99: 13570 | I99: 13250 | J99: Loss of Rs.95/- | K99: =F99-H99 -> -95 | L99: 356.21 | M99: -7481.2 | N99: 75 | O99: Unsuccessful | P99: 2020-12-09 | R99: H
A100: 14 | B100: 2020-12-09 | D100: AUROPHARMA DEC FUT | E100: Buy | F100: 905 | G100: 885 | H100: 885 | I100: 940 | J100: Loss of Rs.20/- | K100: =H100-F100 -> -20 | L100: 201.34 | M100: -13201.3 | N100: 650 | O100: Unsuccessful | P100: 2020-12-15 | R100: N
A101: 15 | B101: 2020-12-11 | D101: NIFTY DEC FUT | E101: Sell | F101: 13570 | G101: 13650 | H101: 13485 | I101: 13400 | J101: Profit of Rs.85/- | K101: =F101-H101 -> 85 | L101: =(H101*N101)*0.035% -> 353.98 | M101: =(K101*N101)-L101 -> 6021.0 | N101: 75 | O101: Successful | P101: 2020-12-11 | R101: H
A102: 16 | B102: 2020-12-11 | D102: COLPAL DEC FUT | E102: Buy | F102: 1574.5 | G102: 1554 | H102: 1590 | I102: 1610 | J102: Profit of Rs.15.5/- | K102: =H102-F102 -> 15.5 | L102: 389.55 | M102: 10460.5 | N102: 700 | O102: Successful | P102: 2020-12-14 | R102: N
A103: 17 | B103: 2020-12-14 | D103: NIFTY DEC FUT | E103: Buy | F103: 13610 | G103: 13710 | H103: 13555 | I103: 13400 | J103: Profit of Rs.55/- | K103: =F103-H103 -> 55 | L103: =(H103*N103)*0.035% -> 355.82 | M103: =(K103*N103)-L103 -> 3769.2 | N103: 75 | O103: Successful | P103: 2020-12-14 | R103: H
A104: 18 | B104: 2020-12-14 | D104: PIDILITIND DEC FUT | E104: Buy | F104: 1645 | G104: 1620 | H104: 1661 | I104: 1695 | J104: Profit of Rs.16/- | K104: =H104-F104 -> 16 | L104: 290.68 | M104: 7709.3 | N104: 500 | O104: Successful | P104: 2020-12-18 | R104: N
A105: 19 | B105: 2020-12-15 | D105: NIFTY DEC FUT | E105: Sell | F105: 13515 | G105: 13710 | H105: 13700 | I105: 13300 | J105: Loss of Rs.126.5/- | K105: 185 | L105: 355.00 | M105: -9412 | N105: 75 | O105: Unsuccessful | P105: 2020-12-16 | R105: H
D106: NIFTY 31-DEC 13300 PE | E106: Sell | F106: 117.5 | H106: 59 | K106: 58.5 | L106: 100
A107: 20 | B107: 2020-12-16 | D107: HINDUNILVR DEC FUT | E107: Buy | F107: 2322 | G107: 2288 | H107: 2350 | I107: 2380-2400 | J107: Profit of Rs.28/- | K107: =H107-F107 -> 28 | L107: =(H107*N107)*0.035% -> 246.75 | M107: =(K107*N107)-L107 -> 8153.3 | N107: 300 | O107: Successful | P107: 2020-12-16 | R107: H
A108: 21 | B108: 2020-12-16 | D108: LUPIN DEC FUT | E108: Buy | F108: 951 | G108: 936 | H108: 960 | I108: 970-975 | J108: Profit of Rs.9/- | K108: =H108-F108 -> 9 | L108: =(H108*N108)*0.035% -> 285.60 | M108: =(K108*N108)-L108 -> 7364.4 | N108: 850 | O108: Successful | P108: 2020-12-16 | R108: N
A109: 22 | B109: 2020-12-16 | D109: BHARATFORG DEC FUT | E109: Buy | F109: 556.5 | G109: 548 | H109: 562.5 | I109: 570 | J109: Profit of Rs.6/- | K109: 6 | L109: 295.31 | M109: 8704.7 | N109: 1500 | O109: Successful | P109: 2020-12-16 | R109: N
A110: 23 | B110: 2020-12-17 | D110: BHARATFORG DEC FUT | E110: Buy | F110: 554.5 | G110: 547 | H110: 561.5 | I110: 570 | J110: Profit of Rs.7/- | K110: =H110-F110 -> 7 | L110: =(H110*N110)*0.035% -> 294.79 | M110: =(K110*N110)-L110 -> 10205.2 | N110: 1500 | O110: Successful | P110: 2020-12-17 | R110: N
A111: 24 | B111: 2020-12-17 | D111: TVSMOTOR DEC FUT | E111: Sell | F111: 499.5 | G111: 508 | H111: 492.5 | I111: 485-480 | J111: Profit of Rs.7/- | K111: =F111-H111 -> 7 | L111: 241.33 | M111: 9558.7 | N111: 1400 | O111: Successful | P111: 2020-12-17 | R111: H
A112: 25 | B112: 2020-12-17 | D112: HINDUNILVR DEC FUT | E112: Buy | F112: 2320 | G112: 2288 | H112: 2342.5 | I112: 2380-2400 | J112: Profit of Rs.22.5/- | K112: =H112-F112 -> 22.5 | L112: 245.96 | M112: 6504.0 | N112: 300 | O112: Successful | P112: 2020-12-18 | R112: H
A113: 26 | B113: 2020-12-17 | D113: BHARATFORG DEC FUT | E113: Buy | F113: 553.5 | G113: 545 | H113: 559.5 | I113: 570 | J113: Profit of Rs.6/- | K113: =H113-F113 -> 6 | L113: =(H113*N113)*0.035% -> 293.74 | M113: =(K113*N113)-L113 -> 8706.3 | N113: 1500 | O113: Successful | P113: 2020-12-17 | R113: N
A114: 27 | B114: 2020-12-17 | D114: NIFTY DEC FUT | E114: Sell | F114: 13730 | G114: 13820 | H114: 13657.5 | I114: 13500 | J114: Profit of Rs.72.5/- | K114: =F114-H114 -> 72.5 | L114: 358.51 | M114: 5079.0 | N114: 75 | O114: Successful | P114: 2020-12-21 | R114: H
A115: 28 | B115: 2020-12-17 | D115: GODREJCP DEC FUT | E115: Buy | F115: 720 | G115: 707 | H115: 729.5 | I115: 745 | J115: Profit of Rs.9.5/- | K115: =H115-F115 -> 9.5 | L115: 255.33 | M115: 9244.7 | N115: 1000 | O115: Successful | P115: 2020-12-21 | R115: N
A116: 29 | B116: 2020-12-17 | D116: SUNTV DEC FUT | E116: Buy | F116: 497.5 | G116: 489 | H116: 491 | I116: 515 | J116: Loss of Rs.6.5/- | K116: =H116-F116 -> -6.5 | L116: =(H116*N116)*0.035% -> 257.78 | M116: =(K116*N116)-L116 -> -10007.8 | N116: 1500 | O116: Unsuccessful | P116: 2020-12-18 | R116: H
A117: 30 | B117: 2020-12-18 | D117: BHARATFORG DEC FUT | E117: Buy | F117: 549 | G117: 540 | H117: 555.5 | I117: 565 | J117: Profit of Rs.6.5/- | K117: 6.5 | L117: 291.64 | M117: 9458.4 | N117: 1500 | O117: Successful | P117: 2020-12-18 | R117: N
A118: 31 | B118: 2020-12-18 | D118: COLPAL DEC FUT | E118: Buy | F118: 1610 | G118: 1590 | H118: 1590 | I118: 1650 | J118: Loss of Rs.20/- | K118: -20 | L118: 389.55 | M118: -14389.6 | N118: 700 | O118: Unsuccessful | P118: 2020-12-21 | R118: N
A119: 32 | B119: 2020-12-21 | D119: HINDUNILVR DEC FUT | E119: Buy | F119: 2329 | G119: 2290 | H119: 2352 | I119: 2380-2400 | J119: Profit of Rs.23/- | K119: =H119-F119 -> 23 | L119: =(H119*N119)*0.035% -> 246.96 | M119: =(K119*N119)-L119 -> 6653.0 | N119: 300 | O119: Successful | P119: 2020-12-21 | R119: H
A120: 33 | B120: 2020-12-21 | D120: POWERGRID | E120: Buy | F120: 190.15 | G120: 187 | H120: 187 | I120: 196 | J120: Loss of Rs.3.15/- | K120: -3.15 | L120: 261.80 | M120: -12861.8 | N120: 4000 | O120: Unsuccessful | P120: 2020-12-21 | R120: N
A121: 34 | B121: 2020-12-21 | D121: BHARATFORG DEC FUT | E121: Buy | F121: 550.5 | G121: 542 | H121: 542 | I121: 565 | J121: Loss of Rs.8.5/- | K121: =H121-F121 -> -8.5 | L121: =(H121*N121)*0.035% -> 284.55 | M121: =(K121*N121)-L121 -> -13034.6 | N121: 1500 | O121: Unsuccessful | P121: 2020-12-21 | R121: N
A122: 35 | B122: 2020-12-21 | D122: BANKNIFTY DEC FUT | E122: Sell | F122: 30350 | G122: 30650 | H122: 30145 | I122: 29800 | J122: Profit of Rs.205/- | K122: =F122-H122 -> 205 | L122: 263.77 | M122: 4861.2 | N122: 25 | O122: Successful | P122: 2020-12-21 | R122: H
A123: 36 | B123: 2020-12-21 | D123: HINDUNILVR DEC FUT | E123: Buy | F123: 2326 | G123: 2288 | H123: 2330 | I123: 2380-2400 | J123: Profit of Rs.4/- | K123: =H123-F123 -> 4 | L123: 244.65 | M123: 955.4 | N123: 300 | O123: Successful | P123: 2020-12-22 | R123: H
A124: 37 | B124: 2020-12-22 | D124: COLPAL DEC FUT | E124: Buy | F124: 1556.5 | G124: 1538 | H124: 1538 | I124: 1600 | J124: Loss of Rs.18.5/- | K124: -18.5 | L124: 376.81 | M124: -13326.8 | N124: 700 | O124: Unsuccessful | P124: 2020-12-22 | R124: N
A125: 38 | B125: 2020-12-22 | D125: NIFTY DEC FUT | E125: Sell | F125: 13445 | G125: 13600 | H125: 13595 | I125: 13200 | J125: Loss of Rs.150/- | K125: =F125-H125 -> -150 | L125: 356.87 | M125: -11606.9 | N125: 75 | O125: Unsuccessful | P125: 2020-12-23 | R125: H
A126: 39 | B126: 2020-12-23 | D126: HINDUNILVR DEC FUT | E126: Buy | F126: 2313 | G126: 2278 | H126: 2333.5 | I126: 2380 | J126: Profit of Rs.20.5/- | K126: =H126-F126 -> 20.5 | L126: =(H126*N126)*0.035% -> 245.02 | M126: =(K126*N126)-L126 -> 5905.0 | N126: 300 | O126: Successful | P126: 2020-12-23 | R126: H
A127: 40 | B127: 2020-12-23 | D127: LUPIN DEC FUT | E127: Buy | F127: 961 | G127: 945 | H127: 972 | I127: 990 | J127: Profit of Rs.11/- | K127: =H127-F127 -> 11 | L127: =(H127*N127)*0.035% -> 289.17 | M127: =(K127*N127)-L127 -> 9060.8 | N127: 850 | O127: Successful | P127: 2020-12-23 | R127: N
A128: 41 | B128: 2020-12-23 | D128: BRITANNIA DEC FUT | E128: Buy | F128: 3642.5 | G128: 3575 | H128: 3682.5 | I128: 3750 | J128: Profit of Rs.40/- | K128: 40 | L128: 257.78 | M128: 7742.2 | N128: 200 | O128: Successful | P128: 2020-12-24 | R128: H
A129: 42 | B129: 2020-12-23 | D129: LUPIN DEC FUT | E129: Buy | F129: 961 | G129: 945 | H129: 972 | I129: 990 | J129: Profit of Rs.11/- | K129: =H129-F129 -> 11 | L129: =(H129*N129)*0.035% -> 289.17 | M129: =(K129*N129)-L129 -> 9060.8 | N129: 850 | O129: Successful | P129: 2020-12-24 | R129: N
A130: 43 | B130: 2020-12-24 | D130: BRITANNIA DEC FUT | E130: Buy | F130: 3657 | G130: 3595 | H130: 3597.5 | I130: 3750 | J130: Loss of Rs.59.5/- | K130: -59.5 | L130: 251.83 | M130: -12151.8 | N130: 200 | O130: Unsuccessful | P130: 2020-12-29 | R130: H
A131: 44 | B131: 2020-12-24 | D131: NIFTY DEC FUT | E131: Sell | F131: 13735 | G131: 13820 | H131: 13665 | I131: 13500 | J131: Profit of Rs.70/- | K131: =F131-H131 -> 70 | L131: =(H131*N131)*0.035% -> 358.71 | M131: =(K131*N131)-L131 -> 4891.3 | N131: 75 | O131: Successful | P131: 2020-12-24 | R131: H
A132: 45 | B132: 2020-12-24 | D132: CADILAHC DEC FUT | E132: Buy | F132: 474 | G132: 468 | H132: 478 | I132: 490 | J132: Profit of Rs.4/- | K132: =H132-F132 -> 4 | L132: 368.06 | M132: 8431.9 | N132: 2200 | O132: Successful | P132: 2020-12-24 | R132: H
A133: 46 | B133: 2020-12-28 | D133: ICICIPRULI DEC FUT | E133: Buy | F133: 495 | G133: 485.5 | H133: 502.5 | I133: 515 | J133: Profit of Rs.7.5/- | K133: =H133-F133 -> 7.5 | L133: =(H133*N133)*0.035% -> 263.81 | M133: =(K133*N133)-L133 -> 10986.2 | N133: 1500 | O133: Successful | P133: 2020-12-28 | R133: H
A134: 47 | B134: 2020-12-28 | D134: SUNPHARMA DEC FUT | E134: Buy | F134: 592 | G134: 584 | H134: 584 | I134: 610 | J134: Loss of Rs.8/- | K134: -8 | L134: 286.16 | M134: -11486.2 | N134: 1400 | O134: Unsuccessful | P134: 2020-12-30 | R134: H
A135: 48 | B135: 2020-12-28 | D135: AUROPHARMA DEC FUT | E135: Buy | F135: 906-908 | G135: 886 | I135: 940 | J135: Open | R135: N
A136: 49 | B136: 2020-12-28 | D136: GODREJCP DEC FUT | E136: Buy | F136: 724 | G136: 711 | H136: 733 | I136: 745 | J136: Profit of Rs.9/- | K136: =H136-F136 -> 9 | L136: =(H136*N136)*0.035% -> 256.55 | M136: =(K136*N136)-L136 -> 8743.5 | N136: 1000 | O136: Successful | P136: 2020-12-29 | R136: N
A137: 50 | B137: 2020-12-28 | D137: HINDALCO DEC FUT | E137: Sell | F137: 240.25 | G137: 243 | H137: 238.35 | I137: 235-234 | J137: Profit of Rs.1.9/- | K137: =F137-H137 -> 1.9 | L137: 358.72 | M137: 7811.3 | N137: 4300 | O137: Successful | P137: 2020-12-29 | R137: H
A138: 51 | B138: 2020-12-29 | D138: CUMMINSIND JAN FUT | E138: Buy | F138: 577 | G138: 566 | H138: 583.5 | I138: 595 | J138: Profit of Rs.6.5/- | K138: =H138-F138 -> 6.5 | L138: =(H138*N138)*0.035% -> 245.07 | M138: =(K138*N138)-L138 -> 7554.9 | N138: 1200 | O138: Successful | P138: 2020-12-30
A139: 52 | B139: 2020-12-29 | D139: NIFTY JAN FUT | E139: Sell | F139: 14000 | G139: 14120 | H139: 13925 | I139: 13800 | J139: Profit of Rs.75/- | K139: =F139-H139 -> 75 | L139: =(H139*N139)*0.035% -> 365.53 | M139: =(K139*N139)-L139 -> 5259.5 | N139: 75 | O139: Successful | P139: 2020-12-29
A140: 53 | B140: 2020-12-29 | D140: HDFCLIFE DEC FUT | E140: Buy | F140: 672-673 | G140: 662 | I140: 695 | J140: Open
A141: 54 | B141: 2020-12-30 | D141: NIFTY JAN FUT | E141: Sell | F141: 14015 | G141: 14120 | H141: 13935 | I141: 13750 | J141: Profit of Rs.80/- | K141: =F141-H141 -> 80 | L141: =(H141*N141)*0.035% -> 365.79 | M141: =(K141*N141)-L141 -> 5634.2 | N141: 75 | O141: Successful | P141: 2020-12-30
A142: 55 | B142: 2020-12-30 | D142: CUMMINSIND JAN FUT | E142: Buy | F142: 573-575 | G142: 564 | I142: 595 | J142: Open
A143: 56 | B143: 2020-12-30 | D143: NIFTY JAN FUT | E143: Sell | F143: 14015-14025 | G143: 14150 | I143: 13750 | J143: Open
A144: 57
A149: Master Trade Medium Risk
A150: Sr.no | B150: Date | D150: Company | E150: Rec | F150: Rec Price | G150: Stop Loss | H150: Call Closed At | I150: Target | J150: Remark | K150: Profit/ Loss per lot | L150: All charges | M150: Gain / Loss per Lot | N150: Lot | O150: Status | P150: Closed Date
A151: 1 | B151: 2020-12-01 | D151: HAVELLS 780 PE DEC | E151: Buy | F151: 13.5 | G151: 8 | H151: 8 | I151: 22-24 | J151: Loss of Rs.5.5/- | K151: =H151-F151 -> -5.5 | L151: 100.00 | M151: =(K151*N151)-100 -> -5600 | N151: 1000 | O151: Unsuccessful | P151: 2020-12-04 | R151: N
A152: 2 | B152: 2020-12-01 | D152: BANKNIFTY 29000 PE 10-DEC | E152: Buy | F152: 390 | G152: 190 | H152: 435 | I152: 700 | J152: Profit of Rs.45/- | K152: =H152-F152 -> 45 | L152: 100.00 | M152: =(K152*N152)-100 -> 1025 | N152: 25 | O152: Successful | P152: 2020-12-02 | R152: H
A153: 3 | B153: 2020-12-03 | D153: BANKNIFTY 29000 10-PE DEC | E153: Buy | F153: 235 | G153: 80 | H153: 80 | I153: 500 | J153: Loss of Rs.155/- | K153: =H153-F153 -> -155 | L153: 100.00 | M153: =(K153*N153)-100 -> -3975 | N153: 25 | O153: Unsuccessful | P153: 2020-12-04 | R153: H
A154: 4 | B154: 2020-12-03 | D154: BALKRISIND 1600 PE DEC | E154: Buy | F154: 36 | G154: 24 | H154: 42 | I154: 60 | J154: Profit of Rs.6/- | K154: =H154-F154 -> 6 | L154: 100.00 | M154: =(K154*N154)-100 -> 2300 | N154: 400 | O154: Successful | P154: 2020-12-03 | R154: H
A155: 5 | B155: 2020-12-03 | D155: NIFTY 13150 PE 03-DEC | E155: Buy | F155: 41 | G155: 18 | H155: 55.5 | I155: 80 | J155: Profit of Rs.14.5/- | K155: 14.5 | L155: 100.00 | M155: 987.5 | N155: 75 | O155: Successful | P155: 2020-12-03 | R155: H
A156: 6 | B156: 2020-12-03 | D156: NIFTY 13000 PE 10-DEC | E156: Buy | F156: 55 | G156: 18 | H156: 65.5 | I156: 100 | J156: Profit of Rs.10.5/- | K156: =H156-F156 -> 10.5 | L156: 100.00 | M156: =(K156*N156)-100 -> 687.5 | N156: 75 | O156: Successful | P156: 2020-12-03 | R156: H
A157: 7 | B157: 2020-12-03 | D157: NIFTY 13000 PE 10-DEC | E157: Buy | F157: 51.5 | G157: 18 | H157: 18 | I157: 100 | J157: Loss of Rs.33.5/- | K157: -33.5 | L157: 100.00 | M157: -2612.5 | N157: 75 | O157: Unsuccessful | P157: 2020-12-07 | R157: H
A158: 8 | B158: 2020-12-07 | D158: BAJAJ-AUTO 3400 CE DEC | E158: Buy | F158: 75 | G158: 57 | H158: 83.5 | I158: 100-110 | J158: Profit of Rs.8.5/- | K158: 8.5 | L158: 100.00 | M158: 2025 | N158: 250 | O158: Successful | P158: 2020-12-08 | R158: H
A159: 9 | B159: 2020-12-08 | D159: NIFTY 13300 PE 10-DEC | E159: Buy | F159: 44 | G159: 17 | H159: 58 | I159: 80 | J159: Profit of Rs.14/- | K159: =H159-F159 -> 14 | L159: 100.00 | M159: =(K159*N159)-100 -> 950 | N159: 75 | O159: Successful | P159: 2020-12-08 | R159: H
A160: 10 | B160: 2020-12-08 | D160: NIFTY 13350 PE 10-DEC | E160: Buy | F160: 49 | G160: 19 | H160: 19 | I160: 100 | J160: Loss of Rs.30/- | K160: -30 | L160: 100.00 | M160: -2350 | N160: 75 | O160: Unsuccessful | P160: 2020-12-09 | R160: H
A161: 11 | B161: 2020-12-10 | D161: BANKNIFTY 30400 CE 10-DEC | E161: Buy | F161: 37.5 | H161: 87.5 | I161: 90 | J161: Profit of Rs.50/- | K161: =H161-F161 -> 50 | L161: 100.00 | M161: =(K161*N161)-100 -> 1150 | N161: 25 | O161: Successful | P161: 2020-12-10 | R161: N
A162: 12 | B162: 2020-12-10 | D162: NIFTY 13450 PE 17-DEC | E162: Buy | F162: 117.5 | H162: 0 | J162: Loss of Rs, 65/ | K162: -117.5 | L162: 100.00 | M162: -4875 | N162: 75 | O162: Unsuccessful | P162: 2020-12-17 | R162: H
D163: NIFTY 13250 PE 17-DEC | E163: Sell | F163: 52.5 | H163: 0 | K163: =F163-H24 -> 52.5 | L163: 100.00
A164: 13 | B164: 2020-12-14 | D164: NIFTY 13450 PE 17-DEC | E164: Buy | F164: 58.5 | G164: 38 | H164: 71 | I164: 100 | J164: Profit of Rs.12.5/- | K164: =H164-F164 -> 12.5 | L164: 100.00 | M164: =(K164*N164)-100 -> 837.5 | N164: 75 | O164: Successful | P164: 2020-12-14 | R164: H
A165: 14 | B165: 2020-12-14 | D165: DABUR 510 CE DEC | E165: Buy | F165: 16 | H165: 12 | J165: Profit of Rs.2/- | K165: =H165-F165 -> -4 | L165: 100.00 | M165: 2300 | N165: 1250 | O165: Successful | P165: 2020-12-28 | R165: H
D166: DABUR 520 CE DEC | E166: Sell | F166: 12 | H166: 6 | K166: =F166-H166 -> 6 | L166: 100.00
A167: 15 | B167: 2020-12-14 | D167: NIFTY 13450 PE 17-DEC | E167: Buy | F167: 51 | G167: 18 | H167: 69 | I167: 100 | J167: Profit of Rs.18/- | K167: =H167-F167 -> 18 | L167: 100.00 | M167: =(K167*N167)-100 -> 1250 | N167: 75 | O167: Successful | P167: 2020-12-15 | R167: H
A168: 16 | B168: 2020-12-16 | D168: NIFTY 13600 PE 17-DEC | E168: Buy | F168: 41.5 | H168: 56 | I168: 90 | J168: Profit of Rs.14.5/- | K168: =H168-F168 -> 14.5 | L168: 100.00 | M168: =(K168*N168)-100 -> 987.5 | N168: 75 | O168: Successful | P168: 2020-12-16 | R168: H
A169: 17 | B169: 2020-12-16 | D169: BANKNIFTY 30400 PE 17-DEC | E169: Buy | F169: 79 | H169: 135 | I169: 200 | J169: Profit of Rs.56/- | K169: 56 | L169: 100.00 | M169: 1300 | N169: 25 | O169: Successful | P169: 2020-12-16 | R169: H
A170: 18 | B170: 2020-12-16 | D170: NIFTY 13600 PE 17-DEC | E170: Buy | F170: 31 | H170: 0 | I170: 80 | J170: Loss of Rs.31/- | K170: -31 | L170: 100.00 | M170: -2425 | N170: 75 | O170: Unsuccessful | P170: 2020-12-17 | R170: N
A171: 19 | B171: 2020-12-16 | D171: BANKNIFTY 30500 PE 17-DEC | E171: Buy | F171: 88 | H171: 0 | I171: 200-250 | J171: Loss of Rs.88/- | K171: =H171-F171 -> -88 | L171: 100.00 | M171: =(K171*N171)-100 -> -2300 | N171: 25 | O171: Unsuccessful | P171: 2020-12-17 | R171: H
A172: 20 | B172: 2020-12-22 | D172: NIFTY 13300 PE 24-DEC | E172: Buy | F172: 71 | G172: 25 | H172: 88 | I172: 150 | J172: Profit of Rs.17/- | K172: 17 | L172: 100.00 | M172: 1175 | N172: 75 | O172: Successful | P172: 2020-12-22 | R172: N
A173: 21 | B173: 2020-12-22 | D173: NIFTY 13300 PE 24-DEC | E173: Buy | F173: 64 | G173: 20 | H173: 20 | I173: 150 | J173: Loss of Rs.44/- | K173: -44 | L173: 100.00 | M173: -3400 | N173: 75 | O173: Unsuccessful | P173: 2020-12-23 | R173: N
A174: 22 | B174: 2020-12-24 | D174: NIFTY 13650 PE 24-DEC | E174: Buy | F174: 20 | H174: 32 | I174: 50 | J174: Profit of Rs.12/- | K174: =H174-F174 -> 12 | L174: 100.00 | M174: =(K174*N174)-100 -> 800 | N174: 75 | O174: Successful | P174: 2020-12-24 | R174: N
A175: 23 | B175: 2020-12-24 | D175: NIFTY 13500 PE 31-DEC | E175: Buy | F175: 55 | G175: 15 | H175: 73 | I175: 100 | J175: Profit of Rs.18/- | K175: =H175-F175 -> 18 | L175: 100.00 | M175: =(K175*N175)-100 -> 1250 | N175: 75 | O175: Successful | P175: 2020-12-24 | R175: H
A176: 24 | B176: 2020-12-24 | D176: NIFTY 13500 PE 31-DEC | E176: Buy | F176: 55.5 | G176: 15 | H176: 15 | I176: 100 | J176: Loss of Rs.40.5/- | K176: -40.5 | L176: 100.00 | M176: -3137.5 | N176: 75 | O176: Unsuccessful | P176: 2020-12-28 | R176: H
A177: 25 | B177: 2020-12-24 | D177: BANKNIFTY 30300 PE 24-DEC | E177: Buy | F177: 92.5 | H177: 0 | I177: 250 | J177: Loss of Rs.92.5/- | K177: =H177-F177 -> -92.5 | L177: 100.00 | M177: =(K177*N177)-100 -> -2412.5 | N177: 25 | O177: Unsuccessful | P177: 2020-12-24 | R177: N
A178: 26 | B178: 2020-12-28 | D178: HINDUNILVR 2400 CE DEC | E178: Buy | F178: 21 | G178: 8 | H178: 8 | I178: 40 | J178: Loss of Rs.13/- | K178: -13 | L178: 100.00 | M178: -4000 | N178: 300 | O178: Unsuccessful | P178: 2020-12-30 | R178: H
A185: Techno -Funda (positional)
A186: Sr.no | B186: Date | D186: Company | E186: Rec | F186: Rec Price | G186: Stop Loss*** | H186: Call Closed At | I186: Target | J186: Remark | K186: Profit / Loss per Share/Lot | L186: All charges | M186: Net Gain / Loss % | N186: Status | O186: Closed Date
A187: 1 | B187: 2020-12-08 | D187: MCX | E187: Buy | F187: 1570 | G187: 1415 | H187: 1740 | I187: 1900 | J187: Profit of Rs.170/- | K187: =H187-F187 -> 170 | L187: =(F187*-0.8)/100 -> -12.56 | M187: =(K187+L187)/F187 -> 10.03% | N187: Successful | O187: 2020-12-24 | R187: H
A188: 2 | B188: 2020-12-08 | D188: KNRCON | E188: Buy | F188: 301 | G188: 265 | H188: 329 | I188: 350-360 | J188: Profit of Rs.28/- | K188: =H188-F188 -> 28 | L188: =(F188*-0.8)/100 -> -2.41 | M188: =(K188+L188)/F188 -> 8.50% | N188: Successful | O188: 2020-12-18 | R188: H
A190: CLBS = Closing Basis *** | F190: Reinitiated $
A191: Dividend adjusted <> | F191: Revised stoploss #
B193: Intrday Call
A194: Sr.no | B194: Date | D194: Company | E194: Rec | F194: Rec Price | G194: Stop Loss | H194: Call Closed At | I194: Target | J194: Remark | K194: Profit / Loss per Share/Lot | L194: Gain / Loss per Lot | M194: Lot | N194: All charges | O194: Net Gain / Loss % | P194: Status | Q194: Closed Date
B207: Investment Idea
A208: Sr.no | B208: Date | D208: Company | E208: Rec | F208: Rec Price | G208: Point of Review | H208: Close Rate | I208: Target | J208: Remark | K208: Profit / Loss per Share | L208: Gain / Loss % | M208: Status | N208: Closed Date
A209: 1 | B209: 2013-11-01 | D209: L&T Finance Holding | E209: Accu | F209: 82.00 | G209: - | H209: 100 | I209: 100.00 | J209: Target Achieved | K209: =H209-F209 -> 18.00 | L209: =K209/F209 -> 21.95% | M209: Successful | N209: 2016-10-14
A210: 2 | B210: 2014-06-04 | D210: Finolex Inds | E210: Buy | F210: 257.00 | G210: - | H210: 300 | I210: 300.00 | J210: Target Achieved | K210: 43.00 | L210: 16.73% | M210: Successful | N210: 2014-07-02
A211: 3 | B211: 2014-07-08 | D211: JK Cement | E211: Buy | F211: 393.00 | G211: - | H211: 468 | I211: 468.00 | J211: Target Achieved | K211: 75.00 | L211: 19.08% | M211: Successful | N211: 2014-08-12
A212: 4 | B212: 2014-08-06 | D212: Finolex Cables | E212: Buy | F212: 205.00 | G212: - | H212: 275 | I212: 250.00 | J212: Target Achieved | K212: 70.00 | L212: 34.15% | M212: Successful | N212: 2014-11-19
A213: 5 | B213: 2014-09-04 | D213: Exide Inds | E213: Buy | F213: 162.00 | G213: - | H213: 190 | I213: 190.00 | J213: Target Achieved | K213: 28.00 | L213: 17.28% | M213: Successful | N213: 2015-01-02
A214: 6 | B214: 2014-09-04 | D214: Deepak Nitrite | E214: Buy | F214: 75.00 | G214: - | H214: 91.5 | I214: 95-100 | J214: Profit of Rs.16.50/- | K214: 16.50 | L214: 22.00% | M214: Successful | N214: 2014-11-11
A215: 7 | B215: 2014-10-01 | D215: Mercks | E215: Buy | F215: 850.00 | G215: - | H215: 982.5 | I215: 1050.00 | J215: Profit of Rs.132.50/- | K215: 132.50 | L215: 15.59% | M215: Successful | N215: 2015-02-04
A216: 8 | B216: 2014-10-01 | D216: Grindwell Norton | E216: Buy | F216: 475.00 | G216: - | H216: 515 | I216: 600.00 | J216: Profit of Rs.40/- | K216: 40.00 | L216: 8.42% | M216: Successful | N216: 2014-10-27
A217: 9 | B217: 2014-10-01 | D217: Snowman Logistics | E217: Buy | F217: 86.00 | G217: - | H217: 99 | I217: 140.00 | J217: Profit of Rs.13.00/- | K217: 13.00 | L217: 15.12% | M217: Successful | N217: 2014-10-27
A218: 10 | B218: 2014-10-14 | D218: Birla Corp | E218: Buy | F218: 496.60 | G218: - | H218: 621 | I218: 580.00 | J218: Target Achieved | K218: 124.40 | L218: 25.05% | M218: Successful | N218: 2016-08-23
A219: 11 | B219: 2014-10-14 | D219: Ultratech Cem | E219: Buy | F219: 2481.90 | G219: - | H219: 2840 | I219: 2870.00 | J219: Profit of Rs.358.10/- | K219: 358.10 | L219: 14.43% | M219: Successful | N219: 2015-01-13
A220: 12 | B220: 2014-10-16 | D220: Sintex Inds | E220: Buy | F220: 84.50 | G220: - | H220: 93 | I220: 110.00 | J220: Profit of Rs.8.50/- | K220: 8.50 | L220: 10.06% | M220: Successful | N220: 2014-10-27
A221: 13 | B221: 2014-10-16 | D221: HSIL | E221: Buy | F221: 401.00 | G221: - | H221: 428 | I221: 450.00 | J221: Profit of Rs.27.00/- | K221: 27.00 | L221: 6.73% | M221: Successful | N221: 2015-01-16
A222: 14 | B222: 2014-10-16 | D222: Eveready Inds | E222: Buy | F222: 101.00 | G222: - | H222: 112 | I222: 120.00 | J222: Profit of Rs.11.00/- | K222: 11.00 | L222: 10.89% | M222: Successful | N222: 2014-10-27
A223: 15 | B223: 2014-11-11 | D223: Pennar Inds | E223: Buy | F223: 59.00 | G223: - | H223: 76 | I223: 76.00 | J223: Target Achieved | K223: 17.00 | L223: 28.81% | M223: Successful | N223: 2017-10-24
A224: 16 | B224: 2014-11-11 | D224: Snowman Logistics | E224: Buy | F224: 99.00 | G224: - | H224: 120 | I224: 120.00 | J224: Profit of Rs.21/- | K224: 21.00 | L224: 21.21% | M224: Successful | N224: 2014-11-17
A225: 17 | B225: 2014-11-13 | D225: Dharamsi Morarji Chem | E225: Buy | F225: 22.00 | G225: - | H225: 33.55 | I225: 32.00 | J225: Profit of Rs 11.55/- | K225: 11.55 | L225: 52.50% | M225: Successful | N225: 2015-07-03
A226: 18 | B226: 2014-12-03 | D226: Tatachem | E226: Buy | F226: 440.00 | G226: - | H226: 520 | I226: 520.00 | J226: Profit of Rs 80.00/- | K226: 80.00 | L226: 18.18% | M226: Successful | N226: 2015-07-23
A227: 19 | B227: 2014-12-03 | D227: Advanta | E227: Buy | F227: 360.00 | G227: - | H227: 427 | I227: 425.00 | J227: Profit of Rs.67.00/- | K227: 67.00 | L227: 18.61% | M227: Successful | N227: 2015-02-23
A228: 20 | B228: 2015-01-08 | D228: GDL | E228: Buy | F228: 360.00 | G228: - | H228: 455 | I228: 420.00 | J228: Profit of Rs.95.00/- | K228: 95.00 | L228: 26.39% | M228: Successful | N228: 2015-01-20
A229: 21 | B229: 2015-01-08 | D229: NRB Bearing | E229: Buy | F229: 130.00 | H229: 175.5 | I229: 165.00 | J229: Profit of Rs 45.50/- | K229: 45.50 | L229: 35.00% | M229: Successful | N229: 2017-12-19
A230: 22 | B230: 2015-02-05 | D230: GSFC | E230: Accu | F230: 98.00 | H230: 120 | I230: 120.00 | J230: Target Achieved | K230: 22.00 | L230: 22.45% | M230: Successful | N230: 2017-01-18
A231: 23 | B231: 2015-02-05 | D231: Sundrmfast | E231: Accu | F231: 196.00 | H231: 262 | I231: 255.00 | J231: Target Achieved | K231: 66.00 | L231: 33.67% | M231: Successful | N231: 2016-08-17
A232: 24 | B232: 2015-03-04 | D232: GPPL | E232: Accu | F232: 235 | H232: 77.00 | I232: 280-285 | J232: Loss of Rs.158/- | K232: -158.00 | L232: -67.23% | M232: Unsuccessful | N232: 2019-02-26
A233: 25 | B233: 2015-03-04 | D233: ORIENTCEM | E233: Accu | F233: 185.00 | H233: 224 | I233: 220-225 | J233: Target Achieved | K233: 39.00 | L233: 21.08% | M233: Successful | N233: 2016-10-04
A234: 26 | B234: 2015-03-27 | D234: PFS | E234: Accu | F234: 49.5 | H234: 15.85 | I234: 67.00 | J234: Loss of Rs.33.65/- | K234: -33.65 | L234: -68% | M234: Unsuccessful | N234: 2019-06-11
... 136 more rows

Sheet Sheet2 (hidden)
A1: SYMBOL | B1: SERIES | C1: OPEN | D1: HIGH | E1: LOW | F1: CLOSE | G1: LAST | H1: PREVCLOSE | I1: TOTTRDQTY | J1: TOTTRDVAL | K1: TIMESTAMP | L1: TOTALTRADES | M1: ISIN | N1: ISIN
A2: 20MICRONS | B2: EQ | C2: 27.9 | D2: 29 | E2: 25.9 | F2: 26.2 | G2: 25.9 | H2: 27.5 | I2: 80527 | J2: 2193820.55 | K2: 2020-04-08 | L2: 1099 | M2: INE144J01027
A3: 21STCENMGM | B3: EQ | C3: 10.15 | D3: 10.5 | E3: 10.1 | F3: 10.4 | G3: 10.5 | H3: 10.3 | I3: 3205 | J3: 32728.25 | K3: 2020-04-08 | L3: 28 | M3: INE253B01015
A4: 3IINFOTECH | B4: EQ | C4: 1.35 | D4: 1.35 | E4: 1.2 | F4: 1.25 | G4: 1.25 | H4: 1.35 | I4: 2793301 | J4: 3578364.95 | K4: 2020-04-08 | L4: 46535 | M4: INE748C01020
A5: 3MINDIA | B5: EQ | C5: 18950 | D5: 19170 | E5: 18155.05 | F5: 18318.2 | G5: 18270 | H5: 18755.7 | I5: 9926 | J5: 183605811.2 | K5: 2020-04-08 | L5: 4453 | M5: INE470A01017
A6: 3PLAND | B6: EQ | C6: 3.7 | D6: 3.85 | E6: 3.7 | F6: 3.85 | G6: 3.85 | H6: 3.7 | I6: 406 | J6: 1557.85 | K6: 2020-04-08 | L6: 9 | M6: INE105C01023
A7: 5PAISA | B7: EQ | C7: 119.95 | D7: 134 | E7: 115 | F7: 123.35 | G7: 120.5 | H7: 116.4 | I7: 6500 | J7: 793277.05 | K7: 2020-04-08 | L7: 265 | M7: INE618L01018
A8: 63MOONS | B8: EQ | C8: 50.7 | D8: 55.45 | E8: 50.7 | F8: 53.7 | G8: 53.55 | H8: 50.7 | I8: 72221 | J8: 3890984.7 | K8: 2020-04-08 | L8: 3078 | M8: INE111B01023
A9: A2ZINFRA | B9: EQ | C9: 3.15 | D9: 3.25 | E9: 3.1 | F9: 3.15 | G9: 3.15 | H9: 3.15 | I9: 116011 | J9: 367778.85 | K9: 2020-04-08 | L9: 227 | M9: INE619I01012
A10: AARTIDRUGS | B10: EQ | C10: 627 | D10: 669.3 | E10: 605 | F10: 631.6 | G10: 625 | H10: 607.85 | I10: 75970 | J10: 48223549.15 | K10: 2020-04-08 | L10: 5720 | M10: INE767A01016
A11: AARTIIND | B11: EQ | C11: 839.95 | D11: 909.8 | E11: 818 | F11: 854.9 | G11: 864 | H11: 830.7 | I11: 477805 | J11: 419092386.9 | K11: 2020-04-08 | L11: 50045 | M11: INE769A01020
A12: AARVEEDEN | B12: EQ | C12: 8.95 | D12: 9.25 | E12: 7.85 | F12: 8.35 | G12: 8.45 | H12: 8.1 | I12: 9251 | J12: 77100.1 | K12: 2020-04-08 | L12: 94 | M12: INE273D01019
A13: AAVAS | B13: EQ | C13: 1101 | D13: 1183 | E13: 1101 | F13: 1135.2 | G13: 1137 | H13: 1142.35 | I13: 24179 | J13: 28073100.85 | K13: 2020-04-08 | L13: 3631 | M13: INE216P01012
A14: ABAN | B14: EQ | C14: 15.7 | D14: 16.2 | E14: 15.7 | F14: 16.2 | G14: 16.2 | H14: 15.45 | I14: 37609 | J14: 608439.6 | K14: 2020-04-08 | L14: 288 | M14: INE421A01028
A15: ABB | B15: EQ | C15: 935 | D15: 965 | E15: 910 | F15: 930.7 | G15: 928 | H15: 931.35 | I15: 87757 | J15: 82358527.9 | K15: 2020-04-08 | L15: 4699 | M15: INE117A01022
A16: ABBOTINDIA | B16: EQ | C16: 16799.45 | D16: 18250 | E16: 16750 | F16: 17481.1 | G16: 17488 | H16: 16699.7 | I16: 57991 | J16: 1023745502 | K16: 2020-04-08 | L16: 21022 | M16: INE358A01014
A17: ABCAPITAL | B17: EQ | C17: 45 | D17: 47.9 | E17: 44.25 | F17: 45.6 | G17: 45.7 | H17: 45.1 | I17: 1253267 | J17: 57952493.6 | K17: 2020-04-08 | L17: 7317 | M17: INE674K01013
A18: ABFRL | B18: EQ | C18: 148 | D18: 152.8 | E18: 146.75 | F18: 149 | G18: 148 | H18: 149.85 | I18: 416099 | J18: 62371769.1 | K18: 2020-04-08 | L18: 10148 | M18: INE647O01011
A19: ABSLNN50ET | B19: EQ | C19: 244 | D19: 248 | E19: 210 | F19: 235 | G19: 235 | H19: 244 | I19: 56 | J19: 12779.4 | K19: 2020-04-08 | L19: 13 | M19: INF209KB1B87
A20: ACC | B20: EQ | C20: 1000 | D20: 1029.9 | E20: 941.25 | F20: 956.05 | G20: 958 | H20: 1009.95 | I20: 2153627 | J20: 2101320389 | K20: 2020-04-08 | L20: 79728 | M20: INE012A01025
A21: ACCELYA | B21: EQ | C21: 874.3 | D21: 886 | E21: 862 | F21: 880.45 | G21: 879.95 | H21: 874.3 | I21: 10865 | J21: 9557704.55 | K21: 2020-04-08 | L21: 923 | M21: INE793A01012
A22: ACE | B22: EQ | C22: 32.75 | D22: 35.2 | E22: 32.55 | F22: 33.25 | G22: 33.35 | H22: 32.95 | I22: 244708 | J22: 8296578.4 | K22: 2020-04-08 | L22: 2925 | M22: INE731H01025
A23: ADANIENT | B23: EQ | C23: 136.85 | D23: 147.15 | E23: 134.9 | F23: 138.1 | G23: 137.5 | H23: 138.15 | I23: 3237290 | J23: 456492273.1 | K23: 2020-04-08 | L23: 23696 | M23: INE423A01024
A24: ADANIGAS | B24: EQ | C24: 93.9 | D24: 96.35 | E24: 90.5 | F24: 90.8 | G24: 90.65 | H24: 94 | I24: 1888606 | J24: 176837924.4 | K24: 2020-04-08 | L24: 14517 | M24: INE399L01023
A25: ADANIGREEN | B25: EQ | C25: 166.85 | D25: 166.85 | E25: 162 | F25: 166.45 | G25: 166.85 | H25: 158.95 | I25: 702014 | J25: 116248737 | K25: 2020-04-08 | L25: 10187 | M25: INE364U01010
A26: ADANIPORTS | B26: EQ | C26: 248 | D26: 255.85 | E26: 242.75 | F26: 250.85 | G26: 249.7 | H26: 248.1 | I26: 6897883 | J26: 1724830525 | K26: 2020-04-08 | L26: 81499 | M26: INE742F01042
A27: ADANIPOWER | B27: EQ | C27: 28.65 | D27: 31.15 | E27: 27.5 | F27: 28.95 | G27: 28.85 | H27: 28.8 | I27: 12308064 | J27: 361987996.9 | K27: 2020-04-08 | L27: 23153 | M27: INE814H01011
A28: ADANITRANS | B28: EQ | C28: 196.65 | D28: 202 | E28: 190 | F28: 193.65 | G28: 193.5 | H28: 198.3 | I28: 306320 | J28: 59783940.3 | K28: 2020-04-08 | L28: 4236 | M28: INE931S01010
A29: ADFFOODS | B29: EQ | C29: 187.85 | D29: 192.25 | E29: 184 | F29: 187.7 | G29: 187.3 | H29: 183.1 | I29: 22107 | J29: 4185556.05 | K29: 2020-04-08 | L29: 773 | M29: INE982B01019
A30: ADHUNIKIND | B30: EQ | C30: 13.3 | D30: 13.3 | E30: 13.3 | F30: 13.3 | G30: 13.3 | H30: 12.7 | I30: 5518 | J30: 73389.4 | K30: 2020-04-08 | L30: 21 | M30: INE452L01012
A31: ADLABS | B31: EQ | C31: 2.75 | D31: 2.85 | E31: 2.75 | F31: 2.85 | G31: 2.85 | H31: 2.75 | I31: 19360 | J31: 54965.35 | K31: 2020-04-08 | L31: 72 | M31: INE172N01012
A32: ADORWELD | B32: EQ | C32: 195.7 | D32: 201.9 | E32: 193.95 | F32: 195.1 | G32: 194.45 | H32: 196.75 | I32: 1438 | J32: 283768.75 | K32: 2020-04-08 | L32: 94 | M32: INE045A01017
A33: ADROITINFO | B33: EQ | C33: 5.5 | D33: 5.7 | E33: 5.45 | F33: 5.7 | G33: 5.7 | H33: 5.7 | I33: 691 | J33: 3857 | K33: 2020-04-08 | L33: 25 | M33: INE737B01033
A34: ADSL | B34: EQ | C34: 13.05 | D34: 13.2 | E34: 12.4 | F34: 12.5 | G34: 12.45 | H34: 12.7 | I34: 16203 | J34: 205559.25 | K34: 2020-04-08 | L34: 143 | M34: INE102I01027
A35: ADVANIHOTR | B35: EQ | C35: 30.1 | D35: 33 | E35: 30.1 | F35: 31.8 | G35: 31.5 | H35: 30.65 | I35: 5340 | J35: 169948.95 | K35: 2020-04-08 | L35: 193 | M35: INE199C01026
A36: ADVENZYMES | B36: EQ | C36: 140.2 | D36: 146.55 | E36: 137.95 | F36: 139.2 | G36: 139.75 | H36: 136.55 | I36: 77441 | J36: 11046136.15 | K36: 2020-04-08 | L36: 1990 | M36: INE837H01020
A37: AEGISCHEM | B37: EQ | C37: 150 | D37: 158.5 | E37: 147.1 | F37: 156.35 | G37: 156.05 | H37: 144.1 | I37: 175470 | J37: 27041093.9 | K37: 2020-04-08 | L37: 4268 | M37: INE208C01025
A38: AFFLE | B38: BE | C38: 1050 | D38: 1053.45 | E38: 1030 | F38: 1053.45 | G38: 1053.45 | H38: 1003.3 | I38: 8191 | J38: 8619737.5 | K38: 2020-04-08 | L38: 470 | M38: INE00WC01019
A39: AGARIND | B39: EQ | C39: 49.8 | D39: 52.85 | E39: 49.05 | F39: 52.25 | G39: 52.5 | H39: 49.95 | I39: 7826 | J39: 404450.25 | K39: 2020-04-08 | L39: 207 | M39: INE204E01012
A40: AGCNET | B40: BE | C40: 224.35 | D40: 235.55 | E40: 213.25 | F40: 234.7 | G40: 235.55 | H40: 224.35 | I40: 2524 | J40: 573063 | K40: 2020-04-08 | L40: 70 | M40: INE676A01019
A41: AGRITECH | B41: EQ | C41: 23.95 | D41: 23.95 | E41: 23.95 | F41: 23.95 | G41: 23.95 | H41: 22.85 | I41: 504 | J41: 12070.8 | K41: 2020-04-08 | L41: 18 | M41: INE449G01018
A42: AGROPHOS | B42: EQ | C42: 5.7 | D42: 5.7 | E42: 5.2 | F42: 5.7 | G42: 5.7 | H42: 5.45 | I42: 40596 | J42: 227201.55 | K42: 2020-04-08 | L42: 340 | M42: INE740V01019
A43: AHLEAST | B43: EQ | C43: 133.15 | D43: 141.85 | E43: 128.15 | F43: 131.55 | G43: 128.35 | H43: 131.5 | I43: 3303 | J43: 439718.1 | K43: 2020-04-08 | L43: 350 | M43: INE926K01017
A44: AHLUCONT | B44: EQ | C44: 145.95 | D44: 148 | E44: 136 | F44: 146.3 | G44: 148 | H44: 144.1 | I44: 153910 | J44: 21077811.2 | K44: 2020-04-08 | L44: 995 | M44: INE758C01029
A45: AHLWEST | B45: EQ | C45: 289.9 | D45: 289.9 | E45: 270.95 | F45: 275 | G45: 275 | H45: 277 | I45: 238 | J45: 67030 | K45: 2020-04-08 | L45: 91 | M45: INE915K01010
A46: AIAENG | B46: EQ | C46: 1259.45 | D46: 1291 | E46: 1229 | F46: 1255.85 | G46: 1268 | H46: 1249.9 | I46: 73842 | J46: 92756824.05 | K46: 2020-04-08 | L46: 10503 | M46: INE212H01026
A47: AIONJSW | B47: EQ | C47: 10.9 | D47: 11.1 | E47: 10.2 | F47: 11.1 | G47: 11.1 | H47: 10.6 | I47: 90347 | J47: 996144.95 | K47: 2020-04-08 | L47: 180 | M47: INE743C01021
A48: AIRAN | B48: EQ | C48: 9.8 | D48: 10.3 | E48: 9.75 | F48: 9.8 | G48: 9.75 | H48: 9.85 | I48: 1826 | J48: 18127.1 | K48: 2020-04-08 | L48: 25 | M48: INE645W01026
A49: AJANTPHARM | B49: EQ | C49: 1325.75 | D49: 1450 | E49: 1325 | F49: 1367.5 | G49: 1363 | H49: 1340.2 | I49: 166582 | J49: 233126032.5 | K49: 2020-04-08 | L49: 8748 | M49: INE031B01049
A50: AJMERA | B50: EQ | C50: 64.95 | D50: 70.5 | E50: 64.6 | F50: 68.4 | G50: 69.9 | H50: 64.65 | I50: 31766 | J50: 2167947.5 | K50: 2020-04-08 | L50: 909 | M50: INE298G01027
A51: AKASH | B51: BE | C51: 90 | D51: 90 | E51: 90 | F51: 90 | G51: 90 | H51: 90.95 | I51: 500 | J51: 45000 | K51: 2020-04-08 | L51: 1 | M51: INE737W01013
A52: AKSHARCHEM | B52: EQ | C52: 174.75 | D52: 177.6 | E52: 165.3 | F52: 169.7 | G52: 167.15 | H52: 165.25 | I52: 3130 | J52: 531878.25 | K52: 2020-04-08 | L52: 293 | M52: INE542B01011
A53: AKSHOPTFBR | B53: EQ | C53: 3.6 | D53: 3.6 | E53: 3.6 | F53: 3.6 | G53: 3.6 | H53: 3.45 | I53: 27750 | J53: 99900 | K53: 2020-04-08 | L53: 45 | M53: INE523B01011
A54: AKZOINDIA | B54: EQ | C54: 2084.95 | D54: 2133 | E54: 2030 | F54: 2047.9 | G54: 2040 | H54: 2086.75 | I54: 12835 | J54: 26789836.95 | K54: 2020-04-08 | L54: 2242 | M54: INE133A01011
A55: ALANKIT | B55: EQ | C55: 12.9 | D55: 12.9 | E55: 12.9 | F55: 12.9 | G55: 12.9 | H55: 12.3 | I55: 14247 | J55: 183786.3 | K55: 2020-04-08 | L55: 75 | M55: INE914E01040
A56: ALBERTDAVD | B56: EQ | C56: 338.8 | D56: 364.75 | E56: 338.8 | F56: 353.15 | G56: 352 | H56: 341.15 | I56: 24334 | J56: 8579416.55 | K56: 2020-04-08 | L56: 1220 | M56: INE155C01010
A57: ALCHEM | B57: BE | C57: 1.4 | D57: 1.4 | E57: 1.4 | F57: 1.4 | G57: 1.4 | H57: 1.35 | I57: 8608 | J57: 12051.2 | K57: 2020-04-08 | L57: 18 | M57: INE964B01033
A58: ALEMBICLTD | B58: EQ | C58: 43.7 | D58: 48.05 | E58: 39.7 | F58: 45.05 | G58: 45.5 | H58: 42.15 | I58: 695128 | J58: 31779132.75 | K58: 2020-04-08 | L58: 6991 | M58: INE426A01027
A59: ALICON | B59: EQ | C59: 195.95 | D59: 196 | E59: 181.05 | F59: 184.75 | G59: 184 | H59: 189.25 | I59: 3909 | J59: 722322.5 | K59: 2020-04-08 | L59: 123 | M59: INE062D01024
A60: ALKALI | B60: EQ | C60: 29.95 | D60: 31.75 | E60: 29.65 | F60: 31.75 | G60: 31.75 | H60: 28.9 | I60: 9346 | J60: 289594.95 | K60: 2020-04-08 | L60: 349 | M60: INE773I01017
A61: ALKEM | B61: EQ | C61: 2360 | D61: 2736.5 | E61: 2326.2 | F61: 2671.15 | G61: 2639 | H61: 2324.05 | I61: 371259 | J61: 967330461.6 | K61: 2020-04-08 | L61: 44106 | M61: INE540L01014
A62: ALKYLAMINE | B62: EQ | C62: 1236.6 | D62: 1398 | E62: 1222.2 | F62: 1334.05 | G62: 1334 | H62: 1232.45 | I62: 41501 | J62: 55061848.25 | K62: 2020-04-08 | L62: 3832 | M62: INE150B01021
A63: ALLCARGO | B63: EQ | C63: 63.05 | D63: 65.85 | E63: 63 | F63: 65.7 | G63: 65.85 | H63: 59.9 | I63: 300794 | J63: 19569467.05 | K63: 2020-04-08 | L63: 3098 | M63: INE418H01029
A64: ALLSEC | B64: EQ | C64: 131.7 | D64: 131.9 | E64: 129.35 | F64: 131.9 | G64: 131.9 | H64: 125.65 | I64: 1335 | J64: 175836.2 | K64: 2020-04-08 | L64: 37 | M64: INE835G01018
A65: ALOKINDS | B65: EQ | C65: 4.7 | D65: 4.7 | E65: 4.7 | F65: 4.7 | G65: 4.7 | H65: 4.5 | I65: 1698707 | J65: 7983922.9 | K65: 2020-04-08 | L65: 397 | M65: INE270A01029
A66: ALPA | B66: EQ | C66: 18.55 | D66: 20.15 | E66: 17.8 | F66: 20.15 | G66: 20.15 | H66: 16.8 | I66: 131233 | J66: 2593665.9 | K66: 2020-04-08 | L66: 858 | M66: INE385I01010
A67: ALPHAGEO | B67: EQ | C67: 126 | D67: 137.5 | E67: 126 | F67: 134.45 | G67: 133.3 | H67: 129.7 | I67: 22258 | J67: 2986986.5 | K67: 2020-04-08 | L67: 783 | M67: INE137C01018
A68: ALPSINDUS | B68: EQ | C68: 0.65 | D68: 0.75 | E68: 0.65 | F68: 0.75 | G68: 0.7 | H68: 0.7 | I68: 25369 | J68: 18108.8 | K68: 2020-04-08 | L68: 33 | M68: INE093B01015
A69: AMARAJABAT | B69: EQ | C69: 501.1 | D69: 513.65 | E69: 488.45 | F69: 502.05 | G69: 504.9 | H69: 501.1 | I69: 755312 | J69: 378881689.9 | K69: 2020-04-08 | L69: 18162 | M69: INE885A01032
A70: AMBER | B70: EQ | C70: 1189.9 | D70: 1199 | E70: 1072 | F70: 1108.05 | G70: 1109.25 | H70: 1189.9 | I70: 93512 | J70: 105805912.2 | K70: 2020-04-08 | L70: 14252 | M70: INE371P01015
A71: AMBIKCO | B71: EQ | C71: 539.25 | D71: 559 | E71: 531.05 | F71: 545.2 | G71: 536.4 | H71: 537.25 | I71: 3988 | J71: 2168349.4 | K71: 2020-04-08 | L71: 406 | M71: INE540G01014
A72: AMBUJACEM | B72: EQ | C72: 158.5 | D72: 159.5 | E72: 148.2 | F72: 149.7 | G72: 149.55 | H72: 159 | I72: 10421438 | J72: 1597618498 | K72: 2020-04-08 | L72: 84074 | M72: INE079A01024
A73: AMDIND | B73: EQ | C73: 9.9 | D73: 10.5 | E73: 9.5 | F73: 9.8 | G73: 9.55 | H73: 10 | I73: 17757 | J73: 177659.15 | K73: 2020-04-08 | L73: 707 | M73: INE005I01014
A74: AMJLAND | B74: EQ | C74: 14.3 | D74: 14.95 | E74: 13.7 | F74: 14 | G74: 14 | H74: 14.25 | I74: 12523 | J74: 176065.3 | K74: 2020-04-08 | L74: 106 | M74: INE606A01024
A75: AMRUTANJAN | B75: EQ | C75: 326 | D75: 352 | E75: 320.1 | F75: 345.45 | G75: 344.3 | H75: 324 | I75: 278725 | J75: 95586275.35 | K75: 2020-04-08 | L75: 9075 | M75: INE098F01031
A76: ANANTRAJ | B76: EQ | C76: 19.55 | D76: 20.15 | E76: 18.6 | F76: 18.75 | G76: 18.8 | H76: 19.55 | I76: 184694 | J76: 3509270.8 | K76: 2020-04-08 | L76: 1012 | M76: INE242C01024
A77: ANDHRACEMT | B77: EQ | C77: 1.8 | D77: 1.9 | E77: 1.7 | F77: 1.85 | G77: 1.9 | H77: 1.75 | I77: 105618 | J77: 196578.05 | K77: 2020-04-08 | L77: 227 | M77: INE666E01012
A78: ANDHRAPAP | B78: EQ | C78: 148.55 | D78: 148.55 | E78: 147 | F78: 148.55 | G78: 148.55 | H78: 141.5 | I78: 2622 | J78: 389210.05 | K78: 2020-04-08 | L78: 70 | M78: INE435A01028
A79: ANDHRSUGAR | B79: EQ | C79: 206.95 | D79: 212 | E79: 195 | F79: 206.05 | G79: 205.85 | H79: 203.55 | I79: 35494 | J79: 7286675.25 | K79: 2020-04-08 | L79: 1328 | M79: INE715B01013
A80: ANIKINDS | B80: EQ | C80: 7.25 | D80: 7.25 | E80: 6.65 | F80: 6.8 | G80: 6.8 | H80: 6.95 | I80: 4994 | J80: 34701.65 | K80: 2020-04-08 | L80: 35 | M80: INE087B01017
A81: ANKITMETAL | B81: EQ | C81: 0.4 | D81: 0.45 | E81: 0.35 | F81: 0.45 | G81: 0.45 | H81: 0.4 | I81: 64810 | J81: 27213.05 | K81: 2020-04-08 | L81: 29 | M81: INE106I01010
A82: ANSALAPI | B82: EQ | C82: 3.65 | D82: 3.8 | E82: 3.65 | F82: 3.8 | G82: 3.8 | H82: 3.65 | I82: 3974 | J82: 15023.75 | K82: 2020-04-08 | L82: 28 | M82: INE436A01026
A83: ANSALHSG | B83: EQ | C83: 3 | D83: 3 | E83: 2.8 | F83: 2.9 | G83: 2.9 | H83: 2.9 | I83: 31510 | J83: 91846.6 | K83: 2020-04-08 | L83: 64 | M83: INE880B01015
A84: ANUP | B84: EQ | C84: 304.75 | D84: 323.7 | E84: 303.1 | F84: 313.2 | G84: 313.05 | H84: 312.75 | I84: 11786 | J84: 3732090.6 | K84: 2020-04-08 | L84: 460 | M84: INE294Z01018
A85: APARINDS | B85: EQ | C85: 296.95 | D85: 300.35 | E85: 290.6 | F85: 295.85 | G85: 295.5 | H85: 296.05 | I85: 6051 | J85: 1806443.45 | K85: 2020-04-08 | L85: 427 | M85: INE372A01015
A86: APCL | B86: EQ | C86: 102.4 | D86: 102.4 | E86: 95.2 | F86: 97.35 | G86: 97 | H86: 98.5 | I86: 3739 | J86: 362867.6 | K86: 2020-04-08 | L86: 79 | M86: INE071F01012
A87: APCOTEXIND | B87: EQ | C87: 87.55 | D87: 94.85 | E87: 86 | F87: 87.5 | G87: 86.1 | H87: 87.45 | I87: 13115 | J87: 1175575.25 | K87: 2020-04-08 | L87: 323 | M87: INE116A01032
A88: APEX | B88: EQ | C88: 190 | D88: 201.65 | E88: 185.1 | F88: 201.65 | G88: 201.65 | H88: 183.35 | I88: 141806 | J88: 27768799.35 | K88: 2020-04-08 | L88: 3293 | M88: INE346W01013
A89: APLAPOLLO | B89: EQ | C89: 1245 | D89: 1274 | E89: 1220 | F89: 1259.5 | G89: 1258 | H89: 1231.75 | I89: 21152 | J89: 26442272.1 | K89: 2020-04-08 | L89: 3032 | M89: INE702C01019
A90: APLLTD | B90: EQ | C90: 630 | D90: 702.65 | E90: 615.5 | F90: 640.85 | G90: 626 | H90: 610.2 | I90: 540272 | J90: 353935242.1 | K90: 2020-04-08 | L90: 30323 | M90: INE901L01018
A91: APOLLO | B91: EQ | C91: 45.5 | D91: 56 | E91: 45.25 | F91: 54.3 | G91: 53.55 | H91: 46.7 | I91: 68951 | J91: 3631629.4 | K91: 2020-04-08 | L91: 1694 | M91: INE713T01010
A92: APOLLOHOSP | B92: EQ | C92: 1225.9 | D92: 1338.4 | E92: 1211 | F92: 1263.95 | G92: 1261 | H92: 1225.95 | I92: 2070270 | J92: 2654141027 | K92: 2020-04-08 | L92: 156926 | M92: INE437A01024
A93: APOLLOPIPE | B93: EQ | C93: 279.5 | D93: 304 | E93: 262.95 | F93: 281.3 | G93: 281 | H93: 280.1 | I93: 12940 | J93: 3607793.25 | K93: 2020-04-08 | L93: 543 | M93: INE126J01016
A94: APOLLOTYRE | B94: EQ | C94: 83.5 | D94: 87.15 | E94: 82 | F94: 83.4 | G94: 83.15 | H94: 83.5 | I94: 2950752 | J94: 248872037.1 | K94: 2020-04-08 | L94: 19408 | M94: INE438A01022
A95: APOLSINHOT | B95: EQ | C95: 460.35 | D95: 460.4 | E95: 421.1 | F95: 439.8 | G95: 436 | H95: 438.6 | I95: 694 | J95: 306874.65 | K95: 2020-04-08 | L95: 84 | M95: INE451F01024
A96: APTECHT | B96: EQ | C96: 85.3 | D96: 87.7 | E96: 83.55 | F96: 84.6 | G96: 84.3 | H96: 85.3 | I96: 106721 | J96: 9133416.7 | K96: 2020-04-08 | L96: 2385 | M96: INE266F01018
A97: ARCHIDPLY | B97: EQ | C97: 16.55 | D97: 17 | E97: 16.45 | F97: 16.85 | G97: 16.95 | H97: 16.75 | I97: 4083 | J97: 68300.2 | K97: 2020-04-08 | L97: 63 | M97: INE877I01016
A98: ARCHIES | B98: EQ | C98: 9.4 | D98: 9.5 | E98: 9 | F98: 9.05 | G98: 9.15 | H98: 9.45 | I98: 24343 | J98: 224667.6 | K98: 2020-04-08 | L98: 150 | M98: INE731A01020
A99: ARCOTECH | B99: EQ | C99: 0.9 | D99: 0.95 | E99: 0.85 | F99: 0.9 | G99: 0.9 | H99: 0.9 | I99: 51482 | J99: 47500.05 | K99: 2020-04-08 | L99: 77 | M99: INE574I01035
A100: ARENTERP | B100: EQ | C100: 12.65 | D100: 12.65 | E100: 12.05 | F100: 12.05 | G100: 12.05 | H100: 12.65 | I100: 63 | J100: 765.15 | K100: 2020-04-08 | L100: 4 | M100: INE610C01014
A101: ARIES | B101: EQ | C101: 44.4 | D101: 47.6 | E101: 42.65 | F101: 43.6 | G101: 44 | H101: 44.4 | I101: 50875 | J101: 2250478.25 | K101: 2020-04-08 | L101: 1080 | M101: INE298I01015
A102: ARIHANT | B102: EQ | C102: 12.05 | D102: 12.55 | E102: 11.6 | F102: 12.15 | G102: 12.5 | H102: 12.05 | I102: 964 | J102: 11418.15 | K102: 2020-04-08 | L102: 27 | M102: INE413D01011
A103: ARIHANTSUP | B103: EQ | C103: 21.4 | D103: 21.45 | E103: 19.45 | F103: 19.5 | G103: 21 | H103: 20.45 | I103: 4362 | J103: 85414.05 | K103: 2020-04-08 | L103: 80 | M103: INE643K01018
A104: ARMANFIN | B104: EQ | C104: 340 | D104: 373.2 | E104: 337.7 | F104: 373.05 | G104: 373.2 | H104: 355.45 | I104: 50867 | J104: 18465582.65 | K104: 2020-04-08 | L104: 911 | M104: INE109C01017
A105: AROGRANITE | B105: EQ | C105: 21.95 | D105: 24.5 | E105: 20.85 | F105: 24.2 | G105: 24.5 | H105: 22.35 | I105: 26052 | J105: 602565.3 | K105: 2020-04-08 | L105: 183 | M105: INE210C01013
A106: ARROWGREEN | B106: BE | C106: 33.55 | D106: 35 | E106: 33.45 | F106: 33.45 | G106: 33.45 | H106: 33.85 | I106: 5735 | J106: 195198.5 | K106: 2020-04-08 | L106: 32 | M106: INE570D01018
A107: ARSHIYA | B107: EQ | C107: 7.1 | D107: 7.6 | E107: 7.1 | F107: 7.6 | G107: 7.6 | H107: 7.25 | I107: 23178 | J107: 175819.45 | K107: 2020-04-08 | L107: 63 | M107: INE968D01022
A108: ARSSINFRA | B108: EQ | C108: 11.25 | D108: 12.3 | E108: 10.9 | F108: 11.8 | G108: 11.85 | H108: 11.15 | I108: 16388 | J108: 189874.85 | K108: 2020-04-08 | L108: 107 | M108: INE267I01010
A109: ARTEMISMED | B109: EQ | C109: 140 | D109: 147 | E109: 136.3 | F109: 138 | G109: 137 | H109: 139.15 | I109: 1729 | J109: 245138.4 | K109: 2020-04-08 | L109: 31 | M109: INE025R01013
A110: ARVIND | B110: EQ | C110: 23.5 | D110: 24.4 | E110: 22.45 | F110: 23.75 | G110: 23.75 | H110: 22.2 | I110: 2137547 | J110: 50521243.45 | K110: 2020-04-08 | L110: 7057 | M110: INE034A01011
A111: ARVINDFASN | B111: EQ | C111: 139.8 | D111: 141.9 | E111: 132.2 | F111: 133.8 | G111: 134.75 | H111: 139.85 | I111: 46445 | J111: 6387304.5 | K111: 2020-04-08 | L111: 1243 | M111: INE955V01021
A112: ARVSMART | B112: EQ | C112: 64.05 | D112: 67 | E112: 64 | F112: 65.4 | G112: 65.5 | H112: 65 | I112: 10000 | J112: 656036.65 | K112: 2020-04-08 | L112: 320 | M112: INE034S01021
A113: ASAHIINDIA | B113: EQ | C113: 152 | D113: 158 | E113: 147.05 | F113: 155.5 | G113: 152.35 | H113: 153.2 | I113: 5605 | J113: 858978.65 | K113: 2020-04-08 | L113: 218 | M113: INE439A01020
A114: ASAHISONG | B114: EQ | C114: 80.8 | D114: 88.95 | E114: 80.05 | F114: 85.25 | G114: 86 | H114: 80.9 | I114: 8055 | J114: 692533.2 | K114: 2020-04-08 | L114: 314 | M114: INE228I01012
A115: ASAL | B115: EQ | C115: 14.8 | D115: 14.9 | E115: 14.5 | F115: 14.5 | G115: 14.5 | H115: 14.25 | I115: 8037 | J115: 118819.3 | K115: 2020-04-08 | L115: 36 | M115: INE900C01027
A116: ASALCBR | B116: EQ | C116: 164.9 | D116: 175 | E116: 158 | F116: 165.7 | G116: 165 | H116: 162.9 | I116: 31033 | J116: 5116102.05 | K116: 2020-04-08 | L116: 970 | M116: INE073G01016
A117: ASHAPURMIN | B117: EQ | C117: 22.1 | D117: 22.1 | E117: 22.05 | F117: 22.1 | G117: 22.1 | H117: 21.05 | I117: 8770 | J117: 193792 | K117: 2020-04-08 | L117: 43 | M117: INE348A01023
A118: ASHIANA | B118: EQ | C118: 52.9 | D118: 52.9 | E118: 49.1 | F118: 49.95 | G118: 50 | H118: 50 | I118: 69042 | J118: 3480534.3 | K118: 2020-04-08 | L118: 621 | M118: INE365D01021
A119: ASHIMASYN | B119: EQ | C119: 3.9 | D119: 3.9 | E119: 3.9 | F119: 3.9 | G119: 3.9 | H119: 3.55 | I119: 28914 | J119: 112764.6 | K119: 2020-04-08 | L119: 46 | M119: INE440A01010
A120: ASHOKA | B120: EQ | C120: 38.35 | D120: 42.7 | E120: 37.8 | F120: 42.7 | G120: 42.7 | H120: 38.85 | I120: 1577514 | J120: 65134101.3 | K120: 2020-04-08 | L120: 8475 | M120: INE442H01029
A121: ASHOKLEY | B121: EQ | C121: 39.85 | D121: 47.8 | E121: 38.75 | F121: 43.85 | G121: 43.6 | H121: 39.85 | I121: 76817768 | J121: 3355417806 | K121: 2020-04-08 | L121: 169889 | M121: INE208A01029
A122: ASIANHOTNR | B122: EQ | C122: 70 | D122: 71.8 | E122: 66 | F122: 71.55 | G122: 71.5 | H122: 65.4 | I122: 4982 | J122: 349215.55 | K122: 2020-04-08 | L122: 198 | M122: INE363A01022
A123: ASIANPAINT | B123: EQ | C123: 1623.8 | D123: 1687.8 | E123: 1600 | F123: 1608.95 | G123: 1608 | H123: 1623.8 | I123: 2382216 | J123: 3911658954 | K123: 2020-04-08 | L123: 101146 | M123: INE021A01026
A124: ASIANTILES | B124: EQ | C124: 156 | D124: 162.9 | E124: 155 | F124: 157.6 | G124: 156.5 | H124: 157.65 | I124: 19917 | J124: 3151924.4 | K124: 2020-04-08 | L124: 431 | M124: INE022I01019
A125: ASPINWALL | B125: EQ | C125: 93 | D125: 98.7 | E125: 83.55 | F125: 93 | G125: 93 | H125: 90 | I125: 413 | J125: 38837.15 | K125: 2020-04-08 | L125: 20 | M125: INE991I01015
A126: ASTEC | B126: EQ | C126: 450.65 | D126: 465.05 | E126: 440 | F126: 460.05 | G126: 460.3 | H126: 443.9 | I126: 5283 | J126: 2392645.5 | K126: 2020-04-08 | L126: 494 | M126: INE563J01010
A127: ASTERDM | B127: EQ | C127: 96 | D127: 103.5 | E127: 93.8 | F127: 99.25 | G127: 99 | H127: 94.55 | I127: 996205 | J127: 98978623.7 | K127: 2020-04-08 | L127: 4570 | M127: INE914M01019
A128: ASTRAL | B128: EQ | C128: 962 | D128: 986 | E128: 952 | F128: 955.45 | G128: 954 | H128: 973.85 | I128: 59212 | J128: 57381672.65 | K128: 2020-04-08 | L128: 7623 | M128: INE006I01046
A129: ASTRAMICRO | B129: EQ | C129: 56.9 | D129: 62.55 | E129: 55.85 | F129: 61.7 | G129: 62.55 | H129: 56.9 | I129: 253097 | J129: 15146656.55 | K129: 2020-04-08 | L129: 1961 | M129: INE386C01029
A130: ASTRAZEN | B130: EQ | C130: 2700 | D130: 2830 | E130: 2544 | F130: 2561.6 | G130: 2549 | H130: 2693.65 | I130: 38510 | J130: 104113109 | K130: 2020-04-08 | L130: 6647 | M130: INE203A01020
A131: ASTRON | B131: EQ | C131: 26.15 | D131: 29.9 | E131: 25.3 | F131: 27.5 | G131: 27.8 | H131: 27.65 | I131: 61618 | J131: 1693449.45 | K131: 2020-04-08 | L131: 1743 | M131: INE646X01014
A132: ATFL | B132: EQ | C132: 479.65 | D132: 499 | E132: 475 | F132: 481.55 | G132: 475 | H132: 479.65 | I132: 6104 | J132: 2975754.9 | K132: 2020-04-08 | L132: 411 | M132: INE209A01019
A133: ATLANTA | B133: EQ | C133: 3 | D133: 3.15 | E133: 3 | F133: 3.15 | G133: 3.15 | H133: 3 | I133: 8624 | J133: 26936.35 | K133: 2020-04-08 | L133: 28 | M133: INE285H01022
A134: ATLASCYCLE | B134: BE | C134: 30 | D134: 31.5 | E134: 29.5 | F134: 30.7 | G134: 30.7 | H134: 30 | I134: 2000 | J134: 60118.65 | K134: 2020-04-08 | L134: 42 | M134: INE446A01025
A135: ATNINTER | B135: BE | C135: 0.1 | D135: 0.1 | E135: 0.1 | F135: 0.1 | G135: 0.1 | H135: 0.1 | I135: 12716 | J135: 1271.6 | K135: 2020-04-08 | L135: 5 | M135: INE803A01027
A136: ATUL | B136: EQ | C136: 3930 | D136: 4005 | E136: 3908.35 | F136: 3951.85 | G136: 3954.95 | H136: 3927.1 | I136: 76768 | J136: 304824820.4 | K136: 2020-04-08 | L136: 11635 | M136: INE100A01010
A137: ATULAUTO | B137: EQ | C137: 151.35 | D137: 154.05 | E137: 146.8 | F137: 153.45 | G137: 153.95 | H137: 146.75 | I137: 13699 | J137: 2093863.3 | K137: 2020-04-08 | L137: 810 | M137: INE951D01028
A138: AUBANK | B138: EQ | C138: 461.2 | D138: 490 | E138: 457 | F138: 480.3 | G138: 473 | H138: 478.4 | I138: 1791057 | J138: 837589012.6 | K138: 2020-04-08 | L138: 59410 | M138: INE949L01017
A139: AURIONPRO | B139: EQ | C139: 41.75 | D139: 43.7 | E139: 40 | F139: 42.9 | G139: 42.9 | H139: 40.95 | I139: 8828 | J139: 376649.05 | K139: 2020-04-08 | L139: 213 | M139: INE132H01018
A140: AUROPHARMA | B140: EQ | C140: 432.5 | D140: 476.3 | E140: 426.3 | F140: 438.15 | G140: 438.9 | H140: 445.7 | I140: 13186213 | J140: 5925576015 | K140: 2020-04-08 | L140: 205238 | M140: INE406A01037
A141: AUSOMENT | B141: EQ | C141: 26.1 | D141: 26.1 | E141: 26.1 | F141: 26.1 | G141: 26.1 | H141: 25 | I141: 100 | J141: 2610 | K141: 2020-04-08 | L141: 1 | M141: INE218C01016
A142: AUTOAXLES | B142: EQ | C142: 413 | D142: 423.5 | E142: 398.05 | F142: 413.45 | G142: 416 | H142: 399.3 | I142: 5448 | J142: 2244823.45 | K142: 2020-04-08 | L142: 638 | M142: INE449A01011
A143: AUTOIND | B143: EQ | C143: 11.3 | D143: 11.35 | E143: 11.1 | F143: 11.35 | G143: 11.35 | H143: 10.85 | I143: 9358 | J143: 105383.05 | K143: 2020-04-08 | L143: 68 | M143: INE718H01014
A144: AUTOLITIND | B144: EQ | C144: 13.2 | D144: 14.4 | E144: 13.2 | F144: 13.8 | G144: 13.9 | H144: 13.75 | I144: 4699 | J144: 65525.8 | K144: 2020-04-08 | L144: 68 | M144: INE448A01013
A145: AVADHSUGAR | B145: EQ | C145: 143.55 | D145: 143.55 | E145: 143.55 | F145: 143.55 | G145: 143.55 | H145: 136.75 | I145: 13174 | J145: 1891127.7 | K145: 2020-04-08 | L145: 157 | M145: INE349W01017
A146: AVANTIFEED | B146: EQ | C146: 311 | D146: 341.55 | E146: 310.5 | F146: 341.35 | G146: 341.55 | H146: 310.5 | I146: 748404 | J146: 246839085.1 | K146: 2020-04-08 | L146: 23272 | M146: INE871C01038
A147: AVTNPL | B147: EQ | C147: 25.45 | D147: 27.8 | E147: 24.25 | F147: 27.25 | G147: 27 | H147: 25.05 | I147: 213540 | J147: 5643644.4 | K147: 2020-04-08 | L147: 1601 | M147: INE488D01021
A148: AXISBANK | B148: EQ | C148: 383.75 | D148: 427.7 | E148: 373.5 | F148: 391.35 | G148: 391.4 | H148: 388.85 | I148: 64930772 | J148: 2.575974593e+10 | K148: 2020-04-08 | L148: 769506 | M148: INE238A01034
A149: AXISCADES | B149: EQ | C149: 30.9 | D149: 31.5 | E149: 28.65 | F149: 31.4 | G149: 31.5 | H149: 30 | I149: 39670 | J149: 1232336.75 | K149: 2020-04-08 | L149: 621 | M149: INE555B01013
A150: AXISGOLD | B150: EQ | C150: 3969.9 | D150: 3989 | E150: 3925 | F150: 3973.3 | G150: 3983 | H150: 3919.55 | I150: 701 | J150: 2769851.6 | K150: 2020-04-08 | L150: 206 | M150: INF846K01347
A151: AXISNIFTY | B151: EQ | C151: 1000.01 | D151: 1000.01 | E151: 1000.01 | F151: 1000.01 | G151: 1000.01 | H151: 1007 | I151: 2 | J151: 2000.02 | K151: 2020-04-08 | L151: 1 | M151: INF846K01ZL0
A152: AYMSYNTEX | B152: EQ | C152: 15.5 | D152: 16.8 | E152: 15.5 | F152: 16.5 | G152: 16.5 | H152: 16.1 | I152: 2637 | J152: 43548.55 | K152: 2020-04-08 | L152: 26 | M152: INE193B01039
A153: BAFNAPH | B153: EQ | C153: 16.05 | D153: 16.05 | E153: 16.05 | F153: 16.05 | G153: 16.05 | H153: 15.3 | I153: 272 | J153: 4365.6 | K153: 2020-04-08 | L153: 8 | M153: INE878I01022
A154: BAGFILMS | B154: BE | C154: 1.75 | D154: 1.8 | E154: 1.75 | F154: 1.8 | G154: 1.8 | H154: 1.75 | I154: 3861 | J154: 6912.3 | K154: 2020-04-08 | L154: 20 | M154: INE116D01028
A155: BAJAJ-AUTO | B155: EQ | C155: 2180 | D155: 2383.45 | E155: 2168.55 | F155: 2241.7 | G155: 2260 | H155: 2280.05 | I155: 840875 | J155: 1933266167 | K155: 2020-04-08 | L155: 59866 | M155: INE917I01010
A156: BAJAJCON | B156: EQ | C156: 136 | D156: 148.65 | E156: 135.1 | F156: 137.95 | G156: 138 | H156: 138.15 | I156: 1031633 | J156: 145711259.1 | K156: 2020-04-08 | L156: 26102 | M156: INE933K01021
A157: BAJAJELEC | B157: EQ | C157: 277.3 | D157: 294.5 | E157: 277.3 | F157: 287.8 | G157: 289 | H157: 277.3 | I157: 58251 | J157: 16797537.55 | K157: 2020-04-08 | L157: 3821 | M157: INE193E01025
A158: BAJAJFINSV | B158: EQ | C158: 4575 | D158: 4950 | E158: 4537.8 | F158: 4608.5 | G158: 4604 | H158: 4724.9 | I158: 1113057 | J158: 5259493342 | K158: 2020-04-08 | L158: 158158 | M158: INE918I01018
A159: BAJAJHIND | B159: EQ | C159: 3.05 | D159: 3.05 | E159: 3.05 | F159: 3.05 | G159: 3.05 | H159: 2.95 | I159: 80900 | J159: 246745 | K159: 2020-04-08 | L159: 110 | M159: INE306A01021
A160: BAJAJHLDNG | B160: EQ | C160: 2027.95 | D160: 2073.85 | E160: 1925 | F160: 2024.75 | G160: 2025 | H160: 1978.9 | I160: 25453 | J160: 51363834.45 | K160: 2020-04-08 | L160: 6198 | M160: INE118A01012
A161: BAJFINANCE | B161: EQ | C161: 2184 | D161: 2374 | E161: 2144.15 | F161: 2332.9 | G161: 2329 | H161: 2253.35 | I161: 9109346 | J161: 2.088826331e+10 | K161: 2020-04-08 | L161: 516967 | M161: INE296A01024
A162: BALAJITELE | B162: EQ | C162: 43 | D162: 45 | E162: 40.8 | F162: 41.9 | G162: 42.15 | H162: 43.75 | I162: 194912 | J162: 8414452.4 | K162: 2020-04-08 | L162: 1677 | M162: INE794B01026
A163: BALAMINES | B163: EQ | C163: 277 | D163: 296 | E163: 260.4 | F163: 283.65 | G163: 284.45 | H163: 271.2 | I163: 70594 | J163: 20058887.5 | K163: 2020-04-08 | L163: 2337 | M163: INE050E01027
A164: BALAXI | B164: BE | C164: 82.7 | D164: 82.7 | E164: 75.05 | F164: 79.9 | G164: 79.9 | H164: 79 | I164: 1047 | J164: 78761.9 | K164: 2020-04-08 | L164: 24 | M164: INE618N01014
A165: BALKRISHNA | B165: EQ | C165: 8.6 | D165: 8.8 | E165: 8.35 | F165: 8.8 | G165: 8.8 | H165: 8.4 | I165: 7860 | J165: 67624.35 | K165: 2020-04-08 | L165: 49 | M165: INE875R01011
A166: BALKRISIND | B166: EQ | C166: 822 | D166: 862 | E166: 815 | F166: 821.35 | G166: 818.3 | H166: 823.55 | I166: 444079 | J166: 371870250.3 | K166: 2020-04-08 | L166: 24462 | M166: INE787D01026
A167: BALLARPUR | B167: EQ | C167: 0.4 | D167: 0.4 | E167: 0.3 | F167: 0.35 | G167: 0.35 | H167: 0.35 | I167: 9769871 | J167: 3419941.15 | K167: 2020-04-08 | L167: 514 | M167: INE294A01037
A168: BALMLAWRIE | B168: EQ | C168: 84 | D168: 87.9 | E168: 81 | F168: 84.75 | G168: 85.65 | H168: 85.5 | I168: 202053 | J168: 17357055.25 | K168: 2020-04-08 | L168: 3105 | M168: INE164A01016
A169: BALPHARMA | B169: EQ | C169: 38.9 | D169: 41.7 | E169: 38.9 | F169: 41.7 | G169: 41.7 | H169: 37.95 | I169: 40933 | J169: 1688199.5 | K169: 2020-04-08 | L169: 518 | M169: INE083D01012
A170: BALRAMCHIN | B170: EQ | C170: 123.85 | D170: 126.4 | E170: 123 | F170: 126.4 | G170: 126.4 | H170: 120.4 | I170: 642515 | J170: 80884980.2 | K170: 2020-04-08 | L170: 7125 | M170: INE119A01028
A171: BANARBEADS | B171: EQ | C171: 30.25 | D171: 32.5 | E171: 29.6 | F171: 29.75 | G171: 29.75 | H171: 31.5 | I171: 160 | J171: 4873.85 | K171: 2020-04-08 | L171: 26 | M171: INE655B01011
A172: BANARISUG | B172: EQ | C172: 900 | D172: 925 | E172: 880 | F172: 886.1 | G172: 880 | H172: 893.1 | I172: 410 | J172: 368979.1 | K172: 2020-04-08 | L172: 94 | M172: INE459A01010
A173: BANCOINDIA | B173: EQ | C173: 65.45 | D173: 67.5 | E173: 64.1 | F173: 65.95 | G173: 66 | H173: 65.45 | I173: 40062 | J173: 2654130.6 | K173: 2020-04-08 | L173: 1013 | M173: INE213C01025
A174: BANDHANBNK | B174: EQ | C174: 167.95 | D174: 209.05 | E174: 167.5 | F174: 193.75 | G174: 195.25 | H174: 167.25 | I174: 30692919 | J174: 5833285762 | K174: 2020-04-08 | L174: 332020 | M174: INE545U01014
A175: BANG | B175: EQ | C175: 12.05 | D175: 13.1 | E175: 11.9 | F175: 13.1 | G175: 13.1 | H175: 12.5 | I175: 1590 | J175: 20489 | K175: 2020-04-08 | L175: 31 | M175: INE863I01016
A176: BANKBARODA | B176: EQ | C176: 48 | D176: 51.5 | E176: 47.3 | F176: 48.35 | G176: 48.45 | H176: 48.15 | I176: 27159204 | J176: 1340103716 | K176: 2020-04-08 | L176: 77070 | M176: INE028A01039
A177: BANKBEES | B177: EQ | C177: 190 | D177: 205.4 | E177: 186.06 | F177: 191.28 | G177: 191.4 | H177: 192.12 | I177: 676832 | J177: 131368353.2 | K177: 2020-04-08 | L177: 10023 | M177: INF204KB15I9
A178: BANKINDIA | B178: EQ | C178: 32.7 | D178: 34.75 | E178: 32.5 | F178: 33.35 | G178: 33.25 | H178: 32.95 | I178: 1236627 | J178: 41574499.75 | K178: 2020-04-08 | L178: 6257 | M178: INE084A01016
A179: BANSWRAS | B179: EQ | C179: 77.4 | D179: 77.4 | E179: 70.2 | F179: 71.15 | G179: 70.2 | H179: 73.75 | I179: 22922 | J179: 1667255.55 | K179: 2020-04-08 | L179: 137 | M179: INE629D01012
A180: BASF | B180: EQ | C180: 1154 | D180: 1154 | E180: 1105 | F180: 1119.95 | G180: 1120.5 | H180: 1138.25 | I180: 26139 | J180: 29425244.35 | K180: 2020-04-08 | L180: 2640 | M180: INE373A01013
A181: BASML | B181: EQ | C181: 74.05 | D181: 84 | E181: 74.05 | F181: 80 | G181: 80 | H181: 78.7 | I181: 1648 | J181: 135366.45 | K181: 2020-04-08 | L181: 154 | M181: INE186H01014
A182: BATAINDIA | B182: EQ | C182: 1246.5 | D182: 1339 | E182: 1228 | F182: 1240.05 | G182: 1238.95 | H182: 1246.4 | I182: 1346088 | J182: 1726485633 | K182: 2020-04-08 | L182: 66274 | M182: INE176A01028
A183: BAYERCROP | B183: EQ | C183: 3500 | D183: 3946.6 | E183: 3499.3 | F183: 3818.15 | G183: 3772.15 | H183: 3510 | I183: 32833 | J183: 125437264 | K183: 2020-04-08 | L183: 6737 | M183: INE462A01022
A184: BBL | B184: EQ | C184: 590 | D184: 621.25 | E184: 590 | F184: 613.05 | G184: 621.25 | H184: 589.55 | I184: 9335 | J184: 5684085.45 | K184: 2020-04-08 | L184: 804 | M184: INE464A01028
A185: BBTC | B185: EQ | C185: 810 | D185: 854.3 | E185: 774 | F185: 784.2 | G185: 787.95 | H185: 788.4 | I185: 76612 | J185: 62014517.65 | K185: 2020-04-08 | L185: 5281 | M185: INE050A01025
A186: BCG | B186: EQ | C186: 3.6 | D186: 3.65 | E186: 3.55 | F186: 3.65 | G186: 3.65 | H186: 3.5 | I186: 305718 | J186: 1113234.95 | K186: 2020-04-08 | L186: 149 | M186: INE425B01027
A187: BCP | B187: EQ | C187: 10.75 | D187: 10.75 | E187: 10.5 | F187: 10.75 | G187: 10.75 | H187: 10.25 | I187: 8192 | J187: 87934.6 | K187: 2020-04-08 | L187: 28 | M187: INE905P01028
A188: BDL | B188: EQ | C188: 191 | D188: 229 | E188: 188.2 | F188: 218.2 | G188: 216.4 | H188: 191.4 | I188: 448405 | J188: 97968192.25 | K188: 2020-04-08 | L188: 13672 | M188: INE171Z01018
A189: BEARDSELL | B189: EQ | C189: 6.7 | D189: 7.3 | E189: 6.7 | F189: 7.3 | G189: 7.3 | H189: 7.05 | I189: 1250 | J189: 8417 | K189: 2020-04-08 | L189: 4 | M189: INE520H01022
A190: BEDMUTHA | B190: EQ | C190: 12.8 | D190: 13.05 | E190: 12.45 | F190: 12.45 | G190: 12.45 | H190: 13.1 | I190: 19584 | J190: 245429.15 | K190: 2020-04-08 | L190: 32 | M190: INE844K01012
A191: BEL | B191: EQ | C191: 69 | D191: 71.3 | E191: 65.1 | F191: 66.4 | G191: 66.5 | H191: 69 | I191: 16699885 | J191: 1138705070 | K191: 2020-04-08 | L191: 69587 | M191: INE263A01024
A192: BEML | B192: EQ | C192: 492 | D192: 523.5 | E192: 492 | F192: 503.6 | G192: 503 | H192: 475.95 | I192: 890527 | J192: 458689246.6 | K192: 2020-04-08 | L192: 23670 | M192: INE258A01016
A193: BEPL | B193: EQ | C193: 31 | D193: 32.75 | E193: 30.3 | F193: 31.25 | G193: 31.6 | H193: 30.25 | I193: 333595 | J193: 10578641.1 | K193: 2020-04-08 | L193: 3321 | M193: INE922A01025
A194: BERGEPAINT | B194: EQ | C194: 479.9 | D194: 487.65 | E194: 460 | F194: 463.5 | G194: 462 | H194: 479.2 | I194: 1729062 | J194: 817908730.6 | K194: 2020-04-08 | L194: 32950 | M194: INE463A01038
A195: BFINVEST | B195: EQ | C195: 258 | D195: 268.8 | E195: 244.6 | F195: 246.3 | G195: 248.95 | H195: 257.45 | I195: 4938 | J195: 1236639.95 | K195: 2020-04-08 | L195: 244 | M195: INE878K01010
A196: BFUTILITIE | B196: EQ | C196: 158.35 | D196: 158.35 | E196: 151.05 | F196: 154.05 | G196: 153.7 | H196: 150.85 | I196: 138134 | J196: 21700813.75 | K196: 2020-04-08 | L196: 1649 | M196: INE243D01012
A197: BGRENERGY | B197: EQ | C197: 22.1 | D197: 22.85 | E197: 20.95 | F197: 21.1 | G197: 21.15 | H197: 22.2 | I197: 172282 | J197: 3763089.75 | K197: 2020-04-08 | L197: 1108 | M197: INE661I01014
A198: BHAGERIA | B198: EQ | C198: 85 | D198: 91.05 | E198: 80.65 | F198: 81.6 | G198: 82.3 | H198: 84.2 | I198: 34795 | J198: 2944870.7 | K198: 2020-04-08 | L198: 925 | M198: INE354C01027
A199: BHAGYANGR | B199: EQ | C199: 14.05 | D199: 15.2 | E199: 14 | F199: 14.4 | G199: 14.4 | H199: 14.4 | I199: 1338 | J199: 19622.25 | K199: 2020-04-08 | L199: 50 | M199: INE458B01036
A200: BHAGYAPROP | B200: EQ | C200: 18 | D200: 20 | E200: 18 | F200: 20 | G200: 20 | H200: 19 | I200: 999 | J200: 19011 | K200: 2020-04-08 | L200: 5 | M200: INE363W01018
... 1470 more rows

Sheet Sheet1 (hidden)

Sheet Sheet3 (hidden)

Sheet Sheet4 (hidden)

Sheet Sheet5 (hidden)
